Workbook

Sheet Figure S1 ABS iGc
A1: Source Data for Supplementary Figure S1
A2: ABS-iGc
A3: Compound identifier | B3: Trivial name | D3: Final ABS IC50 (nM) | E3: Final iGc IC50 (nM) | F3: Final LGc IC50 (nM) | G3: Final mGc IC50 (nM) | I3: FC iGC-ABS | J3: FC LGc-ABS | K3: FC mGc-ABS | M3: SMILE | O3: Ref for ABS activity | P3: Ref for iGc activity | Q3: Ref for LGc activity | R3: Ref for mGc activity
A4: MMV1580488 | B4: ML324 | D4: 2060.00 | E4: 188.00 | F4: 77.40 | I4: =E4/D4 -> 0.09 | J4: =F4/D4 -> 0.04 | M4: O=C(NCCCN(C)C)C3=CC=C(C2=CC1=CC=CN=C1C(=C2)O)C=C3 | O4: Reader 2021 | P4: Reader 2021 | Q4: Reader 2021
A5: Citarinostat (ACY-241) | B5: Citarinostat (ACY-241) | D5: 5000.00 | E5: 1000.00 | F5: 1000.00 | I5: 0.20 | J5: =F5/D5 -> 0.20 | M5: ClC1=C(N(C2=CC=CC=C2)C3=NC=C(C(NCCCCCCC(NO)=O)=O)C=N3)C=CC=C1 | O5: vanheer 2020 | P5: vanheer 2020 | Q5: vanheer 2020
A6: Pacritinib (SB1518) | B6: Pacritinib (SB1518) | D6: 5000.00 | E6: 1000.00 | F6: 1000.00 | I6: 0.20 | J6: =F6/D6 -> 0.20 | M6: C12=C(OCCN3CCCC3)C=CC(/N=C4N=CC=C(C5=CC=CC(COC/C=C/COC2)=C5)N/4)=C1 | O6: vanheer 2020 | P6: vanheer 2020 | Q6: vanheer 2020
A7: BRD4770 | D7: 5000.00 | E7: 1000.00 | F7: 1000.00 | I7: 0.20 | J7: =F7/D7 -> 0.20 | M7: O=C(C1=CC=CC=C1)NC2=NC3=CC(C(OC)=O)=CC=C3N2CCCC4=CC=CC=C4 | O7: vanheer 2020 | P7: vanheer 2020 | Q7: vanheer 2020
A8: GSK-J4 (hydrochloride) | D8: 5000.00 | E8: 1000.00 | F8: 1000.00 | I8: 0.20 | J8: =F8/D8 -> 0.20 | M8: O=C(OCC)CCNC1=CC(N2CCC(C=CC=C3)=C3CC2)=NC(C4=CC=CC=N4)=N1.Cl | O8: vanheer 2020 | P8: vanheer 2020 | Q8: vanheer 2020
A9: SD-70 | D9: 3200.00 | E9: 800.00 | I9: 0.25 | M9: O=C(NC(c1ccco1)c1ccc2cccnc2c1O)C(C)C | O9: Matthews 2020 | P9: Matthews 2020
A10: JIB-04 | D10: 470.50 | E10: 120.00 | F10: 262.50 | I10: 0.26 | J10: =F10/D10 -> 0.56 | M10: ClC(C=C1)=CN=C1N/N=C(C2=CC=CC=C2)/C3=CC=CC=N3 | O10: vanheer 2020 | P10: Matthews 2020 | Q10: vanheer 2020
A11: MMV687273 | B11: SQ109 | D11: 1390.00 | E11: 383.00 | F11: 104.50 | I11: 0.28 | J11: 0.08 | M11: CC(=CCC\C(=C/CNCCNC1C2CC3CC(CC1C3)C2)\C)C | O11: Reader 2021 | P11: Reader 2021 | Q11: Reader 2021
A12: Oxamflatin | B12: Oxamflatin | D12: 3700.00 | E12: 1120.00 | F12: 1000.00 | I12: 0.30 | J12: 0.27 | M12: O=S(NC1=CC(C#C/C=C/C(NO)=O)=CC=C1)(C2=CC=CC=C2)=O | O12: Coetzee 2020 | P12: Coetzee 2020 | Q12: vanheer 2020
A13: MMV006706 | D13: 683.00 | E13: 220.00 | F13: 5000.00 | I13: 0.32 | J13: 7.32 | M13: n1(c2c(cccc2)n3)c3c(C#N)c(C)cc1N(CC4)CCN4C5CCCC5 | O13: Duffy 2013 | P13: Lucantoni 2013 | Q13: Sun 2014
A14: SGI-1027 | D14: 50.80 | E14: 18.20 | F14: 322.40 | I14: 0.36 | J14: 6.35 | M14: O=C(NC1=CC=C(NC2=NC(N)=NC(C)=C2)C=C1)C(C=C3)=CC=C3NC4=CC=NC5=C4C=CC=C5 | O14: vanheer 2020 | P14: vanheer 2020 | Q14: vanheer 2020
A15: GD34 | D15: 156.00 | E15: 56.08 | F15: 1899.00 | I15: 0.36 | J15: 12.17 | M15: CCN(CC)Cc1cc(cc(c1O)Nc1nc2ccccc2n1Cc1ccc(cc1)C(F)(F)F)Cl | O15: Dziwornu 2021 | P15: Dziwornu 2021 | Q15: Dziwornu 2021
A16: Chaetocin | B16: Chaetocin | D16: 775.30 | E16: 292.30 | F16: 504.50 | I16: 0.38 | J16: 0.65 | M16: O=C1[C@](CO)(SS2)N(C)C([C@]32N1[C@@H](NC4=CC=CC=C45)[C@]5([C@@]6(C7=CC=CC=C7N8)[C@H]8N(C([C@](CO)(SS9)N(C)C%10=O)=O)[C@]%109C6)C3)=O | O16: vanheer 2020 | P16: vanheer 2020 | Q16: vanheer 2020
A17: UNC0379 | D17: 50.40 | E17: 21.30 | F17: 1000.00 | I17: 0.42 | J17: 19.84 | M17: COC1=C(C=C2C(=C1)C(=NC(=N2)N3CCCC3)NCCCCCN4CCCC4)OC | O17: vanheer 2020 | P17: vanheer 2020 | Q17: vanheer 2020
A18: UNC0646 | D18: 140.10 | E18: 66.80 | F18: 1000.00 | I18: 0.48 | J18: 7.14 | M18: CC(C)N(CC6)CCCN6C1=NC(NC3CCN(C5CCCCC5)CC3)=C2C(C=C(OCCCN4CCCCC4)C(OC)=C2)=N1 | O18: vanheer 2020 | P18: vanheer 2020 | Q18: vanheer 2020
A19: BIX01294 | B19: BIX01294 | D19: 28.00 | E19: 14.00 | F19: 5000.00 | I19: 0.50 | J19: 178.57 | M19: COc1cc2nc(nc(c2cc1OC)NC1CCN(CC1)Cc1ccccc1)N1CCCN(CC1)C | O19: Coetzee 2020 | P19: Coetzee 2020 | Q19: Coetzee 2020
A20: UNC0631 | D20: 28.50 | E20: 14.80 | F20: 641.20 | I20: 0.52 | J20: 22.50 | M20: COC1=CC2=C(NC3CCN(CC4CCCCC4)CC3)N=C(N5CCN(C(C)C)CCC5)N=C2C=C1OCCCN6CCCCC6 | O20: vanheer 2020 | P20: vanheer 2020 | Q20: vanheer 2020
A21: MMV892646 | B21: JPC-3210 | D21: 9.00 | E21: 4.84 | G21: 5000.00 | I21: 0.54 | K21: =G21/D21 -> 555.56 | M21: Oc1c(CNC(C)(C)C)cc(cc1c1cnc(c(c1)F)C(F)(F)F)C(C)(C)C | O21: This study | P21: This study | Q21: This study | R21: This study
A22: GD37 | D22: 169.00 | E22: 97.62 | F22: 5000.00 | I22: 0.58 | J22: =F22/D22 -> 29.59 | M22: CCN(CC)Cc1cc(cc(c1O)Nc1nc2ccccc2n1Cc1ccc(cc1)C(F)(F)F)F | O22: Dziwornu 2021 | P22: Dziwornu 2021 | Q22: Dziwornu 2021
A23: GD25 | D23: 194.35 | E23: 115.20 | I23: 0.59 | M23: CCN(CC)Cc1cc(cc(c1O)Nc1nc2ccccc2n1Cc1ccc(cc1)C(F)(F)F)C | O23: Dziwornu 2021 | P23: Dziwornu 2021
A24: MMV665948 | D24: 2458.90 | E24: 1479.00 | F24: 5000.00 | I24: 0.60 | J24: =F24/D24 -> 2.03 | M24: Oc1ccccc1NC(=O)c2oc(cc2)c3ccc(Cl)cc3Cl | O24: Lucantoni 2013 | P24: Lucantoni 2013 | Q24: Sun 2014
A25: MMV000018 | B25: NPC-1161B | D25: 3360.00 | E25: 2180.00 | F25: 2032.60 | G25: 2864.86 | I25: 0.65 | J25: =F25/D25 -> 0.60 | K25: =G25/D25 -> 0.85 | M25: COc1cc(N[C@H](C)CCCN)c2nccc(C)c2c1Oc3ccc(Cl)c(Cl)c3 | O25: Duffy 2013 | P25: Duffy 2013 | Q25: Lucantoni 2016 | R25: Plouffe 2016
A26: MMV000008 | B26: Chloroquine | D26: 9.00 | E26: 5.92 | G26: 5000.00 | I26: 0.66 | K26: =G26/D26 -> 555.56 | M26: CCN(CC)CCCC(C)Nc1ccnc2cc(Cl)ccc12 | O26: This study | P26: This study | Q26: This study | R26: This study
A27: Salinomycin | B27: Salinomycin | D27: 21.90 | E27: 14.50 | F27: 6.30 | I27: 0.66 | J27: =F27/D27 -> 0.29 | M27: O=C([C@H]([C@H]([C@@H]([C@]3([H])O[C@]([C@@H](CC)C(O)=O)([H])CC[C@@H]3C)C)O)C)[C@H](CC)[C@@]([C@@H](C)C[C@H]2C)([H])O[C@]12O[C@@]4(CC[C@]([C@]5([H])O[C@@H](C)[C@](CC)(O)CC5)(C)O4)[C@H](O)C=C1 | O27: D'Allesandro 2015 | P27: D'Allesandro 2015 | Q27: D'Allesandro 2015
A28: Scriptaid | B28: Scriptaid | D28: 1500.00 | E28: 1000.00 | F28: 820.30 | I28: 0.67 | J28: 0.55 | M28: O=C(C1=CC=CC2=C1C3=CC=C2)N(CCCCCC(NO)=O)C3=O | O28: Coetzee 2020 | P28: vanheer 2020 | Q28: Coetzee 2020
A29: MMV666604 | D29: 1262.72 | E29: 875.00 | F29: 1083.00 | I29: 0.69 | J29: 0.86 | M29: CCOC(=O)C1=C(C)N=C2SC(=Cc3ccccc3O)C(=O)N2C1c4ccc(OC)c5ccccc45 | O29: Lucantoni 2013 | P29: Lucantoni 2013 | Q29: Duffy 2013
A30: MMV667491 | D30: 1230.00 | E30: 891.50 | F30: 696.40 | G30: 1390.65 | I30: 0.72 | J30: 0.57 | K30: =G30/D30 -> 1.13 | M30: C12=C(N=CN(CCCN(C)C)C1=N)Oc3c(ccc(cccc4)c34)C2c5ccc(OC)cc5 | O30: Duffy 2013 | P30: Plouffe 2016 | Q30: D Allesandro 2016 | R30: Plouffe 2016
A31: MMV665971 | D31: 489.00 | E31: 359.00 | F31: 228.00 | G31: 5000.00 | I31: 0.73 | J31: 0.47 | K31: =G31/D31 -> 10.22 | M31: CCOC(=O)C1=C(C)N=C2SC(=Cc3cc(Cl)ccc3O)C(=O)N2C1c4ccc(OC)cc4 | O31: Duffy 2013 | P31: Duffy 2013 | Q31: Duffy 2013 | R31: Plouffe 2016
A32: MMV665882 | D32: 337.00 | E32: 252.00 | F32: 63.00 | G32: 983.63 | I32: 0.75 | J32: 0.19 | K32: =G32/D32 -> 2.92 | M32: OC(CNC1CCCCC1)Cn2c3ccc(I)cc3c4cc(I)ccc24 | O32: D Allesandro 2016 | P32: Duffy 2013 | Q32: Duffy 2013 | R32: Plouffe 2016
A33: UNC0638 | D33: 21.60 | E33: 16.40 | F33: 442.00 | I33: 0.76 | J33: 20.46 | M33: CC(C)N(CC5)CCC5NC1=C2C(C=C(OCCCN4CCCC4)C(OC)=C2)=NC(C3CCCCC3)=N1 | O33: vanheer 2020 | P33: vanheer 2020 | Q33: Coetzee 2020
A34: UNC0642 | D34: 19.20 | E34: 14.60 | F34: 929.60 | I34: 0.76 | J34: 48.42 | M34: CC(C)N(CC4)CCC4NC1=C2C(C=C(OCCCN3CCCC3)C(OC)=C2)=NC(N5CCC(F)(F)CC5)=N1 | O34: vanheer 2020 | P34: vanheer 2020 | Q34: vanheer 2020
A35: Barasertib (AZD1152-HQPA) | B35: Barasertib (AZD1152-HQPA) | D35: 677.80 | E35: 518.10 | F35: 1000.00 | I35: 0.76 | J35: 1.48 | M35: CCN(CCOP(O)(O)=O)CCCOC1=CC2=C(C(NC3=CC(CC(NC4=CC(F)=CC=C4)=O)=NN3)=NC=N2)C=C1 | O35: vanheer 2020 | P35: vanheer 2020 | Q35: vanheer 2020
A36: MMV665852 | B36: NSC 35217 | D36: 5171.67 | E36: 3978.00 | G36: 5000.00 | I36: 0.77 | K36: =G36/D36 -> 0.97 | M36: Clc1ccc(NC(=O)Nc2ccc(Cl)c(Cl)c2)cc1Cl | O36: This study | P36: This study | Q36: This study | R36: This study
A37: MMV665953 | D37: 2060.00 | E37: 1645.00 | F37: 5000.00 | G37: 5000.00 | I37: 0.80 | J37: =F37/D37 -> 2.43 | K37: =G37/D37 -> 2.43 | M37: Fc1ccc(NC(=O)Nc2ccc(Cl)c(Cl)c2)cc1Cl | O37: Duffy 2013 | P37: Lucantoni 2013 | Q37: Sun 2014 | R37: Plouffe 2016
A38: GD39 | D38: 262.00 | E38: 219.43 | F38: 2334.00 | I38: 0.84 | J38: 8.91 | M38: CCNCc1cc(cc(c1O)Nc1nc2cc(c(cc2n1Cc1ccc(cc1)C(F)(F)F)F)F)C | O38: Dziwornu 2021 | P38: Dziwornu 2021 | Q38: Dziwornu 2021
A39: Trichostatin A | B39: Trichostatin A | D39: 62.30 | E39: 53.90 | F39: 3795.50 | I39: 0.87 | J39: 60.92 | M39: CN(C)c1ccc(cc1)C(=O)C(C)/C=C(\C)/C=C/C(=O)NO | O39: vanheer 2020 | P39: vanheer 2020 | Q39: vanheer 2020
A40: ZM 447439 | D40: 210.40 | E40: 189.40 | F40: 1000.00 | I40: 0.90 | J40: 4.75 | M40: COc1cc2c(ncnc2cc1OCCCN1CCOCC1)Nc1ccc(cc1)NC(=O)c1ccccc1 | O40: vanheer 2020 | P40: vanheer 2020 | Q40: vanheer 2020
A41: CX-6258 HCl | B41: CX-6258 HCl | D41: 494.30 | E41: 472.20 | F41: 1000.00 | I41: 0.96 | J41: 2.02 | M41: CN1CCCN(CC1)C(=O)C2=CC=CC(=C2)C3=CC=C(O3)/C=C/4\C5=C(C=CC(=C5)Cl)NC4=O.Cl | O41: vanheer 2020 | P41: vanheer 2020 | Q41: vanheer 2020
A42: 3-Deazaneplanocin A (hydrochloride) | B42: 3-Deazaneplanocin A (hydrochloride) | D42: 1000.00 | E42: 1000.00 | F42: 1000.00 | I42: 1.00 | J42: 1.00 | M42: C1=CN=C(C2=C1N(C=N2)[C@@H]3C=C([C@H]([C@H]3O)O)CO)N.Cl | O42: vanheer 2020 | P42: vanheer 2020 | Q42: vanheer 2020
A43: MMV000050 | B43: Chlorproguanil | D43: 5000.00 | E43: 5000.00 | F43: 2002.60 | G43: 4160.00 | I43: 1.00 | J43: 0.40 | K43: =G43/D43 -> 0.83 | M43: CC(C)NC(=N)NC(=N)Nc1ccc(Cl)c(Cl)c1 | O43: Duffy 2013 | P43: Plouffe 2016 | Q43: Lucantoni 2016 | R43: Lucantoni 2015
A44: Decitabine | B44: Decitabine | D44: 5000.00 | E44: 5000.00 | I44: 1.00 | M44: NC1=NC(N([C@@H]2O[C@H](CO)[C@@H](O)C2)C=N1)=O | O44: vanheer 2020 | P44: vanheer 2020
A45: LMK-235 | B45: LMK-235 | D45: 1000.00 | E45: 1000.00 | F45: 1000.00 | I45: 1.00 | J45: =F45/D45 -> 1.00 | M45: CC1=CC(C)=CC(C(NOCCCCCC(NO)=O)=O)=C1 | O45: vanheer 2020 | P45: vanheer 2020 | Q45: vanheer 2020
A46: MMV007224 | B46: MMV007224 | D46: 5000.00 | E46: 5000.00 | G46: 5000.00 | I46: 1.00 | K46: =G46/D46 -> 1.00 | M46: Brc1ccc(Nc2nc3ccccc3nc2Nc4ccc(Br)cc4)cc1 | O46: This study | P46: This study | Q46: This study | R46: This study
A47: Nexturastat A | B47: Nexturastat A | D47: 1000.00 | E47: 1000.00 | F47: 1000.00 | I47: 1.00 | J47: =F47/D47 -> 1.00 | M47: O=C(N(CC1=CC=C(C(NO)=O)C=C1)CCCC)NC2=CC=CC=C2 | O47: vanheer 2020 | P47: vanheer 2020 | Q47: vanheer 2020
A48: Quisinostat (JNJ-26481585) 2HCl | B48: Quisinostat (JNJ-26481585) 2HCl | D48: 13.00 | E48: 13.00 | F48: 148.10 | I48: 1.00 | J48: 11.39 | M48: CN1C=C(C2=CC=CC=C21)CNCC3CCN(CC3)C4=NC=C(C=N4)C(=O)NO.Cl.Cl | O48: vanheer 2020 | P48: vanheer 2020 | Q48: vanheer 2020
A49: Ricolinostat (ACY-1215) | B49: Ricolinostat (ACY-1215) | D49: 1000.00 | E49: 1000.00 | F49: 1000.00 | I49: 1.00 | J49: 1.00 | M49: O=C(NCCCCCCC(NO)=O)C(C=N1)=CN=C1N(C2=CC=CC=C2)C3=CC=CC=C3 | O49: vanheer 2020 | P49: vanheer 2020 | Q49: vanheer 2020
A50: Sirtinol | B50: Sirtinol | D50: 5000.00 | E50: 5000.00 | F50: 130.30 | I50: 1.00 | J50: 0.03 | M50: O=C(N([H])C(C1=CC=CC=C1)C)C(C=CC=C2)=C2/N=C/C3=C(O)C=CC4=C3C=CC=C4 | O50: Coetzee 2020 | P50: vanheer 2020 | Q50: Coetzee 2020
A51: Aurora A Inhibitor I | D51: 1000.00 | E51: 1000.00 | F51: 1000.00 | I51: 1.00 | J51: 1.00 | M51: ClC1=CC=CC=C1NC(C2=CC=C(NC3=NC(NC4=CC=C(CC(N5CCN(CC)CC5)=O)C=C4)=NC=C3F)C=C2)=O | O51: vanheer 2020 | P51: vanheer 2020 | Q51: vanheer 2020
A52: CUDC-907 | D52: 1000.00 | E52: 1000.00 | F52: 1000.00 | I52: 1.00 | J52: 1.00 | M52: CN(C1=NC=C(C(NO)=O)C=N1)CC2=CC3=NC(C4=CC=C(OC)N=C4)=NC(N5CCOCC5)=C3S2 | O52: vanheer 2020 | P52: vanheer 2020 | Q52: vanheer 2020
A53: ENMD-2076 | D53: 1000.00 | E53: 1000.00 | F53: 1000.00 | I53: 1.00 | J53: 1.00 | M53: CN(CC1)CCN1C2=CC(NC3=NNC(C)=C3)=NC(/C=C/C4=CC=CC=C4)=N2.OC([C@H](O)[C@@H](O)C(O)=O)=O | O53: vanheer 2020 | P53: vanheer 2020 | Q53: vanheer 2020
A54: ENMD-2076 L-(+)-Tartaric acid | D54: 1000.00 | E54: 1000.00 | F54: 1000.00 | I54: 1.00 | J54: 1.00 | M54: CC1=CC(=NN1)NC2=CC(=NC(=N2)/C=C/C3=CC=CC=C3)N4CCN(CC4)C.[C@@H]([C@H](C(=O)O)O)(C(=O)O)O | O54: vanheer 2020 | P54: vanheer 2020 | Q54: vanheer 2020
A55: PBI.125 | D55: 5000.00 | E55: 5000.00 | F55: 4113.00 | I55: 1.00 | J55: 0.82 | M55: FC1=C(F)C=C(N=C2N3C(N[C@@H](C)C4=CC=CC=C4Cl)=CC(C(F)(F)F)=C2C#N)C3=C1 | O55: Leshabane 2021 | P55: Leshabane 2021 | Q55: Leshabane 2021
A56: MMV000019 | B56: OZ439 | D56: 3.40 | E56: 3.42 | F56: 1.90 | G56: 5000.00 | I56: 1.01 | J56: 0.56 | K56: =G56/D56 -> 1470.59 | M56: C(CN1CCOCC1)Oc2ccc(cc2)[C@@H]3CC[C@@]4(CC3)OO[C@@]5(O4)[C@@H]6CC7C[C@@H](CC5C7)C6 | O56: Wang 2013 Charman 2011 | P56: Plouffe 2016 | Q56: Plouffe 2016 | R56: Plouffe 2016
A57: MMV084940 | D57: 1040.00 | E57: 1081.10 | F57: 1040.00 | G57: 4807.38 | I57: 1.04 | J57: 1.00 | K57: =G57/D57 -> 4.62 | M57: C1(=NC(C)(Cc(cc(OC)c(OC)c2)c23)C)C3=NNC1=O | O57: Duffy 2013 | P57: Plouffe 2016 | Q57: Duffy 2013 | R57: Plouffe 2016
A58: MMV000030 | B58: Thiostrepton | D58: 913.00 | E58: 959.00 | F58: 556.00 | G58: 3260.74 | I58: 1.05 | J58: 0.61 | K58: =G58/D58 -> 3.57 | M58: CCC(C)C1NC2C=Cc3c(cc(nc3C2O)C(=O)OC(C)C4NC(=O)c5csc(n5)C(NC(=O)C6CSC(=N6)\C(=C/C)\NC(=O)C(NC(=O)c7csc(n7)C8(CCC(=NC8C9CSC4N9)c%10nc(cs%10)C(=O)NC(=C)C(=O)NC(=C)C(=O)N)NC(=O)C(C)NC(=O)C(=C)NC(=O)C(C)NC1=O)C(C)O)C(C)(O)C(C)O)C(C)O | O58: Duffy 2013 | P58: Duffy 2013 | Q58: Duffy 2013 | R58: Plouffe 2016
A59: MMV007273 | D59: 1278.00 | E59: 1361.00 | F59: 5000.00 | G59: 5000.00 | I59: 1.06 | J59: 3.91 | K59: =G59/D59 -> 3.91 | M59: COc1cc(cc(OC)c1O)c2nc(c3ccc(Sc4ccccc4)cc3)c([nH]2)c5ccccc5 | O59: Lucantoni 2013 | P59: Lucantoni 2013 | Q59: Sun 2014 | R59: Plouffe 2016
A60: MMV020746 | B60: MMV020746 | D60: 5000.00 | E60: 5487.00 | G60: 5000.00 | I60: 1.10 | K60: =G60/D60 -> 1.00 | M60: Cc1ccc(Oc2ncccc2C(=O)Nc3cccc4cccnc34)c(C)c1 | O60: This study | P60: This study | Q60: This study | R60: This study
A61: Dacinostat, LAQ824 | B61: Dacinostat, LAQ824 | D61: 40.80 | E61: 45.30 | F61: 2266.10 | I61: 1.11 | J61: =F61/D61 -> 55.54 | M61: O=C(NO)/C=C/C1=CC=C(CN(CCC2=CNC3=C2C=CC=C3)CCO)C=C1 | O61: vanheer 2020 | P61: vanheer 2020 | Q61: vanheer 2020
A62: MMV982301 | B62: FAR797 | D62: 614.80 | E62: 682.90 | G62: 2965.00 | I62: 1.11 | K62: =G62/D62 -> 4.82 | O62: This study | P62: This study | Q62: This study | R62: This study
A63: MMV1542805 | B63: MMV805 | D63: 85.00 | E63: 95.50 | G63: 2617.00 | I63: 1.12 | K63: =G63/D63 -> 30.79 | O63: This study | P63: This study | Q63: This study | R63: This study
A64: SRT1720 HCl | D64: 460.30 | E64: 519.00 | F64: 1000.00 | I64: 1.13 | J64: =F64/D64 -> 2.17 | M64: C1CN(CCN1)CC2=CSC3=NC(=CN23)C4=CC=CC=C4NC(=O)C5=NC6=CC=CC=C6N=C5.Cl | O64: vanheer 2020 | P64: vanheer 2020 | Q64: vanheer 2020
A65: Vorinostat (SAHA, MK0683) | B65: Vorinostat (SAHA, MK0683) | D65: 206.30 | E65: 233.10 | F65: 1000.00 | I65: 1.13 | J65: =F65/D65 -> 4.85 | M65: O=C(Nc1ccccc1)CCCCCCC(=O)NO | O65: vanheer 2020 | P65: vanheer 2020 | Q65: vanheer 2020
A66: MMV019881 | D66: 646.00 | E66: 740.91 | F66: 287.60 | G66: 1502.00 | I66: 1.15 | J66: =F66/D66 -> 0.45 | K66: =G66/D66 -> 2.33 | M66: O=C(NC1CCN(Cc2ccccc2)CC1)c3cc(cc(c3)C(=O)NC4CCN(Cc5ccccc5)CC4)C(=O)NC6CCN(Cc7ccccc7)CC6 | O66: Duffy 2013 | P66: Plouffe 2016 | Q66: D Allesandro 2016 | R66: Plouffe 2016
A67: MMV016838 | D67: 1718.00 | E67: 2000.00 | G67: 5000.00 | I67: 1.16 | K67: =G67/D67 -> 2.91 | M67: Cc1ccc(cc1)c2cc(C(=O)Nc3cccnc3)c4cc(Br)ccc4n2 | O67: This study | P67: This study | Q67: This study | R67: This study
A68: BIX01294 (hydrochloride hydrate) | B68: BIX01294 (hydrochloride hydrate) | D68: 10.50 | E68: 12.30 | F68: 939.00 | I68: =E68/D68 -> 1.17 | J68: =F68/D68 -> 89.43 | M68: COC(C(OC)=C1)=CC2=C1C(NC3CCN(CC4=CC=CC=C4)CC3)=NC(N5CCCN(C)CC5)=N2.Cl.Cl.Cl.O | O68: vanheer 2020 | P68: vanheer 2020 | Q68: vanheer 2020
A69: MMV084032 | B69: Borrelidine | D69: 4228.33 | E69: 5000.00 | G69: 5000.00 | I69: 1.18 | K69: =G69/D69 -> 1.18 | M69: CC1CC(C)CC(C)C(O)\C(=C/C=C\CC(OC(=O)CC(O)C(C)C1)C2CCCC2C(=O)O)\C#N | O69: This study | P69: This study | Q69: This study | R69: This study
A70: MMV1542945 | B70: ACT-451840 | D70: 8.34 | E70: 9.90 | G70: 11.10 | I70: 1.19 | K70: =G70/D70 -> 1.33 | M70: CC(C)(C)c1ccc(cc1)/C=C/C(=O)N(Cc1ccc(cc1)N1CCN(CC1)C(C)=O)[C@@H](Cc1ccccc1)C(=O)N1CCN(Cc2ccc(C#N)cc2)CC1 | O70: This study | P70: This study | Q70: This study | R70: This study
A71: MMV000020 | B71: OZ277 | D71: 1.30 | E71: 1.58 | F71: 7.42 | G71: 5000.00 | I71: 1.22 | J71: =F71/D71 -> 5.71 | K71: =G71/D71 -> 3846.15 | M71: CC(C)(N)CNC(=O)C[C@@H]1CC[C@@]2(CC1)OOC3(O2)C4CC5CC(CC3C5)C4 | O71: Fugi 2010 | P71: Plouffe 2016 | Q71: Plouffe 2016 | R71: Plouffe 2016
A72: Lestaurtinib | D72: 136.10 | E72: 170.40 | F72: 950.40 | I72: 1.25 | J72: =F72/D72 -> 6.98 | M72: O=C(NC1)C2=C1C(C(C=CC=C3)=C3N45)=C4C6=C2C7=C(C=CC=C7)N6[C@@]8([H])C[C@](O)(CO)[C@]5(C)O8 | O72: vanheer 2020 | P72: vanheer 2020 | Q72: vanheer 2020
A73: MMV000008 | B73: Chloroquine | D73: 4.69 | E73: 5.92 | F73: 253.00 | G73: 5000.00 | I73: 1.26 | J73: =F73/D73 -> 53.94 | K73: =G73/D73 -> 1066.10 | M73: CCN(CC)CCCC(C)Nc1ccnc2cc(Cl)ccc12 | O73: Lucantoni 2013 | P73: Reader 2022 | Q73: Sun 2014 | R73: Plouffe 2016
A74: GD32 | D74: 780.00 | E74: 996.07 | I74: 1.28 | M74: CCNCc1cc(cc(c1O)Nc1nc2ccccc2n1Cc1ccc(cc1)C(F)(F)F)C | O74: Dziwornu 2021 | P74: Dziwornu 2021
A75: MMV665894 | D75: 536.00 | E75: 686.00 | F75: 5000.00 | I75: 1.28 | J75: =F75/D75 -> 9.33 | M75: CC(=O)c1sc(NC(=O)Nc2ccc(C)cc2C)nc1C | O75: Duffy 2013 | P75: Lucantoni 2013 | Q75: Sun 2014
A76: SGI-1776 free base | D76: 297.50 | E76: 384.90 | F76: 1000.00 | I76: 1.29 | J76: 3.36 | M76: CN1CCC(CC1)CNC2=NN3C(=NC=C3C4=CC(=CC=C4)OC(F)(F)F)C=C2 | O76: vanheer 2020 | P76: vanheer 2020 | Q76: vanheer 2020
A77: M 344 | D77: 237.20 | E77: 310.40 | F77: 1000.00 | I77: 1.31 | J77: 4.22 | M77: ONC(=O)CCCCCCNC(=O)c1ccc(cc1)N(C)C | O77: vanheer 2020 | P77: vanheer 2020 | Q77: vanheer 2020
A78: MMV007907 | D78: 350.00 | E78: 461.00 | F78: 231.00 | I78: 1.32 | J78: 0.66 | M78: Cc1ccc(Nc2nc(cs2)c3ccccn3)cc1 | O78: Duffy 2013 | P78: Duffy 2013 | Q78: Duffy 2013
A79: MMV000760 | D79: 3760.50 | E79: 5000.00 | F79: 3722.00 | G79: 5000.00 | I79: 1.33 | J79: 0.99 | K79: =G79/D79 -> 1.33 | M79: Oc1c(CN2CCN(CC2)c3ccccc3F)cc(Br)c4cccnc14 | O79: Lucantoni 2013 | P79: Plouffe 2016 | Q79: Sun 2014 | R79: Plouffe 2016
A80: MMV000704 | D80: 1091.06 | E80: 1462.00 | F80: 5000.00 | I80: 1.34 | J80: 4.58 | M80: c1(Nc(cc2)ccc2N(CC3)CCN3C)c4c(ccc(OC)c4)ncc1C(OCC)=O | O80: Lucantoni 2013 | P80: Lucantoni 2013 | Q80: Sun 2014
A81: 4-iodo-SAHA | B81: 4-iodo-SAHA | D81: 202.60 | E81: 277.40 | F81: 1000.00 | I81: 1.37 | J81: 4.94 | M81: IC1=CC=C(NC(CCCCCCC(NO)=O)=O)C=C1 | O81: vanheer 2020 | P81: vanheer 2020 | Q81: vanheer 2020
A82: CAY10603 | D82: 101.00 | E82: 141.10 | F82: 1000.00 | I82: 1.40 | J82: 9.90 | M82: ONC(=O)CCCCCCNC(=O)c1noc(c1)c1ccc(cc1)NC(=O)OC(C)(C)C | O82: vanheer 2020 | P82: vanheer 2020 | Q82: vanheer 2020
A83: Givinostat (ITF2357) | B83: Givinostat (ITF2357) | D83: 90.70 | E83: 128.30 | F83: 1000.00 | I83: 1.41 | J83: 11.03 | M83: CC[N+](CC)([H])CC1=CC=C(C=C(COC(NC2=CC=C(C(NO)=O)C=C2)=O)C=C3)C3=C1.[Cl-].O | O83: vanheer 2020 | P83: vanheer 2020 | Q83: vanheer 2020
A84: ITF 2357 | D84: 90.70 | E84: 128.30 | F84: 1000.00 | I84: 1.41 | J84: 11.03 | M84: CC[N+](CC)([H])CC1=CC=C(C=C(COC(NC2=CC=C(C(NO)=O)C=C2)=O)C=C3)C3=C1.[Cl-].O | O84: vanheer 2020 | P84: vanheer 2020 | Q84: vanheer 2020
A85: Celastrol | B85: Celastrol | D85: 820.00 | E85: 1160.00 | F85: 282.40 | I85: 1.41 | J85: 0.34 | M85: O=C(OC)C1(C)CCC2(C)CCC3(C)C4=CC=C5C(=CC(=O)C(O)=C5C)C4(C)CCC3(C)C2C1 | O85: Ng 2022 | P85: Ng 2022 | Q85: Ng 2022
A86: Triclosan | B86: Triclosan | D86: 5.30 | E86: 7.50 | I86: 1.42 | M86: ClC1=C(OC2=CC=C(Cl)C=C2O)C=CC(Cl)=C1 | O86: Buchholz 2011 | P86: Buchholz 2011
A87: GSK1070916 | D87: 535.20 | E87: 761.10 | F87: 1000.00 | I87: 1.42 | J87: =F87/D87 -> 1.87 | M87: CN(C)CC1=CC=CC(C2=CC3=C(C4=CN(CC)N=C4C5=CC=C(NC(N(C)C)=O)C=C5)C=CN=C3N2)=C1 | O87: vanheer 2020 | P87: vanheer 2020 | Q87: vanheer 2020
A88: Fedratinib (SAR302503, TG101348) | B88: Fedratinib (SAR302503, TG101348) | D88: 66.90 | E88: 96.90 | F88: 1000.00 | I88: 1.45 | J88: =F88/D88 -> 14.95 | M88: CC(C)(C)NS(C1=CC=CC(NC2=NC(NC3=CC=C(OCCN4CCCC4)C=C3)=NC=C2C)=C1)(=O)=O | O88: vanheer 2020 | P88: vanheer 2020 | Q88: vanheer 2020
A89: GD19 | D89: 999.55 | E89: 1458.00 | I89: 1.46 | M89: CCN(CC)Cc1cccc(c1O)Nc1nc2ccccc2n1Cc1ccc(cc1)C#N | O89: Dziwornu 2021 | P89: Dziwornu 2021
A90: MI-463 | D90: 595.00 | E90: 874.90 | F90: 1000.00 | I90: 1.47 | J90: =F90/D90 -> 1.68 | M90: CC1=C(C=CC2=C1C=C(N2)C#N)CN3CCC(CC3)NC4=C5C=C(SC5=NC=N4)CC(F)(F)F | O90: vanheer 2020 | P90: vanheer 2020 | Q90: vanheer 2020
A91: MMV666597 | D91: 551.00 | E91: 819.00 | F91: 465.00 | G91: 1927.00 | I91: 1.49 | J91: =F91/D91 -> 0.84 | K91: =G91/D91 -> 3.50 | M91: CCCCCCc1cc2C=C(C(=Nc3ccccc3C)Oc2cc1O)c4nc5ccccc5[nH]4 | O91: Duffy 2013 | P91: Duffy 2013 | Q91: Duffy 2013 | R91: Lucantoni 2015
A92: MMV396749 | D92: 928.00 | E92: 1384.56 | F92: 5000.00 | G92: 1354.33 | I92: 1.49 | J92: =F92/D92 -> 5.39 | K92: =G92/D92 -> 1.46 | M92: C12(Nc(cccc3)c3c4n1c5c(cccc5)n4)C(=O)Nc(ccc(OC)c6)c26 | O92: Duffy 2013 | P92: Plouffe 2016 | Q92: Sun 2014 | R92: Plouffe 2016
A93: MMV1582617 | B93: NVP-INE963 | D93: 3.00 | E93: 4.49 | G93: 4987.70 | I93: 1.50 | K93: =G93/D93 -> 1662.57 | M93: NCC1(O)CCN(CC1)c1nn2c(s1)ncc2c1ccc(nc1OC)C(C)C | O93: This study | P93: This study | Q93: This study | R93: This study
A94: Nigericin | B94: Nigericin | D94: 1.80 | E94: 2.70 | F94: 0.90 | I94: 1.50 | J94: =F94/D94 -> 0.50 | M94: CC1CCC(OC1C(C)C(=O)[O-])CC2CC(C(C3(O2)C(CC(O3)(C)C4CCC(O4)(C)C5C(CC(O5)C6C(CC(C(O6)(CO)O)C)C)C)C)C)OC.[Na+] | O94: D'Allesandro 2015 | P94: D'Allesandro 2015 | Q94: D'Allesandro 2015
A95: Epoxomycin | B95: Epoxomycin | D95: 8.00 | E95: 12.10 | F95: 0.42 | G95: 3.80 | I95: 1.51 | J95: 0.05 | K95: =G95/D95 -> 0.48 | M95: CC[C@H](C)[C@@H](C(=O)N[C@@H]([C@@H](C)O)C(=O)N[C@@H](CC(C)C)C(=O)[C@]1(CO1)C)NC(=O)[C@H]([C@@H](C)CC)N(C)C(=O)C | O95: Lelievre 2012 | P95: D'Allesandro 2015 | Q95: Lelievre 2012 | R95: Bowman 2014
A96: GD35 | D96: 286.00 | E96: 435.45 | F96: 5000.00 | I96: 1.52 | J96: 17.48 | M96: CCNCc1cc(cc(c1O)Nc1nc2ccccc2n1Cc1ccc(cc1)C(F)(F)F)Cl | O96: Dziwornu 2021 | P96: Dziwornu 2021 | Q96: Dziwornu 2021
A97: MMV011895 | D97: 842.00 | E97: 1286.53 | F97: 5000.00 | G97: 5000.00 | I97: 1.53 | J97: 5.94 | K97: =G97/D97 -> 5.94 | M97: Nc1ccc(cc1)c2nc3cc(Oc4ccc(Oc5ccc6[nH]c(nc6c5)c7ccc(N)cc7)cc4)ccc3[nH]2 | O97: Duffy 2013 | P97: Plouffe 2016 | Q97: Sun 2014 | R97: Plouffe 2016
A98: TG101209 | D98: 211.20 | E98: 326.30 | F98: 1000.00 | I98: 1.54 | J98: 4.73 | M98: CC1=CN=C(N=C1NC2=CC(=CC=C2)S(=O)(=O)NC(C)(C)C)NC3=CC=C(C=C3)N4CCN(CC4)C | O98: vanheer 2020 | P98: vanheer 2020 | Q98: vanheer 2020
A99: CBHA | D99: 3200.00 | E99: 5000.00 | F99: 1000.00 | I99: 1.56 | J99: 0.31 | M99: ONC(=O)\C=C/c1cccc(c1)C(=O)NO | O99: Coetzee 2020 | P99: vanheer 2020 | Q99: vanheer 2020
A100: DM7 | D100: 3180.00 | E100: 5000.00 | I100: 1.57 | M100: O=C(CN1CCC(CC1)Nc1nc2ccccc2n1Cc1ccc(F)cc1)c1ccc(OC)cc1 | O100: Mambwe 2021 | P100: Mambwe 2021
A101: MMV000025 | B101: Pyronaridine | D101: 17.00 | E101: 27.00 | G101: 938.40 | I101: 1.59 | K101: =G101/D101 -> 55.20 | M101: COc1ccc2nc3cc(Cl)ccc3c(Nc4cc(CN5CCCC5)c(O)c(CN6CCCC6)c4)c2n1 | O101: This study | P101: This study | Q101: This study | R101: This study
A102: GD38 | D102: 1849.00 | E102: 3065.70 | I102: 1.66 | M102: CCN(CC)Cc1c(c(ccc1Cl)Nc1nc2ccccc2n1Cc1ccc(cc1)C(F)(F)F)O | O102: Dziwornu 2021 | P102: Dziwornu 2021
A103: CLM-19 | D103: 2.70 | E103: 4.50 | F103: 29.00 | I103: 1.67 | J103: =F103/D103 -> 10.74 | M103: CS(=O)(=O)c1ccc(cc1)c2cnn3ccc(cc23)c4cccc(c4)S(=O)(=O)C5CC5 | O103: Le Manach 2015 | P103: Le Manach 2015 | Q103: Le Manach 2015
A104: MMV674850 | D104: 2.65 | E104: 4.47 | F104: 28.70 | G104: 208.80 | I104: 1.69 | J104: =F104/D104 -> 10.83 | K104: =G104/D104 -> 78.79 | M104: CS(=O)(=O)c1ccc(cc1)c2cnn3ccc(cc23)c4cccc(c4)S(=O)(=O)C5CC5 | O104: van der Watt 2018 | P104: van der Watt 2018 | Q104: van der Watt 2018 | R104: van der Watt 2018
A105: DM8 | D105: 2890.00 | E105: 5000.00 | I105: 1.73 | M105: O=C(Cc1ccc(OC)cc1)N1CCC(Nc2nc3ccccc3n2Cc2ccc(F)cc2)CC1 | O105: Mambwe 2021 | P105: Mambwe 2021
A106: Pracinostat (SB939) | B106: Pracinostat (SB939) | D106: 217.10 | E106: 376.50 | F106: 1000.00 | I106: 1.73 | J106: =F106/D106 -> 4.61 | M106: CCCCC1=NC2=C(N1CCN(CC)CC)C=CC(=C2)/C=C/C(=O)NO | O106: vanheer 2020 | P106: vanheer 2020 | Q106: vanheer 2020
A107: Belinostat (PXD101) | B107: Belinostat (PXD101) | D107: 186.60 | E107: 326.10 | F107: 1000.00 | I107: 1.75 | J107: =F107/D107 -> 5.36 | M107: C1=CC=C(C=C1)NS(=O)(=O)C2=CC=CC(=C2)/C=C/C(=O)NO | O107: vanheer 2020 | P107: vanheer 2020 | Q107: vanheer 2020
A108: GSK-J4 | D108: 2800.00 | E108: 5000.00 | I108: 1.79 | M108: COCC(=O)CCNc1cc(nc(n1)c1ccccn1)N1CCc2ccccc2CC1 | O108: Matthews 2020 | P108: Matthews 2020
A109: MMV000839 | D109: 1080.00 | E109: 2000.00 | F109: 2000.00 | I109: 1.85 | J109: =F109/D109 -> 1.85 | M109: OC(CNCc1ccccc1)Cn2c3ccccc3c4ccccc24 | O109: Duffy 2013 | P109: Duffy 2013 | Q109: Duffy 2013
A110: Monensin | B110: Monensin | D110: 1.00 | E110: 1.90 | F110: 5.70 | I110: 1.90 | J110: 5.70 | M110: CCC1(CCC(O1)C2(CCC3(O2)CC(C(C(O3)C(C)C(C(C)C(=O)[O-])OC)C)O)C)C4C(CC(O4)C5C(CC(C(O5)(CO)O)C)C)C.[Na+] | O110: D'Allesandro 2015 | P110: D'Allesandro 2015 | Q110: D'Allesandro 2015
A111: PC29 | D111: 12.00 | E111: 22.80 | F111: 42.30 | I111: 1.90 | J111: 3.53 | M111: CS(=O)c1ccc(cc1)c1cnc2ccc(nn12)c1cccc(c1)C(=O)N1CCCCC1 | O111: Cheuka 2021 | P111: Cheuka 2021 | Q111: Cheuka 2021
A112: PBI.109 | B112: PBI.109 | D112: 53.70 | E112: 102.10 | F112: 5000.00 | I112: 1.90 | J112: 93.11 | M112: Fc1cc2nc3c(c(cc(n3c2cc1F)NC1(CC1)c1ccccc1)C(F)(F)F)C#N | O112: Leshabane 2021 | P112: Leshabane 2021 | Q112: Leshabane 2021
A113: MMV000753 | D113: 326.00 | E113: 627.00 | F113: 2000.00 | G113: 5000.00 | I113: 1.92 | J113: 6.13 | K113: =G113/D113 -> 15.34 | M113: Oc1ccc(cc1)c2nc(c3ccc4oc5ccc(cc5c4c3)c6[nH]c(nc6c7ccccc7)c8ccc(O)cc8)c([nH]2)c9ccccc9 | O113: Duffy 2013 | P113: Lucantoni 2013 | Q113: Duffy 2013 | R113: Plouffe 2016
A114: Pyroxamide | B114: Pyroxamide | D114: 510.00 | E114: 1000.00 | F114: 1000.00 | I114: 1.96 | J114: 1.96 | M114: O=C(CCCCCCC(NO)=O)NC1=CC=CN=C1 | O114: Coetzee 2020 | P114: vanheer 2020 | Q114: vanheer 2020
A115: GD24 | D115: 445.95 | E115: 882.60 | I115: 1.98 | M115: CCN(CC)Cc1cccc(c1O)Nc1nc2ccccc2n1Cc1ccc(cc1)C(F)(F)F | O115: Dziwornu 2021 | P115: Dziwornu 2021
A116: MMV006962 | D116: 993.00 | E116: 1981.99 | F116: 5000.00 | G116: 5000.00 | I116: 2.00 | J116: =F116/D116 -> 5.04 | K116: =G116/D116 -> 5.04 | M116: Clc1ccc(cc1)C(=O)Nc2ccc(cc2)c3nc4cc(NC(=O)c5ccc(Cl)cc5)ccc4[nH]3 | O116: Lucantoni 2013 | P116: Plouffe 2016 | Q116: Sun 2014 | R116: Plouffe 2016
A117: HC Toxin | B117: HC Toxin | D117: 15.10 | E117: 30.20 | F117: 351.40 | I117: 2.00 | J117: =F117/D117 -> 23.27 | M117: [H][C@@]12C(N([H])[C@@H](C)C(N([H])[C@H](C)C(N([H])[C@](CCCCCC([C@@H]3CO3)=O)([H])C(N1CCC2)=O)=O)=O)=O | O117: vanheer 2020 | P117: vanheer 2020 | Q117: vanheer 2020
A118: BI-847325 | D118: 364.70 | E118: 740.10 | F118: 1000.00 | I118: 2.03 | J118: =F118/D118 -> 2.74 | M118: O=C(NCC)C#CC1=CC2=C(/C(C(N2)=O)=C(NC3=CC=C(CN(C)C)C=C3)/C4=CC=CC=C4)C=C1 | O118: vanheer 2020 | P118: vanheer 2020 | Q118: vanheer 2020
A119: MMV007224 | D119: 320.00 | E119: 654.00 | F119: 948.00 | G119: 1980.00 | I119: 2.04 | J119: =F119/D119 -> 2.96 | K119: =G119/D119 -> 6.19 | M119: Brc1ccc(Nc2nc3ccccc3nc2Nc4ccc(Br)cc4)cc1 | O119: Bowman 2014 | P119: Lucantoni 2013 | Q119: Duffy 2013 | R119: Bowman 2014
A120: GD40 | D120: 257.00 | E120: 528.32 | I120: 2.06 | M120: Cc1cc(c(c(c1)Nc1nc2cc(c(cc2n1Cc1ccc(cc1)C(F)(F)F)F)F)O)CNC(C)(C)C | O120: Dziwornu 2021 | P120: Dziwornu 2021
A121: MMV000073 | B121: Cipargamin/KAE609/NITD609 | D121: 0.50 | E121: 1.03 | G121: 27.70 | I121: 2.06 | K121: =G121/D121 -> 55.40 | M121: CC1Cc2c3cc(F)c(cc3[nH]c2C2(N1)C(=O)Nc1c2cc(Cl)cc1)Cl | O121: This study | P121: This study | Q121: This study | R121: This study
A122: Abexinostat (PCI-24781) | B122: Abexinostat (PCI-24781) | D122: 54.40 | E122: 112.20 | F122: 1000.00 | I122: 2.06 | J122: =F122/D122 -> 18.38 | M122: O=C(NO)C1=CC=C(OCCNC(C2=C(CN(C)C)C3=C(C=CC=C3)O2)=O)C=C1 | O122: vanheer 2020 | P122: vanheer 2020 | Q122: vanheer 2020
A123: MMV000022 | B123: Piperaquine | D123: 15.00 | E123: 31.04 | F123: 4167.00 | G123: 4000.00 | I123: 2.07 | J123: =F123/D123 -> 277.80 | K123: =G123/D123 -> 266.67 | M123: Clc1ccc2c(ccnc2c1)N3CCN(CCCN4CCN(CC4)c5ccnc6cc(Cl)ccc56)CC3 | O123: Peatey 2009 | P123: Plouffe 2016 | Q123: Plouffe 2016 | R123: Reader 2022
A124: MMV000003 | B124: Artemether | D124: 1.80 | E124: 3.73 | F124: 3.13 | G124: 5000.00 | I124: 2.07 | J124: =F124/D124 -> 1.74 | K124: =G124/D124 -> 2777.78 | M124: CO[C@H]1O[C@@H]2O[C@@]3(C)CC[C@H]4[C@H](C)CC[C@@H]([C@H]1C)[C@@]24OO3 | O124: de Lange 2018 | P124: Lucantoni 2013 | Q124: Duffy 2013 | R124: Plouffe 2016
A125: MMV1581373 | B125: KAE609 analog | D125: 0.55 | E125: 1.14 | G125: 0.11 | I125: 2.07 | K125: =G125/D125 -> 0.20 | M125: C[C@H]1CC2=C([C@]3(N1)C4=C(C=CC(=C4)Cl)NC3=O)NC5=CC(=C(C=C25)F)Cl | O125: This study | P125: This study | Q125: This study | R125: This study
A126: GD36 | D126: 286.00 | E126: 598.70 | I126: 2.09 | M126: CC(C)(C)NCc1cc(cc(c1O)Nc1nc2ccccc2n1Cc1ccc(cc1)C(F)(F)F)Cl | O126: Dziwornu 2021 | P126: Dziwornu 2021
A127: MMV011436 | D127: 946.50 | E127: 2000.00 | F127: 2000.00 | I127: 2.11 | J127: =F127/D127 -> 2.11 | M127: CC(C)(C)c1ccc(cc1)C2CC(=C3C(N(C(=O)c4ccccc4Cl)c5ccccc5N=C3C2)c6ccc(F)cc6)O | O127: Duffy 2013 | P127: Duffy 2013 | Q127: Duffy 2013
A128: MMV000013 | B128: HYDROXYCHLOROQUINE SULFATE | D128: 630.96 | E128: 1340.00 | F128: 5000.00 | G128: 5000.00 | I128: 2.12 | J128: 7.92 | K128: =G128/D128 -> 7.92 | M128: CCN(CCO)CCCC(C)Nc1ccnc2cc(Cl)ccc12 | O128: Eastman | P128: Duffy 2013 | Q128: Plouffe 2016 | R128: Plouffe 2016
A129: MI-136 | D129: 175.20 | E129: 375.30 | F129: 1000.00 | I129: 2.14 | J129: 5.71 | M129: N#CC1=CC2=CC(CN3CCC(NC4=C(C=C(CC(F)(F)F)S5)C5=NC=N4)CC3)=CC=C2N1 | O129: vanheer 2020 | P129: vanheer 2020 | Q129: vanheer 2020
A130: MMV666692 | D130: 387.00 | E130: 830.00 | F130: 594.00 | I130: 2.14 | J130: 1.53 | M130: CCCCCCc1cc2C=C(C(=O)Oc2cc1O)c3csc(C=Cc4ccccc4)n3 | O130: Duffy 2013 | P130: Duffy 2013 | Q130: Duffy 2013
A131: Tenovin-6 | B131: Tenovin-6 | D131: 2300.00 | E131: 5000.00 | F131: 1000.00 | I131: 2.17 | J131: 0.43 | M131: O=C(NC(NC1=CC=C(NC(CCCCN(C)C)=O)C=C1)=S)C2=CC=C(C(C)(C)C)C=C2.Cl | O131: Coetzee 2020 | P131: vanheer 2020 | Q131: vanheer 2020
A132: MMV000068 | B132: Tetracycline | D132: 2270.00 | E132: 5000.00 | F132: 5000.00 | G132: 5000.00 | I132: =E132/D132 -> 2.20 | J132: 2.20 | K132: =G132/D132 -> 2.20 | M132: CN(C)[C@H]1[C@@H]2C[C@H]3C(=C(O)[C@]2(O)C(=O)C(=C1O)C(=O)N)C(=O)c4c(O)cccc4[C@@]3(C)O | O132: Duffy 2013 | P132: Duffy 2013 | Q132: Duffy 2013 | R132: Plouffe 2016
A133: MMV665902 | D133: 893.00 | E133: 2000.00 | F133: 2000.00 | I133: 2.24 | J133: 2.24 | M133: OC(CN1C(=N)N(CCN2CCCCC2)c3ccccc13)c4cccc(Br)c4 | O133: Duffy 2013 | P133: Duffy 2013 | Q133: Duffy 2013
A134: MMV023367 | D134: 1192.27 | E134: 2718.00 | G134: 5000.00 | I134: 2.28 | K134: =G134/D134 -> 4.19 | M134: Nc1ncc(cc1c2nc3cc(F)ccc3[nH]2)c4cn[nH]c4 | O134: This study | P134: This study | Q134: This study | R134: This study
A135: MMV019127 | D135: 625.00 | E135: 1436.00 | F135: 935.00 | I135: 2.30 | J135: =F135/D135 -> 1.50 | M135: CCN(Cc1ccccc1)C2CCN(Cc3cc(Br)ccc3O)CC2 | O135: Duffy 2013 | P135: Lucantoni 2013 | Q135: Sun 2014
A136: MMV1578884 | B136: CRS-3123 | D136: 1643.33 | E136: 3776.00 | G136: 5000.00 | I136: 2.30 | K136: =G136/D136 -> 3.04 | M136: Oc1cc(NCCCN[C@@H]2CCOc3c(Br)cc(Br)cc23)nc4ccsc14 | O136: This study | P136: This study | Q136: This study | R136: This study
A137: GD33 | D137: 403.00 | E137: 928.60 | I137: 2.30 | M137: Cc1cc(c(c(c1)Nc1nc2ccccc2n1Cc1ccc(cc1)C(F)(F)F)O)CNC(C)(C)C | O137: Dziwornu 2021 | P137: Dziwornu 2021
A138: MMV642944 | D138: 20.16 | E138: 46.80 | F138: 51.90 | G138: 96.80 | I138: 2.32 | J138: =F138/D138 -> 2.57 | K138: =G138/D138 -> 4.80 | M138: CS(=O)(=O)c1ccc(cc1)c2cnc(N)c(n2)c3ccc(nc3)C(F)(F)F | O138: van der Watt 2018 | P138: van der Watt 2018 | Q138: van der Watt 2018 | R138: van der Watt 2018
A139: Puromycin | B139: Puromycin | D139: 61.95 | E139: 144.55 | F139: 1049.00 | I139: 2.33 | J139: 16.93 | M139: COC1=CC=C(C[C@H](N)C(=O)N[C@@H]2[C@@H](CO)O[C@H]([C@@H]2O)N2C=NC3=C2N=CN=C3N(C)C)C=C1 | O139: Lucantoni 2013 | P139: Lucantoni 2013 | Q139: Sun 2014
A140: MMV665820 | D140: 520.00 | E140: 1214.00 | F140: 2000.00 | I140: 2.33 | J140: 3.85 | M140: COc1ccc2C(=O)C=C(Oc2c1)C(Cl)(Cl)Cl | O140: Duffy 2013 | P140: Duffy 2013 | Q140: Duffy 2013
A141: MMV019266 | D141: 255.00 | E141: 596.00 | F141: 324.00 | G141: 520.00 | I141: 2.34 | J141: 1.27 | K141: =G141/D141 -> 2.04 | M141: Cc1sc2ncnc(Sc3nc4ccccc4[nH]3)c2c1C | O141: D Allesandro 2016 | P141: Lucantoni 2013 | Q141: Duffy 2013 | R141: Bowman 2014
A142: LLY-507 | D142: 160.50 | E142: 377.60 | F142: 1000.00 | I142: 2.35 | J142: 6.23 | M142: N#CC1=CC(C(NCCCN2CCCC2)=O)=CC(C3=CC=CC=C3N4CCN(CCN5C=C(C)C6=C5C=CC=C6)CC4)=C1 | O142: vanheer 2020 | P142: vanheer 2020 | Q142: vanheer 2020
A143: CAY10398 | D143: 182.60 | E143: 433.40 | F143: 1000.00 | I143: 2.37 | J143: 5.48 | M143: ONC(=O)CCCCCNC(=O)c1ccc(cc1)N(C)C | O143: vanheer 2020 | P143: vanheer 2020 | Q143: vanheer 2020
A144: MMV666116 | D144: 548.00 | E144: 1314.00 | F144: 662.00 | I144: 2.40 | J144: 1.21 | M144: Oc1ccccc1CN2CCC3(CCCN(Cc4ccccc4F)C3)C2 | O144: Duffy 2013 | P144: Lucantoni 2013 | Q144: Sun 2014
A145: GD41 | D145: 194.00 | E145: 466.85 | F145: 5000.00 | I145: 2.41 | J145: 25.77 | M145: CCNCc1cc(cc(c1O)Nc1nc2cc(c(cc2n1Cc1ccc(cc1)C(F)(F)F)F)F)Cl | O145: Dziwornu 2021 | P145: Dziwornu 2021 | Q145: Dziwornu 2021
A146: DM-36 | D146: 484.00 | E146: 1180.00 | I146: 2.44 | M146: CC(C)(C)c1nc(on1)c1ccc(CCN2CCC(Nc3nc4ccccc4n3C)CC2)cc1 | O146: Mambwe 2022 | P146: Mambwe 2022
A147: MMV000014 | B147: Lumefantrine | D147: 3.20 | E147: 7.82 | F147: 2.07 | G147: 52.33 | I147: 2.44 | J147: =F147/D147 -> 0.65 | K147: =G147/D147 -> 16.35 | M147: CCCCN(CCCC)CC(O)c1cc(Cl)cc2\C(=C/c3ccc(Cl)cc3)\c4cc(Cl)ccc4c12 | O147: Lelievre 2012 | P147: Lucantoni 2013 | Q147: Duffy 2013 | R147: Plouffe 2016
A148: PM3a | B148: Jozimine A2 | D148: 151.00 | E148: 375.00 | F148: 511.00 | I148: 2.48 | J148: =F148/D148 -> 3.38 | M148: CC1Cc2ccc(c(O)c2C(C)N1)c1c(C)c(c(O)c2c1cccc2OC)c1c(O)c2c(cccc2OC)c(c2ccc3CC(C)NC(C)c3c2O)c1C | O148: Moyo 2020 | P148: Moyo 2020 | Q148: Moyo 2020
A149: Cycloheximidine | B149: Cycloheximidine | D149: 45.49 | E149: 119.50 | I149: 2.63 | M149: CC1CC(C(=O)C(C1)C(CC2CC(=O)NC(=O)C2)O)C | O149: Lucantoni 2013 | P149: Lucantoni 2013
A150: Ellagic acid | D150: 1900.00 | E150: 5000.00 | F150: 1000.00 | I150: 2.63 | J150: =F150/D150 -> 0.53 | M150: OC1=C(O)C=C2C(C3=C4C=C(O)C(O)=C3OC2=O)=C1OC4=O | O150: Coetzee 2020 | P150: vanheer 2020 | Q150: vanheer 2020
A151: GM45 | D151: 400.00 | E151: 1056.00 | F151: 600.00 | I151: 2.64 | J151: =F151/D151 -> 1.50 | M151: CC(C=C1)=CC=C1CNC2=CC(C(F)(F)F)=C(C#N)C3=NC4=CC(Cl)=C(Cl)C=C4N32 | O151: Mayoka 2019 | P151: Mayoka 2019 | Q151: Mayoka 2019
A152: MMV665785 | D152: 161.00 | E152: 426.00 | F152: 148.00 | I152: 2.65 | J152: =F152/D152 -> 0.92 | M152: CC(C)(C)c1ccc(O)c(CNC2CCCCC2)c1 | O152: Duffy 2013 | P152: Lucantoni 2013 | Q152: Sun 2014
A153: MMV665789 | D153: 592.00 | E153: 1592.00 | F153: 1321.00 | I153: 2.69 | J153: =F153/D153 -> 2.23 | M153: CC(NCc1ccccc1)c2cc(Cl)ccc2O | O153: Lucantoni 2013 | P153: Lucantoni 2013 | Q153: Sun 2014
A154: MMV019662 | D154: 1729.00 | E154: 4715.50 | G154: 5000.00 | I154: 2.73 | K154: =G154/D154 -> 2.89 | M154: COc1ccc(cc1)N2CCN(CC2)C(CNC(=O)C3CCCCC3)c4ccc5OCOc5c4 | O154: This study | P154: This study | Q154: This study | R154: This study
A155: MMV665929 | D155: 720.00 | E155: 2000.00 | F155: 2000.00 | I155: 2.78 | J155: =F155/D155 -> 2.78 | M155: CCCCNCC(O)(c1ccc(Cl)cc1)c2ccc(Cl)cc2 | O155: Lucantoni 2013 | P155: Duffy 2013 | Q155: Duffy 2013
A156: MMV000634 | D156: 634.20 | E156: 1790.00 | F156: 2000.00 | I156: 2.82 | J156: =F156/D156 -> 3.15 | M156: CC1CCCCN1CCCNC(=O)c2ccc3c(c2)sc4nc(cn34)c5ccc(F)cc5 | O156: Lucantoni 2013 | P156: Duffy 2013 | Q156: Duffy 2013
A157: MMV000788 | D157: 697.00 | E157: 2000.00 | F157: 2000.00 | G157: 5000.00 | I157: 2.87 | J157: =F157/D157 -> 2.87 | K157: =G157/D157 -> 7.17 | M157: CC(C)OCc1cc(CN2CCN(CC2)c3cccc(Cl)c3)c(O)c4ncccc14 | O157: Duffy 2013 | P157: Duffy 2013 | Q157: Duffy 2013 | R157: Plouffe 2016
A158: MMV000061 | B158: Methylene Blue | D158: 21.70 | E158: 62.70 | G158: 457.00 | I158: 2.89 | K158: =G158/D158 -> 21.06 | M158: CN(C)c1ccc2nc3ccc(cc3[s+]c2c1)N(C)C | O158: This study | P158: This study | Q158: This study | R158: This study
A159: B-II.4 | B159: B-II.4 | D159: 129.97 | E159: 382.10 | F159: 5000.00 | I159: 2.94 | J159: =F159/D159 -> 38.47 | M159: CCN(CC1=CC=C(Cl)C=C1O)CCNC2=NC3=CC=CC=C3N2 | O159: Leshabane 2021 | P159: Leshabane 2021 | Q159: Leshabane 2021
A160: MMV019918 | D160: 280.00 | E160: 824.00 | F160: 406.90 | G160: 320.00 | I160: 2.94 | J160: =F160/D160 -> 1.45 | K160: =G160/D160 -> 1.14 | M160: Clc1cc(Br)ccc1c2oc(CNCC3CCNCC3)cc2 | O160: Bowman 2014 | P160: Duffy 2013 | Q160: D Allesandro 2016 | R160: Bowman 2014
A161: ACT-451840 | B161: ACT-451840 | D161: 0.60 | E161: 1.80 | I161: 3.00 | M161: CC(C)(C)c1ccc(cc1)/C=C/C(=O)N(Cc1ccc(cc1)N1CCN(CC1)C(C)=O)[C@@H](Cc1ccccc1)C(=O)N1CCN(Cc2ccc(C#N)cc2)CC1 | O161: Ng 2016 | P161: Ng 2016
A162: MMV665941 | D162: 255.00 | E162: 769.00 | F162: 157.90 | G162: 843.00 | I162: 3.02 | J162: =F162/D162 -> 0.62 | K162: =G162/D162 -> 3.31 | M162: CN(C)c1ccc(cc1)C(O)(c2ccc(cc2)N(C)C)c3ccc(cc3)N(C)C | O162: Duffy 2013 | P162: Duffy 2013 | Q162: D Allesandro 2016 | R162: Lucantoni 2015
A163: MMV000848 | D163: 660.00 | E163: 1997.00 | F163: 2000.00 | G163: 3600.00 | I163: 3.03 | J163: =F163/D163 -> 3.03 | K163: =G163/D163 -> 5.45 | M163: OC(CNC1CCCC1)Cn2c3ccccc3c4ccccc24 | O163: Duffy 2013 | P163: Lucantoni 2013 | Q163: Duffy 2013 | R163: Sanders 2014
A164: MMV674143 | B164: Cladosporin | D164: 65.89 | E164: 199.40 | G164: 1000.67 | I164: 3.03 | K164: =G164/D164 -> 15.19 | M164: C[C@H]1CCC[C@H](CC2Cc3cc(O)cc(O)c3C(=O)O2)O1 | O164: This study | P164: This study | Q164: This study | R164: This study
A165: MMV009015 | D165: 676.50 | E165: 2049.00 | F165: 5000.00 | I165: 3.03 | J165: =F165/D165 -> 7.39 | M165: OC(COc1ccccc1C(=O)CCc2ccccc2)CN3CCCCC3 | O165: Duffy 2013 | P165: Lucantoni 2013 | Q165: Sun 2014
A166: MMV000056 | B166: Ferroquine (SSR97193) | D166: 9.50 | E166: 29.10 | G166: 5000.00 | I166: 3.06 | K166: =G166/D166 -> 526.32 | M166: CN(CC1=C(CNc2ccnc3c2ccc(c3)Cl)C=C(C1)[Fe]C1=CC=CC1)C | O166: This study | P166: This study | Q166: This study | R166: This study
A167: MMV000443 | D167: 439.00 | E167: 1355.00 | F167: 1321.00 | I167: 3.09 | J167: =F167/D167 -> 3.01 | M167: CCOc1ccc2OCN(Cc3ccc(Cl)cc3)Cc2c1 | O167: Duffy 2013 | P167: Lucantoni 2013 | Q167: Sun 2014
A168: MMV034136 | D168: 574.69 | E168: 1793.00 | I168: 3.12 | O168: van der Watt 2018 | P168: van der Watt 2018
A169: KS47 | D169: 1560.00 | E169: 4920.00 | F169: 1680.00 | I169: 3.15 | J169: =F169/D169 -> 1.08 | M169: N#CC1=C(C2=CC=C(C(OC)=O)C=C2)C=C(NCCNCC)N3C1=NC4=C3C=CC=C4 | O169: Singh 2017 | P169: Singh 2017 | Q169: Singh 2017
A170: WEHI-842 | B170: WEHI-842 | D170: 1580.00 | E170: 5000.00 | F170: 5000.00 | I170: 3.16 | J170: =F170/D170 -> 3.16 | M170: CC(C)CC(NC(=O)C(NC(=O)C(CCONC(=N)N)NC(=O)OCc1ccccc1)C(C)C)C(O)CC(=O)NCCc1ccccc1 | O170: Jennison 2019 | P170: Jennison 2019 | Q170: Jennison 2019
A171: MMV665786 | D171: 408.00 | E171: 1308.00 | F171: 2000.00 | I171: 3.21 | J171: =F171/D171 -> 4.90 | M171: Clc1ccc2OC(=O)C=C(NC3CCN(CCCc4ccccc4)CC3)c2c1 | O171: Lucantoni 2013 | P171: Duffy 2013 | Q171: Duffy 2013
A172: MMV000015 | B172: Mefloquine | D172: 16.00 | E172: 51.70 | F172: 100.00 | G172: 131.95 | I172: 3.23 | J172: =F172/D172 -> 6.25 | K172: =G172/D172 -> 8.25 | M172: O[C@H]([C@H]1CCCCN1)c2cc(nc3c(cccc23)C(F)(F)F)C(F)(F)F | O172: Duffy 2017 | P172: Lucantoni 2013 | Q172: Duffy 2013 | R172: Plouffe 2016
A173: MMV670325 | D173: 1365.00 | E173: 4492.00 | G173: 3715.67 | I173: 3.29 | K173: =G173/D173 -> 2.72 | M173: CCOc1ccc(Cl)c2[C@@H](CN)OB(O)c12 | O173: This study | P173: This study | Q173: This study | R173: This study
A174: MMV000014 | B174: Lumefantrine | D174: 3.00 | E174: 9.88 | G174: 2382.30 | I174: 3.29 | K174: =G174/D174 -> 794.10 | M174: CCCCN(CCCC)CC(O)c1cc(Cl)cc2\C(=C/c3ccc(Cl)cc3)\c4cc(Cl)ccc4c12 | O174: This study | P174: This study | Q174: This study | R174: This study
A175: MMV390482 | B175: SJ733 | D175: 30.00 | E175: 102.70 | G175: 367.50 | I175: 3.42 | K175: =G175/D175 -> 12.25 | M175: N#Cc1cc(ccc1F)NC(=O)C1c2ccccc2C(=O)N(C1c1cccnc1)CC(F)(F)F | O175: This study | P175: This study | Q175: This study | R175: This study
A176: KS41 | D176: 660.00 | E176: 2270.00 | F176: 690.00 | I176: 3.44 | J176: =F176/D176 -> 1.05 | M176: ClC(C=C1)=CC=C1C2=C(C#N)C(N3C(NCCNCC)=C2)=NC4=C3C=CC=C4 | O176: Singh 2017 | P176: Singh 2017 | Q176: Singh 2017
A177: GD42 | D177: 197.00 | E177: 692.13 | I177: 3.51 | M177: CC(C)(C)NCc1cc(cc(c1O)Nc1nc2cc(c(cc2n1Cc1ccc(cc1)C(F)(F)F)F)F)Cl | O177: Dziwornu 2021 | P177: Dziwornu 2021
A178: DDD107498 | B178: M5717 | D178: 1.00 | E178: 3.57 | F178: 1.61 | G178: 0.25 | I178: 3.57 | J178: =F178/D178 -> 1.61 | K178: =G178/D178 -> 0.25 | M178: O=C(NCCN1CCCC1)c1cc(nc2ccc(F)cc12)c1ccc(cc1)CN1CCOCC1 | O178: Baragana 2015 | P178: Reader 2022 | Q178: Plouffe 2016 | R178: Reader 2022
A179: MMV643121 | B179: M5717 (DDD107498) | D179: 1.00 | E179: 3.57 | G179: 0.25 | I179: 3.57 | K179: =G179/D179 -> 0.25 | M179: O=C(NCCN1CCCC1)c1cc(nc2ccc(F)cc12)c1ccc(cc1)CN1CCOCC1 | O179: This study | P179: This study | Q179: This study | R179: This study
A180: MMV000005 | B180: Artesunate | D180: 0.82 | E180: 2.96 | F180: 2.53 | G180: 5000.00 | I180: 3.61 | J180: =F180/D180 -> 3.09 | K180: =G180/D180 -> 6097.56 | M180: C[C@@H]1CC[C@H]2[C@@H](C)[C@H](OC(=O)CCC(=O)O)O[C@@H]3O[C@@]4(C)CC[C@@H]1[C@@]23OO4 | O180: Lucantoni 2013 | P180: Lucantoni 2013 | Q180: Duffy 2013 | R180: Plouffe 2016
A181: MMV000001 | B181: Amodiaquine | D181: 15.00 | E181: 54.30 | G181: 5000.00 | I181: 3.62 | K181: =G181/D181 -> 333.33 | M181: CCN(CC)Cc1cc(Nc2ccnc3cc(Cl)ccc23)ccc1O | O181: This study | P181: This study | Q181: This study | R181: This study
A182: MMV665841 | D182: 146.00 | E182: 532.00 | F182: 591.00 | I182: 3.64 | J182: =F182/D182 -> 4.05 | M182: CCCc1cc(O)c2C3=C(CN(C)CC3)C(=O)Oc2c1 | O182: Duffy 2013 | P182: Lucantoni 2013 | Q182: Duffy 2013
A183: coumarin-SAHA | B183: coumarin-SAHA | D183: 68.50 | E183: 249.70 | F183: 1000.00 | I183: 3.65 | J183: 14.60 | M183: O=C(CCCCCCC(NO)=O)NC1=CC2=C(C(C)=CC(O2)=O)C=C1 | O183: vanheer 2020 | P183: vanheer 2020 | Q183: vanheer 2020
A184: CUDC-101 | B184: CUDC-101 | D184: 35.60 | E184: 133.10 | F184: 152.00 | I184: 3.74 | J184: 4.27 | M184: COC1=CC2=C(C(NC3=CC=CC(C#C)=C3)=NC=N2)C=C1OCCCCCCC(NO)=O | O184: vanheer 2020 | P184: vanheer 2020 | Q184: Sun 2014
A185: MMV000004 | B185: DHA | D185: 0.24 | E185: 0.90 | F185: 2.17 | G185: 1500.00 | I185: 3.75 | J185: 9.04 | K185: =G185/D185 -> 6250.00 | M185: C[C@@H]1CC[C@H]2[C@@H](C)[C@@H](O)O[C@@H]3O[C@@]4(C)CC[C@@H]1[C@@]23OO4 | O185: Lucantoni 2013 | P185: Lucantoni 2013 | Q185: Duffy 2013 | R185: Coertzen 2018
A186: MMV396703 | D186: 406.00 | E186: 1531.00 | F186: 3722.00 | I186: 3.77 | J186: 9.17 | M186: c12c(ncnc1NCCN(CC)CC)c3c(ccc(Cl)c3)[nH]2 | O186: Duffy 2013 | P186: Lucantoni 2013 | Q186: Sun 2014
A187: MMV666061 | D187: 530.00 | E187: 2000.00 | F187: 899.00 | I187: 3.77 | J187: 1.70 | M187: COc1cccc(O)c1CN2CCC3(CCCN(Cc4ccc(F)cc4)C3)C2 | O187: Duffy 2013 | P187: Duffy 2013 | Q187: Duffy 2013
A188: KS66 | D188: 1280.00 | E188: 5000.00 | F188: 2570.00 | I188: 3.91 | J188: 2.01 | M188: CC1=C(NCCNCC)N2C(C(C#N)=C1C3=CC=C(C(F)(F)F)C=C3)=NC4=C2C=CC=C4 | O188: Singh 2017 | P188: Singh 2017 | Q188: Singh 2017
A189: PBI.58 | D189: 1276.00 | E189: 5000.00 | F189: 3180.00 | I189: 3.92 | J189: 2.49 | M189: N#CC1=C(C(F)(F)F)C=C(NC2=CC(OC(F)(F)F)=CC=C2)N3C1=NC4=CC=CC=C43 | O189: Leshabane 2021 | P189: Leshabane 2021 | Q189: Leshabane 2021
A190: MMV085583 | D190: 107.20 | E190: 423.00 | F190: 1049.00 | G190: 5000.00 | I190: 3.95 | J190: 9.79 | K190: =G190/D190 -> 46.64 | M190: CCCCCC(=O)N1C(C2=C(O)CC(CC2=Nc3ccccc13)c4ccc(OC)c(OC)c4)c5ccc(cc5)C(F)(F)F | O190: Lucantoni 2013 | P190: Lucantoni 2013 | Q190: Sun 2014 | R190: Malebo 2020
A191: MMV665831 | D191: 205.00 | E191: 810.00 | F191: 371.00 | I191: 3.95 | J191: 1.81 | M191: CCOC(=O)c1c(NC(=O)c2ccccc2)sc3c(O)c(CN(CC)CC)ccc13 | O191: Duffy 2013 | P191: Duffy 2013 | Q191: Duffy 2013
A192: MMV020438 | D192: 1150.27 | E192: 4554.00 | G192: 5000.00 | I192: 3.96 | K192: =G192/D192 -> 4.35 | M192: COc1cc(Nc2ccc3cc(ccc3n2)S(=O)(=O)N4CCCCC4C)cc(OC)c1OC | O192: This study | P192: This study | Q192: This study | R192: This study
A193: MMV000011 | B193: Doxycycline hydrochloride | D193: 1258.93 | E193: 5000.00 | F193: 5000.00 | G193: 5000.00 | I193: 3.97 | J193: =F193/D193 -> 3.97 | K193: 3.97 | M193: C[C@@H]1[C@H]2[C@H](O)[C@H]3[C@H](N(C)C)C(=C(C(=O)N)C(=O)[C@@]3(O)C(=C2C(=O)c4c(O)cccc14)O)O | O193: Yuan 2009 | P193: Plouffe 2016 | Q193: Plouffe 2016 | R193: Plouffe 2016
A194: MMV000028 | B194: Trimethoprim | D194: 1258.93 | E194: 5000.00 | F194: 5000.00 | G194: 5000.00 | I194: 3.97 | J194: =F194/D194 -> 3.97 | K194: 3.97 | M194: COc1cc(Cc2cnc(N)nc2N)cc(OC)c1OC | O194: Yuan 2009 | P194: Duffy 2013 | Q194: Duffy 2013 | R194: Plouffe 2016
A195: MMV000043 | B195: Tafenoquine | D195: 1000.00 | E195: 3988.00 | G195: 5000.00 | I195: 3.99 | K195: 5.00 | M195: COc1cc(C)c2c(Oc3cccc(c3)C(F)(F)F)c(OC)cc(NC(C)CCCN)c2n1 | O195: This study | P195: This study | Q195: This study | R195: This study
A196: MMV019721 | B196: MMV019721 | D196: 844.30 | E196: 3379.00 | G196: 1841.33 | I196: =E196/D196 -> 4.00 | K196: 2.18 | M196: CCN(CC)S(=O)(=O)c1ccc(Cl)c(c1)C(=O)Nc2ccc3nc(C)sc3c2 | O196: This study | P196: This study | Q196: This study | R196: This study
A197: MMV666054 | D197: 499.44 | E197: 2000.00 | F197: 1075.00 | G197: 5000.00 | I197: 4.00 | J197: =F197/D197 -> 2.15 | K197: 10.01 | M197: COc1ccc(cc1)C(=O)NC(c2ccc(Cl)cc2Cl)c3cc(Cl)c4cccnc4c3O | O197: Lucantoni 2013 | P197: Duffy 2013 | Q197: Duffy 2013 | R197: Plouffe 2016
A198: MMV020500 | D198: 62.40 | E198: 252.00 | F198: 235.00 | I198: 4.04 | J198: 3.77 | M198: CNCCCNc1ccnc2cc(Cl)ccc12 | O198: Lucantoni 2013 | P198: Lucantoni 2013 | Q198: Sun 2014
A199: MMV007092 | D199: 1200.00 | E199: 5000.00 | F199: 5000.00 | G199: 5000.00 | I199: 4.17 | J199: 4.17 | K199: =G199/D199 -> 4.17 | M199: CCOc1ccc(CN2CCN(CC(O)COc3ccc(OCC(O)CN4CCN(Cc5ccc(OCC)cc5)CC4)cc3)CC2)cc1 | O199: Duffy 2013 | P199: Plouffe 2016 | Q199: Sun 2014 | R199: Plouffe 2016
A200: MMV665875 | D200: 140.05 | E200: 588.00 | F200: 372.00 | I200: 4.20 | J200: 2.66 | M200: CN1C(=O)N(C)c2cc(CNCCNc3ccnc4cc(Cl)ccc34)ccc12 | O200: Lucantoni 2013 | P200: Duffy 2013 | Q200: Sun 2014
... 298 more rows

Sheet Figure S1 ABS LGc
A1: Source Data for Supplementary Figure S1
A2: ABS-LGc
A3: Compound identifier | B3: Trivial name | D3: Final ABS IC50 (nM) | E3: Final iGc IC50 (nM) | F3: Final LGc IC50 (nM) | G3: Final mGc IC50 (nM) | I3: FC iGC-ABS | J3: FC LGc-ABS | K3: FC mGc-ABS | M3: SMILE | O3: Ref for ABS activity | P3: Ref for iGc activity | Q3: Ref for LGc activity | R3: Ref for mGc activity
A4: JR7 | D4: 5000.00 | F4: 9.34 | J4: =F4/D4 -> 0.00 | O4: Reader 2022 | Q4: Reader 2022
A5: MMV303733 | D5: 5000.00 | F5: 10.47 | J5: 0.00 | M5: COc1ccc(CNC(=O)C(NS(=O)(=O)c2ccc3nc(C)sc3c2)C(C)C)cc1 | O5: Reader 2021 | Q5: Reader 2021
A6: MMV666686 | D6: 352.00 | E6: 2000.00 | F6: 1.00 | G6: 2060.00 | I6: =E6/D6 -> 5.68 | J6: 0.00 | K6: =G6/D6 -> 5.85 | M6: COc1ccccc1C(=O)ON=C(N)Cc2cccc3ccccc23 | O6: Lucantoni 2013 | P6: Duffy 2013 | Q6: Duffy 2013 | R6: Bowman 2014
A7: MMV666687 | D7: 270.00 | E7: 2000.00 | F7: 1.00 | G7: 1660.00 | I7: =E7/D7 -> 7.41 | J7: 0.00 | K7: =G7/D7 -> 6.15 | M7: COc1cc(cc(OC)c1OC)C(=O)ON=C(N)Cc2cccc3ccccc23 | O7: Bowman 2014 | P7: Duffy 2013 | Q7: Duffy 2013 | R7: Bowman 2014
A8: NCGC00091563 | B8: Tetramethylthiuram disulfide | D8: 1995.26 | F8: 19.95 | J8: 0.01 | M8: CN(C)C(=S)SSC(=S)N(C)C | O8: Eastman | Q8: Sun 2014
A9: JR16 | D9: 5000.00 | F9: 55.13 | J9: 0.01 | O9: Reader 2022 | Q9: Reader 2022
A10: TCMDC-125520 | D10: 724.22 | F10: 9.80 | J10: 0.01 | M10: CC(C)c1ccc(NC(=S)NN=Cc2ccccn2)cc1 | O10: Almela 2015 | Q10: Almela 2015
A11: JR8 | D11: 5000.00 | F11: 77.19 | J11: 0.02 | O11: Reader 2022 | Q11: Reader 2022
A12: TCMDC-124011 | D12: 993.00 | F12: 20.00 | J12: 0.02 | M12: Clc1c(-c2ccc(Cl)cc2)c2ccc(Cl)cc2s1=O | O12: Miguel-Blanco 2017 | Q12: Almela 2015
A13: MMV1633967 | D13: 4055.00 | F13: 82.72 | J13: 0.02 | M13: O=C(OCC)NC3=NC2=NC(=C(C1=CC=CC=C1)N=C2C(=C3)NC(CC(CN(CC)CC)C)C)C4=CC=CC=C4 | O13: Reader 2021 | Q13: Reader 2021
A14: JR9 | D14: 5000.00 | F14: 104.70 | J14: 0.02 | O14: Reader 2022 | Q14: Reader 2022
A15: MMV1580843 | D15: 5000.00 | F15: 107.80 | J15: 0.02 | M15: C[Si]1(C)CCN(Cc2cc(c3ccc(Cl)cc3)n(n2)c4ccc(Cl)cc4)CC1 | O15: Reader 2021 | Q15: Reader 2021
A16: HW29 | D16: 1.68 | E16: 24.70 | F16: 0.04 | I16: =E16/D16 -> 14.70 | J16: 0.02 | M16: O=S(=O)(NC1OC2OC3(C)CCC4C(C)CCC(C1C)C24OO3)N1CCN(CC1)c1ccccn1 | O16: Wong 2020 | P16: Wong 2020 | Q16: Wong 2020
A17: MMV1782353 | D17: 2293.00 | F17: 58.40 | J17: 0.03 | M17: CC(C)(C)NC(=O)[C@@H]1CN(Cc2cnc3occc3c2)CCN1C[C@@H](O)C[C@@H](Cc4ccccc4)C(=O)N[C@@H]5[C@H](O)Cc6ccccc56 | O17: Reader 2021 | Q17: Reader 2021
A18: MMV1581558 | D18: 5000.00 | F18: 130.10 | J18: 0.03 | M18: Cc1cccc(C)c1C(=O)Nc2nc(cc3ccccc23)c4ccccn4 | O18: Reader 2021 | Q18: Reader 2021
A19: Sirtinol | B19: Sirtinol | D19: 5000.00 | E19: 5000.00 | F19: 130.30 | I19: =E19/D19 -> 1.00 | J19: 0.03 | M19: O=C(N([H])C(C1=CC=CC=C1)C)C(C=CC=C2)=C2/N=C/C3=C(O)C=CC4=C3C=CC=C4 | O19: Coetzee 2020 | P19: vanheer 2020 | Q19: Coetzee 2020
A20: MMV642550 | D20: 3460.00 | F20: 109.50 | J20: 0.03 | M20: S1C(=NC=C1)NC(C3=C(O)C2=NC=CC=C2C=C3)C4=CC(=CC=C4)O | O20: Reader 2021 | Q20: Reader 2021
A21: MMV1581551 | D21: 5000.00 | F21: 181.70 | J21: 0.04 | M21: C1CN(CCN1)c2nn3c(nnc3c4ccccc24)c5ccccc5 | O21: Reader 2021 | Q21: Reader 2021
A22: MMV1580488 | B22: ML324 | D22: 2060.00 | E22: 188.00 | F22: 77.40 | I22: =E22/D22 -> 0.09 | J22: 0.04 | M22: O=C(NCCCN(C)C)C3=CC=C(C2=CC1=CC=CN=C1C(=C2)O)C=C3 | O22: Reader 2021 | P22: Reader 2021 | Q22: Reader 2021
A23: TCMDC-137282 | D23: 647.75 | F23: 26.67 | J23: 0.04 | M23: CS(O)(=O)=O.FC(F)(F)COc1ccc(CCNCCCCNCCc2ccc(OCC(F)(F)F)c3ccccc23)c2ccccc12 | O23: Almela 2015 | Q23: Almela 2015
A24: MMV1782217 | D24: 5000.00 | F24: 209.50 | J24: 0.04 | M24: Cc1onc(NS(=O)(=O)c2ccc(cc2)c3ccc(F)cc3F)c1 | O24: Reader 2021 | Q24: Reader 2021
A25: MMV1579779 | D25: 5000.00 | F25: 214.10 | J25: 0.04 | M25: CC(=O)Nc1cc(NS(=O)(=O)c2ccc(Cl)cc2)cc3c(Cl)n[nH]c13 | O25: Reader 2021 | Q25: Reader 2021
A26: TCMDC-125769 | D26: 998.00 | F26: 43.33 | J26: 0.04 | M26: Br.Cc1ccnc(Nc2nc(cs2)-c2ccccn2)c1 | O26: Almela 2015 | Q26: Almela 2015
A27: MMV003291 | B27: Leflunomide | D27: 5000.00 | F27: 223.87 | J27: 0.04 | M27: FC(F)(F)C2=CC=C(NC(=O)C1=C(ON=C1)C)C=C2 | O27: Reader 2021 | Q27: Sun 2014
A28: TCMDC-137621 | D28: 1143.88 | F28: 53.33 | J28: 0.05 | M28: Cl.CCCCCCC(N)c1ccc(OCCCOc2ccc(cc2)C(N)CCCCCC)cc1 | O28: Almela 2015 | Q28: Almela 2015
A29: MMV692008 | D29: 21.00 | F29: 1.00 | J29: 0.05 | M29: CSc1ccc(CCC(=O)NC(C)CNC(=O)C(O)C(C)(C)CO)cc1 | O29: Schalkwijk 2019 | Q29: Schalkwijk 2019
A30: MMV002015 | B30: Clemizole | D30: 5000.00 | F30: 238.80 | J30: 0.05 | M30: ClC4=CC=C(C[N]2C1=C(C=CC=C1)N=C2CN3CCCC3)C=C4 | O30: Reader 2021 | Q30: Reader 2021
A31: MMV1580846 | D31: 5000.00 | F31: 239.50 | J31: 0.05 | M31: COc1ccc(SC(=O)N[C@H](CCC(=O)O)C(=O)O)cc1 | O31: Reader 2021 | Q31: Reader 2021
A32: MMV1580800 | D32: 5000.00 | F32: 242.00 | J32: 0.05 | M32: ClC2=C(OC1=C(C#N)C=C([N](=O)=O)C=C1)C=CC=C2 | O32: Reader 2021 | Q32: Reader 2021
A33: NCGC00016255 | B33: Sulfinpyrazone | D33: 5000.00 | F33: 251.19 | J33: 0.05 | M33: O=C1C(CCS(=O)C2=CC=CC=C2)C(=O)N(N1C1=CC=CC=C1)C1=CC=CC=C1 | O33: Eastman | Q33: Sun 2014
A34: MMV688122 | D34: 2110.00 | F34: 110.00 | J34: 0.05 | M34: Cc1cccc(n1)c2nc(Nc3ccncn3)c4sccc4n2 | O34: Duffy 2017 | Q34: Duffy 2017
A35: Epoxomycin | B35: Epoxomycin | D35: 8.00 | E35: 12.10 | F35: 0.42 | G35: 3.80 | I35: =E35/D35 -> 1.51 | J35: 0.05 | K35: =G35/D35 -> 0.48 | M35: CC[C@H](C)[C@@H](C(=O)N[C@@H]([C@@H](C)O)C(=O)N[C@@H](CC(C)C)C(=O)[C@]1(CO1)C)NC(=O)[C@H]([C@@H](C)CC)N(C)C(=O)C | O35: Lelievre 2012 | P35: D'Allesandro 2015 | Q35: Lelievre 2012 | R35: Bowman 2014
A36: MMV1006203 | B36: 1,1-dioxide 1-Thioflavone | D36: 5000.00 | F36: 266.70 | J36: 0.05 | M36: O=C1C=C(c2ccccc2)S(=O)(=O)c3ccccc13 | O36: Reader 2021 | Q36: Reader 2021
A37: MMV124656 | D37: 5000.00 | F37: 267.90 | J37: 0.05 | M37: CCOc1ccc(cc1)C(=O)NCCc2ccccc2 | O37: Reader 2021 | Q37: Reader 2021
A38: MMV002731 | B38: Ciclopirox | D38: 4800.00 | F38: 259.80 | J38: 0.05 | M38: O=[C]1[N](O)C(=CC(=C1)C)C2CCCCC2 | O38: Reader 2021 | Q38: Reader 2021
A39: MMV1579778 | D39: 5000.00 | F39: 277.20 | J39: 0.06 | M39: C[C@H](NC(CC(=O)c1ccccc1C(F)(F)F)C(=O)O)c2ccccc2 | O39: Reader 2021 | Q39: Reader 2021
A40: NCGC00017010 | B40: Methylatropine nitrate | D40: 5000.00 | F40: 281.84 | J40: 0.06 | M40: C[N+]2(C)[C@H]1C[C@@H](C[C@@H]2CC1)OC(=O)C(CO)c3ccccc3.[O-][N+]([O-])=O | O40: Eastman | Q40: Sun 2014
A41: MMV1582495 | D41: 5000.00 | F41: 320.80 | J41: 0.06 | M41: C1Oc2ccc(\C=C\c3nc4ccccc4[nH]3)cc2O1 | O41: Reader 2021 | Q41: Reader 2021
A42: MMV1580839 | D42: 5000.00 | F42: 332.30 | J42: 0.07 | M42: Nc1nc(NC2Cc3ccc(F)cc3C2)nc(n1)N4CCCCC4 | O42: Reader 2021 | Q42: Reader 2021
A43: MMV687273 | B43: SQ109 | D43: 1390.00 | E43: 383.00 | F43: 104.50 | I43: =E43/D43 -> 0.28 | J43: 0.08 | M43: CC(=CCC\C(=C/CNCCNC1C2CC3CC(CC1C3)C2)\C)C | O43: Reader 2021 | P43: Reader 2021 | Q43: Reader 2021
A44: TCMDC-137503 | D44: 661.30 | F44: 50.00 | J44: 0.08 | M44: Cl.COc1ccc2nc3cc(Cl)ccc3c(NCCCCCCNc3c4ccc(Cl)cc4nc4ccc(OC)cc34)c2c1 | O44: Almela 2015 | Q44: Almela 2015
A45: MMV1634491 | D45: 2633.07 | F45: 208.20 | J45: 0.08 | M45: ClC1=C(C=CC(=C1)Cl)\C=C(/[N]2C=NC=C2)C(=O)C3=CC=C(Cl)C=C3 | O45: Reader 2021 | Q45: Reader 2021
A46: TCMDC-137319 | D46: 996.00 | F46: 84.00 | J46: 0.08 | M46: CS(O)(=O)=O.COc1cc2CCCCc2cc1CCNCCCCNCCc1cc2CCCCc2cc1OC | O46: Almela 2015 | Q46: Almela 2015
A47: MMV1174026 | D47: 5000.00 | F47: 427.80 | J47: 0.09 | M47: O(C1=CC=C(N)C=C1)C2=CC=C(C(C)(C)C)C=C2 | O47: Reader 2021 | Q47: Reader 2021
A48: TCMDC-137848 | D48: 924.74 | F48: 80.00 | J48: 0.09 | M48: CS(O)(=O)=O.CCCCOc1c(CCNCCCCNCCc2cc(OC)c3ccccc3c2OCCCC)cc(OC)c2ccccc12 | O48: Almela 2015 | Q48: Almela 2015
A49: MMV1580847 | D49: 5000.00 | F49: 434.30 | J49: 0.09 | M49: CCCCCc1ccc(cc1)C(=O)NCCn2cc(CCCCCc3cnc(N)[nH]3)nn2 | O49: Reader 2021 | Q49: Reader 2021
A50: MMV180402 | B50: 2-Adamantanamine | D50: 5000.00 | F50: 434.80 | J50: 0.09 | M50: NC2C1CC3CC(C1)CC2C3 | O50: Reader 2021 | Q50: Reader 2021
A51: MMV1782402 | D51: 5000.00 | F51: 434.80 | J51: 0.09 | M51: Cc1cc(C)n2nc(nc2n1)C(=O)NS(=O)(=O)c3c(C)cccc3OC(F)(F)F | O51: Reader 2021 | Q51: Reader 2021
A52: JR33 | D52: 5000.00 | F52: 439.00 | J52: 0.09 | O52: Reader 2022 | Q52: Reader 2022
A53: NCGC00159380 | B53: Benzoyl peroxide | D53: 5000.00 | F53: 446.68 | J53: 0.09 | M53: O=C(OOC(=O)c1ccccc1)c2ccccc2 | O53: Eastman | Q53: Sun 2014
A54: NCGC00015479 | B54: Genistein | D54: 5000.00 | F54: 446.68 | J54: 0.09 | M54: OC1=CC=C(C=C1)\C2=C\OC3=C(C(=CC(=C3)O)O)C2=O | O54: Eastman | Q54: Sun 2014
A55: TCMDC-137952 | D55: 916.62 | F55: 83.33 | J55: 0.09 | M55: CS(O)(=O)=O.CCCOc1ccc(CCNCCCCNCCc2ccc(OCCC)c3ccccc23)c2ccccc12 | O55: Almela 2015 | Q55: Almela 2015
A56: TCMDC-125522 | D56: 768.00 | F56: 70.00 | J56: 0.09 | M56: Clc1ccc(NC(=S)NN=Cc2ccccn2)cc1Cl | O56: Miguel-Blanco 2017 | Q56: Almela 2015
A57: MMV1578555 | D57: 5000.00 | F57: 457.60 | J57: 0.09 | M57: Fc1ccc(NC(=O)C2=NN(C(=O)C=C2Cl)c3ccccc3)cc1 | O57: Reader 2021 | Q57: Reader 2021
A58: MMV1634399 | D58: 3010.00 | F58: 281.40 | J58: 0.09 | M58: O(C3=CC2=C1N(CCC1=C(N=C2C=C3)C)CCC4=CC=CC=C4)C5=CC=CC=C5 | O58: Reader 2021 | Q58: Reader 2021
A59: MMV1645051 | B59: Furvina | D59: 5000.00 | F59: 485.50 | J59: 0.10 | M59: BrC1=CC=C(O1)\C=C(/Br)[N](=O)=O | O59: Reader 2021 | Q59: Reader 2021
A60: NCGC00163242 | B60: (+)-TUBOCURARINE | D60: 5000.00 | F60: 501.19 | J60: 0.10 | M60: [Cl-].Cl.Oc7ccc1cc7Oc5cc6[C@H](Cc4ccc(Oc2c3[C@@H](C1)[N+](C)(C)CCc3cc(OC)c2O)cc4)N(C)CCc6cc5OC | O60: Eastman | Q60: Sun 2014
A61: NCGC00181014 | B61: ALFACALCIDOL | D61: 5000.00 | F61: 501.19 | J61: 0.10 | M61: C=C1C(\C[C@@H](O)C[C@@H]1O)=C\C=C2\CCC[C@]3(C)[C@H](CC[C@@H]23)[C@H](C)CCCC(C)C | O61: Eastman | Q61: Sun 2014
A62: NCGC00017093 | B62: Cephapirin sodium salt | D62: 5000.00 | F62: 501.19 | J62: 0.10 | M62: [Na+].[O-]C(=O)C=2N3C(=O)[C@@H](NC(=O)CSc1ccncc1)[C@H]3SCC=2COC(C)=O | O62: Eastman | Q62: Sun 2014
A63: NCGC00166097 | B63: Cinnamyl alcohol | D63: 5000.00 | F63: 501.19 | J63: 0.10 | M63: OCC=Cc1ccccc1 | O63: Eastman | Q63: Sun 2014
A64: NCGC00164531 | B64: CYSTINE | D64: 5000.00 | F64: 501.19 | J64: 0.10 | M64: N[C@@H](CSSC[C@H](N)C(=O)O)C(=O)O | O64: Eastman | Q64: Sun 2014
A65: NCGC00015380 | B65: DIAZOXIDE | D65: 5000.00 | F65: 501.19 | J65: 0.10 | M65: C\C1=N\C2=C(C=C(Cl)C=C2)[S+]([O-])(=O)N1 | O65: Eastman | Q65: Sun 2014
A66: NCGC00015703 | B66: MECAMYLAMINE | D66: 5000.00 | F66: 501.19 | J66: 0.10 | M66: CNC1(C)C2CCC(C2)C1(C)C | O66: Eastman | Q66: Sun 2014
A67: NCGC00017062 | B67: Meclofenamic acid sodium | D67: 5000.00 | F67: 501.19 | J67: 0.10 | M67: [Na+].O.Clc2ccc(C)c(Cl)c2Nc1ccccc1C([O-])=O | O67: Eastman | Q67: Sun 2014
A68: NCGC00159479 | B68: METHYL NICOTINATE | D68: 5000.00 | F68: 501.19 | J68: =F68/D68 -> 0.10 | M68: COC(=O)c1cccnc1 | O68: Eastman | Q68: Sun 2014
A69: NCGC00018181 | B69: Nalidixic acid | D69: 5000.00 | F69: 501.19 | J69: 0.10 | M69: O=C(O)C2=CN(CC)c1nc(C)ccc1C2=O | O69: Eastman | Q69: Sun 2014
A70: NCGC00065934 | B70: OXCARBAZEPINE | D70: 5000.00 | F70: 501.19 | J70: 0.10 | M70: NC(=O)N3c1ccccc1C(=O)Cc2ccccc23 | O70: Eastman | Q70: Sun 2014
A71: NCGC00016315 | B71: PYRITHYLDIONE | D71: 5000.00 | F71: 501.19 | J71: 0.10 | M71: CCC1(CC)C(=O)C=CNC1=O | O71: Eastman | Q71: Sun 2014
A72: NCGC00181025 | B72: TRANSFLUTHRIN | D72: 5000.00 | F72: 501.19 | J72: 0.10 | M72: Cl/C(Cl)=C/[C@@H]2[C@@H](C(=O)OCc1c(F)c(F)cc(F)c1F)C2(C)C | O72: Eastman | Q72: Sun 2014
A73: NCGC00095041 | B73: URETHANE | D73: 5000.00 | F73: 501.19 | J73: 0.10 | M73: NC(=O)OCC | O73: Eastman | Q73: Sun 2014
A74: JR5 | D74: 5000.00 | F74: 514.00 | J74: 0.10 | O74: Reader 2022 | Q74: Reader 2022
A75: MMV975972 | D75: 5000.00 | F75: 528.30 | J75: 0.11 | M75: NC1=CC(=NNC1=O)c2nc3ccccc3[nH]2 | O75: Reader 2021 | Q75: Reader 2021
A76: JR31 | D76: 5000.00 | F76: 533.40 | J76: 0.11 | O76: Reader 2022 | Q76: Reader 2022
A77: NCGC00095000 | B77: AMIPRILOSE | D77: 5000.00 | F77: 562.34 | J77: 0.11 | M77: Cl.CN(C)CCCO[C@@H]1[C@H]2OC(C)(C)O[C@H]2O[C@@H]1C(O)CO | O77: Eastman | Q77: Sun 2014
A78: NCGC00159465 | B78: Cefazolin | D78: 5000.00 | F78: 562.34 | J78: 0.11 | M78: O=C(O)C=3N4C(=O)[C@@H](NC(=O)Cn1cnnn1)[C@H]4SCC=3CSc2nnc(C)s2 | O78: Eastman | Q78: Sun 2014
A79: NCGC00013034 | B79: Depoestradiol | D79: 5000.00 | F79: 562.34 | J79: 0.11 | M79: Oc4cc5CC[C@@H]1[C@H](CC[C@]2(C)[C@H](CC[C@@H]12)OC(=O)CCC3CCCC3)c5cc4 | O79: Eastman | Q79: Sun 2014
A80: NCGC00091225 | B80: HALAZONE | D80: 5000.00 | F80: 562.34 | J80: 0.11 | M80: O=S(=O)(N(Cl)Cl)c1ccc(cc1)C(=O)O | O80: Eastman | Q80: Sun 2014
A81: NCGC00159430 | B81: HEXOBARBITAL | D81: 5000.00 | F81: 562.34 | J81: 0.11 | M81: CC1(C(=O)N=C(O)N(C)C1=O)C2=CCCCC2 | O81: Eastman | Q81: Sun 2014
A82: NCGC00164480 | B82: MECLORALUREA | D82: 5000.00 | F82: 562.34 | J82: 0.11 | M82: CNC(=O)NC(O)C(Cl)(Cl)Cl | O82: Eastman | Q82: Sun 2014
A83: NCGC00094091 | B83: NG-Monomethyl-L-arginine acetate | D83: 5000.00 | F83: 562.34 | J83: 0.11 | M83: N[C@@H](CCCNC(=N)NC)C(=O)O.CC(=O)O | O83: Eastman | Q83: Sun 2014
A84: NCGC00167584 | B84: NICAMETATE CITRATE | D84: 5000.00 | F84: 562.34 | J84: 0.11 | M84: O=C(O)C(O)(CC(=O)O)CC(=O)O.CCN(CC)CCOC(=O)c1cccnc1 | O84: Eastman | Q84: Sun 2014
A85: MMV002780 | B85: Noscapine | D85: 5000.00 | F85: 562.34 | J85: 0.11 | M85: O=C4OC(C1N(CCC2=CC3=C(C(=C12)OC)OCO3)C)C5=CC=C(C(=C45)OC)OC | O85: Reader 2021 | Q85: Sun 2014
A86: NCGC00159490 | B86: OXYTETRACYCLINE | D86: 5000.00 | F86: 562.34 | J86: 0.11 | M86: O.O.NC(=O)C=3C(=O)[C@@]4(O)C(O)=C2C(=O)c1c(O)cccc1[C@@](C)(O)[C@H]2[C@H](O)[C@H]4[C@@H](C=3O)N(C)C | O86: Eastman | Q86: Sun 2014
A87: NCGC00015893 | B87: ROPINROLE | D87: 5000.00 | F87: 562.34 | J87: 0.11 | M87: CCCN(CCC)CCc1cccc2NC(=O)Cc12 | O87: Eastman | Q87: Sun 2014
A88: NCGC00024596 | B88: S-(-)-Carbidopa | D88: 5000.00 | F88: 562.34 | J88: 0.11 | M88: Oc1ccc(C[C@](C)(NN)C(=O)O)cc1O | O88: Yuan 2009 | Q88: Sun 2014
A89: NCGC00094502 | B89: Urapidil hydrochloride | D89: 5000.00 | F89: 562.34 | J89: 0.11 | M89: Cl.COc3ccccc3N2CCN(CCCNC1=CC(=O)N(C)C(=O)N1C)CC2 | O89: Yuan 2009 | Q89: Sun 2014
A90: TCMDC-125142 | D90: 1189.00 | F90: 143.57 | J90: 0.12 | M90: Cc1ccccc1OCC(O)CNC1CCC(CC1)NCC(O)COc1ccccc1C | O90: Miguel-Blanco 2017 | Q90: Almela 2015
A91: NCGC00094306 | B91: Propantheline bromide | D91: 3981.07 | F91: 501.19 | J91: 0.13 | M91: [Br-].CC(C)[N+](C)(CCOC(=O)C1c3ccccc3Oc2ccccc12)C(C)C | O91: Yuan 2009 | Q91: Sun 2014
A92: TCMDC-137908 | D92: 391.00 | F92: 50.00 | J92: 0.13 | M92: Cl.CN(CCCNCc1ccc2ccccc2c1)CCCNCc1ccc2ccccc2c1 | O92: Miguel-Blanco 2017 | Q92: Almela 2015
A93: TCMDC-137201 | D93: 1731.09 | F93: 224.33 | J93: 0.13 | M93: CCN(CC)CCOc1ccc(cc1)C(O)(C#CC(O)(c1ccc(OCCN(CC)CC)cc1)c1ccc(cc1)N(=O)=O)c1ccc(cc1)N(=O)=O | O93: Almela 2015 | Q93: Almela 2015
A94: MMV692750 | D94: 37.00 | F94: 5.00 | J94: 0.14 | M94: Clc1cc(F)c(CCC(=O)NC(C)CNC(=O)C(O)C(C)(C)CO)cc1 | O94: Schalkwijk 2019 | Q94: Schalkwijk 2019
A95: MMV658988 | D95: 2180.00 | F95: 300.00 | J95: 0.14 | M95: CN(CCc1ccccc1)c2nc(nc(C)c2Cl)c3ccccn3 | O95: Duffy 2017 | Q95: Duffy 2017
A96: TCMDC-137853 | D96: 399.61 | F96: 55.00 | J96: 0.14 | M96: CS(O)(=O)=O.FC(F)(F)COc1ccc(CNCCCCCCNCc2ccc(OCC(F)(F)F)c3ccccc23)c2ccccc12 | O96: Almela 2015 | Q96: Almela 2015
A97: NCGC00015014 | B97: Acetohexamide | D97: 5000.00 | F97: 707.95 | J97: 0.14 | M97: CC(=O)C1=CC=C(C=C1)[S+]([O-])(=O)NC(=O)NC2CCCCC2 | O97: Eastman | Q97: Sun 2014
A98: NCGC00160649 | B98: Glycyclamide | D98: 5000.00 | F98: 707.95 | J98: 0.14 | M98: O=C(NC1CCCCC1)NS(=O)(=O)c2ccc(C)cc2 | O98: Eastman | Q98: Sun 2014
A99: NCGC00167577 | B99: SIVELESTAT SODIUM HYDRATE | D99: 5000.00 | F99: 707.95 | J99: 0.14 | M99: [Na+].O.O.O.O.O=S(=O)(Nc1ccccc1C(=O)NCC([O-])=O)c2ccc(OC(=O)C(C)(C)C)cc2 | O99: Eastman | Q99: Sun 2014
A100: NCGC00159424 | B100: TETRAMETHYLTHIURAM MONOSULFIDE | D100: 5000.00 | F100: 707.95 | J100: 0.14 | M100: CN(C)C(=S)SC(=S)N(C)C | O100: Eastman | Q100: Sun 2014
A101: NCGC00094811 | B101: ZOMEPIRAC SODIUM | D101: 5000.00 | F101: 707.95 | J101: 0.14 | M101: [Na+].Cc2cc(CC([O-])=O)n(C)c2C(=O)c1ccc(Cl)cc1 | O101: Eastman | Q101: Sun 2014
A102: TCMDC-125846 | D102: 686.84 | F102: 100.00 | J102: 0.15 | M102: Cc1cccnc1Nc1nc(cs1)-c1ccccn1 | O102: Almela 2015 | Q102: Almela 2015
A103: TCMDC-137771 | D103: 952.95 | F103: 140.00 | J103: 0.15 | M103: CC1CCCCN1CCCNc1nc(NCc2ccccc2)c2ccccc2n1 | O103: Almela 2015 | Q103: Almela 2015
A104: TCMDC-137972 | D104: 695.00 | F104: 103.33 | J104: 0.15 | M104: CS(O)(=O)=O.CC(C)COc1ccc2ccccc2c1CNCCCCCCNCc1c(OCC(C)C)ccc2ccccc12 | O104: Miguel-Blanco 2017 | Q104: Almela 2015
A105: TCMDC-125491 | D105: 933.17 | F105: 143.33 | J105: 0.15 | M105: Cl.CCN(CC)CCCOC(=O)c1ccc-2c(c1)-c1ccc(C(=O)OCCCN(CC)CC)c3cccc-2c13 | O105: Almela 2015 | Q105: Almela 2015
A106: TCMDC-125521 | D106: 774.94 | F106: 120.00 | J106: 0.15 | M106: Fc1ccc(NC(=S)NN=Cc2ccccn2)cc1 | O106: Almela 2015 | Q106: Almela 2015
A107: TCMDC-125752 | D107: 721.11 | F107: 111.67 | J107: 0.15 | M107: S=C(NN=Cc1ccccn1)NC1CC2CC1C=C2 | O107: Almela 2015 | Q107: Almela 2015
A108: TCMDC-137198 | D108: 903.19 | F108: 140.00 | J108: 0.16 | M108: CCN(CC)CCOc1ccc(cc1)C(O)(C#CC(O)(c1ccc(C)cc1)c1ccc(OCCN(CC)CC)cc1)c1ccc(C)cc1 | O108: Almela 2015 | Q108: Almela 2015
A109: MMV1634492 | B109: Eberconazole | D109: 1482.62 | F109: 231.60 | J109: 0.16 | M109: ClC1=C2C(=CC(=C1)Cl)CCC4=C(C2[N]3C=NC=C3)C=CC=C4 | O109: Reader 2021 | Q109: Reader 2021
A110: MMV000043 | B110: Tafenoquine | D110: 506.00 | E110: 2684.00 | F110: 79.52 | G110: 919.06 | I110: =E110/D110 -> 5.30 | J110: 0.16 | K110: =G110/D110 -> 1.82 | M110: COc1cc(C)c2c(Oc3cccc(c3)C(F)(F)F)c(OC)cc(NC(C)CCCN)c2n1 | O110: Reader 2021 | P110: Jennison 2019 | Q110: Reader 2021 | R110: Plouffe 2016
A111: TCMDC-140605 | D111: 1115.87 | F111: 176.67 | J111: 0.16 | M111: OC(=O)C(F)(F)F.CN1CCN(CCCN(Cc2ccc(cc2)-c2cccc(CNC3CCCC3)c2)C(=O)Nc2ccccc2)CC1 | O111: Almela 2015 | Q111: Almela 2015
A112: NCGC00096053 | B112: 2-AMINOGUANIDINE HEMISULFATE | D112: 5000.00 | F112: 794.33 | J112: 0.16 | M112: NC(=N)NN.O=S(=O)(O)O.N=C(N)NN | O112: Eastman | Q112: Sun 2014
A113: NCGC00094747 | B113: OXIDOPAMINE HYDROCHLORIDE | D113: 5000.00 | F113: 794.33 | J113: 0.16 | M113: Cl.Oc1cc(CCN)c(O)cc1O | O113: Eastman | Q113: Sun 2014
A114: MMV003249 | B114: Pyrazinamide | D114: 5000.00 | F114: 794.33 | J114: 0.16 | M114: NC(=O)c1cnccn1 | O114: Reader 2021 | Q114: Sun 2014
A115: NCGC00016772 | B115: Terbutaline hemisulfate | D115: 5000.00 | F115: 794.33 | J115: 0.16 | M115: Oc1cc(cc(O)c1)C(O)CNC(C)(C)C.O=S(=O)(O)O.CC(C)(C)NCC(O)c1cc(O)cc(O)c1 | O115: Eastman | Q115: Sun 2014
A116: NCGC00016485 | B116: Tetrahydrozoline hydrochloride | D116: 5000.00 | F116: 794.33 | J116: 0.16 | M116: Cl.C2CCC(C1=NCCN1)c3ccccc23 | O116: Eastman | Q116: Sun 2014
A117: NCGC00167467 | B117: VECURONIUM BROMIDE | D117: 5000.00 | F117: 794.33 | J117: 0.16 | M117: [Br-].C[N+]1(CCCCC1)[C@H]6C[C@@H]5[C@](C)(CC[C@H]2[C@H]5CC[C@H]3C[C@H](OC(C)=O)[C@H](C[C@]23C)N4CCCCC4)[C@H]6OC(C)=O | O117: Eastman | Q117: Sun 2014
A118: MMV692005 | D118: 6.00 | F118: 1.00 | J118: 0.17 | M118: Fc1c(CCC(=O)NC(C)CNC(=O)C(O)C(C)(C)CO)cccc1F | O118: Schalkwijk 2019 | Q118: Schalkwijk 2019
A119: NCGC00095160 | B119: ASPARTAME | D119: 5000.00 | F119: 891.25 | J119: 0.18 | M119: O=C(O)C[C@H](N)C(=O)N[C@@H](Cc1ccccc1)C(=O)OC | O119: Eastman | Q119: Sun 2014
A120: NCGC00016977 | B120: Dorzolamide hydrochloride | D120: 5000.00 | F120: 891.25 | J120: 0.18 | M120: Cl.NS(=O)(=O)c1cc2[C@H](C[C@H](C)S(=O)(=O)c2s1)NCC | O120: Eastman | Q120: Sun 2014
A121: NCGC00160462 | B121: Guanoxano | D121: 5000.00 | F121: 891.25 | J121: 0.18 | M121: N=C(N)NCC1COc2ccccc2O1 | O121: Eastman | Q121: Sun 2014
A122: NCGC00094393 | B122: Trihexyphenidyl hydrochloride | D122: 5000.00 | F122: 891.25 | J122: 0.18 | M122: Cl.OC(CCN1CCCCC1)(c2ccccc2)C3CCCCC3 | O122: Yuan 2009 | Q122: Sun 2014
A123: TCMDC-131267 | D123: 957.58 | F123: 173.00 | J123: 0.18 | M123: Cl.COc1ccc(CCNCCCCCCNCCc2ccc(cc2)-c2ccccc2)cc1OC | O123: Almela 2015 | Q123: Almela 2015
A124: TCMDC-140964 | D124: 957.00 | F124: 173.33 | J124: 0.18 | M124: O[C@H]([C@@H](O)C(O)=O)C(O)=O.CCN(CC)CCN(Cc1ccc(cc1)-c1ccc(cc1)C(F)(F)F)C(=O)Cn1cc(Cc2cnn(C)c2)c(=O)nc1\C=C\c1cccc(F)c1F | O124: Miguel-Blanco 2017 | Q124: Almela 2015
A125: HW13 | D125: 2.70 | E125: 21.50 | F125: 0.50 | I125: =E125/D125 -> 7.96 | J125: 0.19 | M125: CCCCS(=O)(=O)N1CCN(CC1)C1OC2OC3(C)CCC4C(C)CCC(C1C)C24OO3 | O125: Wong 2020 | P125: Wong 2020 | Q125: Wong 2020
A126: MMV665882 | D126: 337.00 | E126: 252.00 | F126: 63.00 | G126: 983.63 | I126: =E126/D126 -> 0.75 | J126: 0.19 | K126: =G126/D126 -> 2.92 | M126: OC(CNC1CCCCC1)Cn2c3ccc(I)cc3c4cc(I)ccc24 | O126: D Allesandro 2016 | P126: Duffy 2013 | Q126: Duffy 2013 | R126: Plouffe 2016
A127: MMV1582497 | D127: 5000.00 | F127: 949.80 | J127: 0.19 | M127: CC(C)c1ccc(COc2cccc(c2)C3=CC(=C(C#N)C(=O)N3)S(=O)C)cc1 | O127: Reader 2021 | Q127: Reader 2021
A128: TCMDC-134447 | D128: 1178.00 | F128: 230.00 | J128: 0.20 | M128: OC(=O)C(F)(F)F.COc1cccc(c1)-c1csc(c1)C(=O)NCC1CCN(Cc2ccc(cc2)C(C)(C)C)C1 | O128: Miguel-Blanco 2017 | Q128: Almela 2015
A129: Citarinostat (ACY-241) | B129: Citarinostat (ACY-241) | D129: 5000.00 | E129: 1000.00 | F129: 1000.00 | I129: =E129/D129 -> 0.20 | J129: 0.20 | M129: ClC1=C(N(C2=CC=CC=C2)C3=NC=C(C(NCCCCCCC(NO)=O)=O)C=N3)C=CC=C1 | O129: vanheer 2020 | P129: vanheer 2020 | Q129: vanheer 2020
A130: Pacritinib (SB1518) | B130: Pacritinib (SB1518) | D130: 5000.00 | E130: 1000.00 | F130: 1000.00 | I130: =E130/D130 -> 0.20 | J130: 0.20 | M130: C12=C(OCCN3CCCC3)C=CC(/N=C4N=CC=C(C5=CC=CC(COC/C=C/COC2)=C5)N/4)=C1 | O130: vanheer 2020 | P130: vanheer 2020 | Q130: vanheer 2020
A131: BRD4770 | D131: 5000.00 | E131: 1000.00 | F131: 1000.00 | I131: =E131/D131 -> 0.20 | J131: 0.20 | M131: O=C(C1=CC=CC=C1)NC2=NC3=CC(C(OC)=O)=CC=C3N2CCCC4=CC=CC=C4 | O131: vanheer 2020 | P131: vanheer 2020 | Q131: vanheer 2020
A132: GSK-J4 (hydrochloride) | D132: 5000.00 | E132: 1000.00 | F132: 1000.00 | I132: =E132/D132 -> 0.20 | J132: =F132/D132 -> 0.20 | M132: O=C(OCC)CCNC1=CC(N2CCC(C=CC=C3)=C3CC2)=NC(C4=CC=CC=N4)=N1.Cl | O132: vanheer 2020 | P132: vanheer 2020 | Q132: vanheer 2020
A133: NCGC00018167 | B133: 2-Chloro-2?-deoxyadenosineÃ¸ | D133: 5000.00 | F133: 1000.00 | J133: 0.20 | M133: Nc3nc(Cl)nc2c3ncn2[C@H]1C[C@H](O)[C@@H](CO)O1 | O133: Eastman | Q133: Sun 2014
A134: NCGC00181311 | B134: ADEMETIONINE | D134: 5000.00 | F134: 1000.00 | J134: 0.20 | M134: [Cl-].C[S+](CC[C@H](N)C(O)=O)C[C@H]1O[C@H]([C@H](O)[C@@H]1O)N1C=NC2=C1N=CN=C2N | O134: Eastman | Q134: Sun 2014
A135: NCGC00159480 | B135: Cetamina | D135: 5000.00 | F135: 1000.00 | J135: 0.20 | M135: CNC1(CCCCC1=O)c2ccccc2Cl | O135: Eastman | Q135: Sun 2014
A136: NCGC00167477 | B136: FIDARESTAT | D136: 5000.00 | F136: 1000.00 | J136: 0.20 | M136: NC(=O)[C@@H]2C[C@]1(NC(=O)NC1=O)c3cc(F)ccc3O2 | O136: Eastman | Q136: Sun 2014
A137: NCGC00022304 | B137: N-acetylcysteine | D137: 5000.00 | F137: 1000.00 | J137: 0.20 | M137: CC(=O)N[C@@H](CS)C(O)=O | O137: Eastman | Q137: Sun 2014
A138: MMV002354 | B138: Phosphomycin | D138: 5000.00 | F138: 1000.00 | J138: 0.20 | M138: C[C@@H]1O[C@@H]1P(=O)(O)O | O138: Reader 2021 | Q138: Sun 2014
A139: TCMDC-138757 | D139: 86.90 | F139: 17.67 | J139: 0.20 | M139: COc1cc2nc(nc(N)c2cc1OC)N1CCC(CNCc2ccc(cc2)-c2ccc(cc2)C(F)(F)F)CC1 | O139: Almela 2015 | Q139: Almela 2015
A140: MMV1028806 | D140: 2000.00 | F140: 420.00 | G140: 520.00 | J140: 0.21 | K140: =G140/D140 -> 0.26 | M140: Fc1ccccc1C2CC2C(=O)Nc3nc(cs3)c4ccccn4 | O140: Duffy 2017 | Q140: Duffy 2017 | R140: Duffy 2017
A141: TCMDC-125854 | D141: 752.00 | F141: 159.00 | J141: 0.21 | M141: Cc1ccc(Nc2nc(cs2)-c2ccccn2)nc1 | O141: Miguel-Blanco 2017 | Q141: Almela 2015
A142: TCMDC-131270 | D142: 579.73 | F142: 126.67 | J142: 0.22 | M142: Cl.COc1ccc(CCNCCCCCCNCCc2ccc(Cl)c3ccccc23)cc1OC | O142: Almela 2015 | Q142: Almela 2015
A143: MMV1782211 | B143: TTP 8307 | D143: 5000.00 | F143: 1097.00 | J143: 0.22 | M143: C[C@@H](NC(=O)c1cccc(c1)c2c[nH]c(n2)c3cc4ccccc4cn3)c5ccc(F)cc5 | O143: Reader 2021 | Q143: Reader 2021
A144: MMV688761 | D144: 4080.00 | F144: 900.00 | J144: 0.22 | M144: CS(=O)(=O)c1ccc(cc1[N+](=O)[O-])C(=O)N(CC2CCCO2)c3nc4ccccc4s3 | O144: Duffy 2017 | Q144: Duffy 2017
A145: NCGC00017047 | B145: Alverine citrate salt | D145: 5000.00 | F145: 1122.02 | J145: 0.22 | M145: O=C(O)C(O)(CC(=O)O)CC(=O)O.CCN(CCCc1ccccc1)CCCc2ccccc2 | O145: Eastman | Q145: Sun 2014
A146: NCGC00016335 | B146: Dienestrol | D146: 5000.00 | F146: 1122.02 | J146: 0.22 | M146: Oc1ccc(cc1)C(=C\C)/C(=C/C)c2ccc(O)cc2 | O146: Eastman | Q146: Sun 2014
A147: NCGC00016241 | B147: Furosemide | D147: 5000.00 | F147: 1122.02 | J147: 0.22 | M147: NS(=O)(=O)c2cc(c(NCc1ccco1)cc2Cl)C(=O)O | O147: Eastman | Q147: Sun 2014
A148: NCGC00016563 | B148: Meclozine dihydrochloride | D148: 5000.00 | F148: 1122.02 | J148: 0.22 | M148: Cl.Cl.Cc1cccc(c1)CN2CCN(CC2)C(c3ccc(Cl)cc3)c4ccccc4 | O148: Eastman | Q148: Sun 2014
A149: NCGC00015841 | B149: Pargyline hydrochloride | D149: 5000.00 | F149: 1122.02 | J149: 0.22 | M149: Cl.CN(Cc1ccccc1)CC#C | O149: Eastman | Q149: Sun 2014
A150: NCGC00094400 | B150: R(-)-SCH-12679 maleate | D150: 5000.00 | F150: 1122.02 | J150: 0.22 | M150: O=C(O)/C=C\C(=O)O.COc1cc2CCN(C)C[C@@H](c2cc1OC)c3ccccc3 | O150: Yuan 2009 | Q150: Sun 2014
A151: MMV1580496 | B151: Triapine | D151: 1277.00 | F151: 288.90 | J151: 0.23 | M151: S=C(N\N=C\C1=NC=CC=C1N)N | O151: Reader 2021 | Q151: Reader 2021
A152: TCMDC-137453 | D152: 1382.34 | F152: 313.33 | J152: 0.23 | M152: Cl.N=C(NCCCc1ccccc1)c1cccc(n1)C(=N)NCCCc1ccccc1 | O152: Almela 2015 | Q152: Almela 2015
A153: TCMDC-137965 | D153: 611.77 | F153: 140.00 | J153: 0.23 | M153: CS(O)(=O)=O.CC(C)Oc1ccc2ccccc2c1CNCCCCCCNCc1c(OC(C)C)ccc2ccccc12 | O153: Almela 2015 | Q153: Almela 2015
A154: TCMDC-125004 | D154: 802.00 | F154: 185.00 | J154: 0.23 | M154: CCOc1ccc2nc3cc(NC(=O)c4ccco4)ccc3c(N)c2c1 | O154: Miguel-Blanco 2017 | Q154: Almela 2015
A155: MMV689838 | D155: 17.00 | F155: 4.00 | J155: 0.24 | M155: O=C(CCc1ccsc1)NC(C)CNC(=O)C(O)C(C)(C)CO | O155: Schalkwijk 2019 | Q155: Schalkwijk 2019
A156: MMV1578560 | B156: OSU-03012 | D156: 5000.00 | F156: 1196.00 | J156: 0.24 | M156: FC(F)(F)C2=N[N](C1=CC=C(NC(=O)CN)C=C1)C(=C2)C4=CC3=CC=C5C(=C3C=C4)C=CC=C5 | O156: Reader 2021 | Q156: Reader 2021
A157: MMV1542106 | D157: 147.00 | F157: 36.00 | J157: 0.24 | M157: Fc1ccc(CCC(=O)NC(C)CNC(=O)C(O)C(C)(C)CO)cc1 | O157: Schalkwijk 2019 | Q157: Schalkwijk 2019
A158: TCMDC-132105 | D158: 720.67 | F158: 176.67 | J158: 0.25 | M158: Cl.COc1cccc(CCc2c(CCNCCCCCCNCCc3ccccc3)ccc(OC)c2OC)c1 | O158: Almela 2015 | Q158: Almela 2015
A159: TCMDC-134441 | D159: 1243.00 | F159: 305.00 | J159: 0.25 | M159: OC(=O)C(F)(F)F.CC(C)(C)c1ccc(CN2CCC(CNC(=O)c3cc(cs3)-c3ccccc3C(F)(F)F)C2)cc1 | O159: Miguel-Blanco 2017 | Q159: Almela 2015
A160: NCGC00134126 | D160: 4780.00 | F160: 1190.00 | J160: 0.25 | M160: COc1ccc(cc1Cl)Nc1cc(C)nc(n1)n1nc(C)cc1C | O160: Sun 2017 | Q160: Sun 2017
A161: MMV019724 | D161: 1670.00 | F161: 420.20 | J161: 0.25 | M161: S1C(=NC2=C1C=CC=C2)NC(C4=C(O)C3=NC=CC=C3C=C4)C5=CC=C(OC(F)F)C=C5 | O161: Reader 2021 | Q161: Reader 2021
A162: NCGC00025271 | B162: Bay 11-7085 | D162: 5000.00 | F162: 1258.93 | J162: 0.25 | M162: CC(C)(C)C1=CC=C(C=C1)[S+]([O-])(=O)/C=C/C#N | O162: Yuan 2009 | Q162: Sun 2014
A163: NCGC00025125 | B163: Colchicine | D163: 5000.00 | F163: 1258.93 | J163: 0.25 | M163: CC(=O)N[C@H]2CCc3cc(OC)c(OC)c(OC)c3C1=CC=C(OC)C(=O)C=C12 | O163: Yuan 2009 | Q163: Sun 2014
A164: NCGC00160499 | B164: DICARBINUM | D164: 5000.00 | F164: 1258.93 | J164: 0.25 | M164: Cc3cc1c(NC2CCN(C)CC12)cc3 | O164: Eastman | Q164: Sun 2014
A165: NCGC00091695 | B165: Triethylenetetramine | D165: 5000.00 | F165: 1258.93 | J165: 0.25 | M165: NCCNCCNCCN | O165: Eastman | Q165: Sun 2014
A166: TCMDC-137456 | D166: 1756.00 | F166: 450.00 | J166: 0.26 | M166: N=C(NCC1CC1c1ccccc1)c1cccc(n1)C(=N)NCC1CC1c1ccccc1 | O166: Miguel-Blanco 2017 | Q166: Almela 2015
A167: SJ000154238 | D167: 5000.00 | F167: 1290.00 | J167: 0.26 | M167: CC(=O)N(CC)C1=C(C(=O)c2ccccc2C1=O)N1CCOCC1 | O167: Tanaka 2015 | Q167: Tanaka 2015
A168: TCMDC-142246 | D168: 794.89 | F168: 206.67 | J168: 0.26 | M168: Brc1ccccc(Br)c1=O | O168: Almela 2015 | Q168: Almela 2015
A169: TCMDC-137944 | D169: 403.00 | F169: 105.00 | J169: 0.26 | M169: CS(O)(=O)=O.COc1cc2ccccc2cc1CCNCCCCNCCc1cc2ccccc2cc1OC | O169: Miguel-Blanco 2017 | Q169: Almela 2015
A170: TCMDC-137455 | D170: 916.54 | F170: 240.00 | J170: 0.26 | M170: Cl.CC(CNC(=N)c1cccc(n1)C(=N)NCC(C)Oc1cccc(c1)C1CCCCC1)Oc1cccc(c1)C1CCCCC1 | O170: Almela 2015 | Q170: Almela 2015
A171: TCMDC-124436 | D171: 397.57 | F171: 105.33 | J171: 0.26 | M171: Clc1ccc(cc1N(=O)=O)C(=O)N(CC=C)c1nc(cs1)-c1ccccc1 | O171: Almela 2015 | Q171: Almela 2015
A172: Oxamflatin | B172: Oxamflatin | D172: 3700.00 | E172: 1120.00 | F172: 1000.00 | I172: =E172/D172 -> 0.30 | J172: 0.27 | M172: O=S(NC1=CC(C#C/C=C/C(NO)=O)=CC=C1)(C2=CC=CC=C2)=O | O172: Coetzee 2020 | P172: Coetzee 2020 | Q172: vanheer 2020
A173: TCMDC-134437 | D173: 1662.55 | F173: 455.00 | J173: 0.27 | M173: OC(=O)C(F)(F)F.CC(C)c1ccc(CN2CCC(CNC(=O)c3cc(cs3)-c3cccc(F)c3)C2)cc1 | O173: Almela 2015 | Q173: Almela 2015
A174: NCGC00091050 | B174: PHENYLMERCURIC ACETATE | D174: 3981.07 | F174: 1122.02 | J174: 0.28 | M174: CC(=O)O[Hg]c1ccccc1 | O174: Eastman | Q174: Sun 2014
A175: NCGC00160423 | B175: Bametano | D175: 5000.00 | F175: 1412.54 | J175: 0.28 | M175: OC(CNCCCC)c1ccc(O)cc1 | O175: Eastman | Q175: Sun 2014
A176: NCGC00016230 | B176: Homatropine hydrobromide (R,S) | D176: 5000.00 | F176: 1412.54 | J176: 0.28 | M176: Br.CN3[C@@H]1CC[C@H]3C[C@H](C1)OC(=O)C(O)c2ccccc2 | O176: Eastman | Q176: Sun 2014
A177: TCMDC-132055 | D177: 934.00 | F177: 265.67 | J177: 0.28 | M177: Cl.CCc1c2OCOc2ccc1CC(C)(C)NCCCCCCNCCc1ccc(OC)c(OC)c1CC | O177: Almela 2015 | Q177: Almela 2015
A178: MMV062221 | D178: 2000.00 | F178: 570.00 | G178: 220.00 | J178: 0.29 | K178: =G178/D178 -> 0.11 | M178: Cc1cc(C)nc(n1)n2nc(C)cc2Nc3ccccc3 | O178: Duffy 2017 | Q178: Duffy 2017 | R178: Duffy 2017
A179: TCMDC-131551 | D179: 935.00 | F179: 266.67 | J179: 0.29 | M179: Cl.C[C@H](Cc1ccc(CCc2ccc(C[C@@H](C)NC[C@H](O)c3cccc(Cl)c3)cc2)cc1)NC[C@H](O)c1cccc(Cl)c1 | O179: Miguel-Blanco 2017 | Q179: Almela 2015
A180: TCMDC-137169 | D180: 348.44 | F180: 100.00 | J180: 0.29 | M180: CS(O)(=O)=O.FC(F)(F)COc1c(CCNCCCCNCCc2ccc3ccccc3c2OCC(F)(F)F)ccc2ccccc12 | O180: Almela 2015 | Q180: Almela 2015
A181: Salinomycin | B181: Salinomycin | D181: 21.90 | E181: 14.50 | F181: 6.30 | I181: =E181/D181 -> 0.66 | J181: 0.29 | M181: O=C([C@H]([C@H]([C@@H]([C@]3([H])O[C@]([C@@H](CC)C(O)=O)([H])CC[C@@H]3C)C)O)C)[C@H](CC)[C@@]([C@@H](C)C[C@H]2C)([H])O[C@]12O[C@@]4(CC[C@]([C@]5([H])O[C@@H](C)[C@](CC)(O)CC5)(C)O4)[C@H](O)C=C1 | O181: D'Allesandro 2015 | P181: D'Allesandro 2015 | Q181: D'Allesandro 2015
A182: MMV000972 | D182: 2574.10 | F182: 743.00 | J182: 0.29 | M182: OC1(CC(=O)c2ccccc2O1)C(F)(F)C(F)(F)F | O182: Lucantoni 2013 | Q182: Sun 2014
A183: TCMDC-137759 | D183: 595.99 | F183: 173.33 | J183: 0.29 | M183: CS(O)(=O)=O.CCOc1c(CCNCCCCNCCc2ccc3ccccc3c2OCC)ccc2ccccc12 | O183: Almela 2015 | Q183: Almela 2015
A184: TCMDC-137340 | D184: 859.00 | F184: 250.00 | J184: 0.29 | M184: CS(O)(=O)=O.C=CCOc1ccc2ccccc2c1CNCCCCCCNCc1c(OCC=C)ccc2ccccc12 | O184: Miguel-Blanco 2017 | Q184: Almela 2015
A185: TCMDC-124120 | D185: 1018.41 | F185: 300.00 | J185: 0.29 | M185: Cl.CCCCOc1ccc(cc1)C(=O)C(CCC(CNC(C)(C)C)C(=O)c1ccc(OCCCC)cc1)CNC(C)(C)C | O185: Almela 2015 | Q185: Almela 2015
A186: MMV884962 | D186: 7.40 | F186: 2.20 | J186: 0.30 | M186: O=C(NC(C)CNC(=O)C(O)C(C)(C)CO)c1cccc(C#N)c1 | O186: de Vries 2022 | Q186: de Vries 2022
A187: TCMDC-132012 | D187: 997.64 | F187: 296.67 | J187: 0.30 | M187: COc1cc2nc(NCCCN3CCCCC3)nc(NCc3ccccc3)c2cc1OC | O187: Almela 2015 | Q187: Almela 2015
A188: HW17 | D188: 2.00 | E188: 13.10 | F188: 0.60 | I188: =E188/D188 -> 6.55 | J188: 0.30 | M188: Fc1cccc(c1)S(=O)(=O)N1CCN(CC1)C1OC2OC3(C)CCC4C(C)CCC(C1C)C24OO3 | O188: Wong 2020 | P188: Wong 2020 | Q188: Wong 2020
A189: TCMDC-136307 | D189: 1555.67 | F189: 470.00 | J189: 0.30 | M189: OC(=O)C(F)(F)F.CS(=O)(=O)c1cccc(c1)-c1cnc2[nH]cc(-c3cccc(CCN)c3)c2c1 | O189: Almela 2015 | Q189: Almela 2015
A190: MMV1580483 | B190: AZD-0156 | D190: 775.67 | F190: 236.10 | J190: 0.30 | M190: O=[C]1[N](C2=C([N]1C)C=NC3=CC=C(C=C23)C4=CN=C(OCCCN(C)C)C=C4)C5CCOCC5 | O190: Reader 2021 | Q190: Reader 2021
A191: MMV676383 | D191: 4430.00 | F191: 1370.00 | J191: 0.31 | M191: CCC(Sc1oc2ccccc2n1)C(=O)Nc3nccs3 | O191: Duffy 2017 | Q191: Duffy 2017
A192: NCGC00134124 | D192: 5000.00 | F192: 1550.00 | J192: 0.31 | M192: Fc1ccc(cc1)Nc1cc(C)nc(n1)n1nc(C)cc1C | O192: Sun 2017 | Q192: Sun 2017
A193: TCMDC-131272 | D193: 825.00 | F193: 256.67 | J193: 0.31 | M193: Cl.COc1ccc(CCNCCCCCCNCCc2ccc(Cl)cc2)c(Cl)c1OC | O193: Miguel-Blanco 2017 | Q193: Almela 2015
A194: CBHA | D194: 3200.00 | E194: 5000.00 | F194: 1000.00 | I194: =E194/D194 -> 1.56 | J194: 0.31 | M194: ONC(=O)\C=C/c1cccc(c1)C(=O)NO | O194: Coetzee 2020 | P194: vanheer 2020 | Q194: vanheer 2020
A195: NCGC00160481 | B195: Tioxidazole | D195: 5000.00 | F195: 1584.89 | J195: 0.32 | M195: O=C(OC)Nc1nc2ccc(cc2s1)OCCC | O195: Eastman | Q195: Sun 2014
A196: NCGC00095003 | B196: TIOXOLONE | D196: 5000.00 | F196: 1584.89 | J196: =F196/D196 -> 0.32 | M196: Oc1cc2OC(=O)Sc2cc1 | O196: Eastman | Q196: Sun 2014
A197: TCMDC-137905 | D197: 722.27 | F197: 230.00 | J197: 0.32 | M197: Cl.CN(CCCNCc1cccc2ccccc12)CCCNCc1cccc2ccccc12 | O197: Almela 2015 | Q197: Almela 2015
A198: P3a | D198: 5000.00 | F198: 1600.00 | J198: 0.32 | M198: CCN(CC)CCCC(C)\N=C1/C=CC2=Nc3ccccc3OC2=C1 | O198: Olivier 2022 | Q198: Olivier 2022
A199: TCMDC-137843 | D199: 988.19 | F199: 319.00 | J199: 0.32 | M199: CS(O)(=O)=O.COc1cc2ccccc2c(OC)c1CNCCCCCCNCc1c(OC)cc2ccccc2c1OC | O199: Almela 2015 | Q199: Almela 2015
A200: TCMDC-141973 | D200: 807.89 | F200: 270.00 | J200: 0.33 | M200: OC(=O)CCSSc1ccccn1=O | O200: Almela 2015 | Q200: Almela 2015
... 1407 more rows

Sheet Figure S1 ABS mGc
A1: Source Data for Supplementary Figure S1
A2: ABS-mGc
A3: Compound identifier | B3: Trivial name | D3: Final ABS IC50 (nM) | E3: Final iGc IC50 (nM) | F3: Final LGc IC50 (nM) | G3: Final mGc IC50 (nM) | I3: FC iGC-ABS | J3: FC LGc-ABS | K3: FC mGc-ABS | M3: SMILE | O3: Ref for ABS activity | P3: Ref for iGc activity | Q3: Ref for LGc activity | R3: Ref for mGc activity
A4: GNF-Pf-1014 | D4: 5000.00 | G4: 36.55 | K4: =G4/D4 -> 0.01 | M4: [O-][N+](=O)C1=CC(=C2C=CC=NC2=C1NC3=CC=CC4=CC=CN=C34)[N+]([O-])=O | O4: Plouffe 2016 | R4: Plouffe 2016
A5: GNF-Pf-4323 | D5: 2235.00 | G5: 24.76 | K5: 0.01 | M5: O=C(NC1=NC(=CS1)C2=CC=CC=N2)C3=CC=C(OC4=CC=C(C=C4)C(=O)NC5=NC(=CS5)C6=CC=CC=N6)C=C3 | O5: Plouffe 2016 | R5: Plouffe 2016
A6: GP42 | D6: 5000.00 | G6: 79.46 | K6: 0.02 | M6: Fc1ccc(cc1)CN1Cc2cc3OCN(Cc3cc2OC1)Cc1ccc(F)cc1 | O6: Paonessa 2022 | R6: Paonessa 2022
A7: GNF-Pf-3085 | D7: 1036.00 | G7: 17.09 | K7: 0.02 | M7: S=C(NN=CC=NNC(=S)NC1=CC=CC=C1)NC2=CC=CC=C2 | O7: Plouffe 2016 | R7: Plouffe 2016
A8: GNF-Pf-149 | D8: 4340.00 | G8: 100.52 | K8: 0.02 | M8: [O-][N+](=O)C1=CC(=CC(=C1SC2=CC=CC3=CC=CN=C23)[N+]([O-])=O)C(F)(F)F | O8: Plouffe 2016 | R8: Plouffe 2016
A9: GNF-Pf-4517 | D9: 572.00 | G9: 13.46 | K9: 0.02 | M9: CC(=NNC(N)=S)C(C)=NNC(N)=S | O9: Plouffe 2016 | R9: Plouffe 2016
A10: GNF-Pf-783 | D10: 1720.00 | G10: 61.38 | K10: 0.04 | M10: CC1=CC=CC(=C1)C2=NC3=CC(NC(=O)C4=CC=C(O4)[N+]([O-])=O)=CC=C3O2 | O10: Plouffe 2016 | R10: Plouffe 2016
A11: MMV1019989 | D11: 2000.00 | G11: 76.00 | K11: 0.04 | M11: CCc1ccc(cc1)C(NCc2nc(N)nc(n2)N(C)C)C(C)C | O11: Duffy 2017 | R11: Duffy 2017
A12: GNF-Pf-1329 | D12: 5000.00 | G12: 195.97 | K12: 0.04 | M12: CC1=CC=C(C=C1Br)C2=NC3=CC(NC(=O)C4=CC=C(O4)[N+]([O-])=O)=CC=C3O2 | O12: Plouffe 2016 | R12: Plouffe 2016
A13: DDD01246628 | D13: 4751.00 | F13: 2311.00 | G13: 197.60 | J13: =F13/D13 -> 0.49 | K13: 0.04 | M13: CC(N(C)CC1=CN=C(N=C1)C1=CC=CC=N1)C1=CC=CS1 | O13: Delves 2018 | Q13: Delves 2018 | R13: Delves 2018
A14: GNF-Pf-2740 | D14: 5000.00 | G14: 216.85 | K14: 0.04 | M14: [O-][N+](=O)C1=CC=C(O1)C(=O)NC2=CC=C3OC(=NC3=C2)C4=CC=CC5=CC=CC=C45 | O14: Plouffe 2016 | R14: Plouffe 2016
A15: GNF-Pf-1005 | D15: 5000.00 | G15: 220.18 | K15: 0.04 | M15: NC(=O)CN1CC(O)CC1=O | O15: Plouffe 2016 | R15: Plouffe 2016
A16: GP83 | D16: 389.30 | G16: 17.36 | K16: 0.04 | M16: Nc1ncc(cc1c1cnc(cc1)C(F)(F)F)c1ccc(cc1)S(C)(=O)=O | O16: Paonessa 2022 | R16: Paonessa 2022
A17: DDD01062588 | D17: 1410.00 | G17: 69.32 | K17: 0.05 | M17: CC(C)(C)C1=CN2CCCC(CNCC3=CC=CC=N3)C2=N1 | O17: Abraham 2020 | R17: Abraham 2020
A18: GNF-Pf-1696 | D18: 3161.00 | G18: 157.17 | K18: 0.05 | M18: [O-][N+](=O)C1=CC=C(O1)C(=O)NC2=CC=C3OC(=NC3=C2)C4=CC=C(I)C=C4 | O18: Plouffe 2016 | R18: Plouffe 2016
A19: GNF-Pf-5369 | D19: 2827.00 | G19: 149.82 | K19: 0.05 | M19: CN1C(=O)N(C)C2(N=C3SC4=C(N3NC12C5=CC=CC=C5)C(=O)C6=CC=CC=C6C4=O)C7=CC=CC=C7 | O19: Plouffe 2016 | R19: Plouffe 2016
A20: GNF-Pf-2434 | D20: 1104.00 | G20: 61.78 | K20: 0.06 | M20: C1=CC=C2N=C3C(N=NC4=CC=CC=C34)=NC2=C1 | O20: Plouffe 2016 | R20: Plouffe 2016
A21: GNF-Pf-1416 | D21: 5000.00 | G21: 301.71 | K21: 0.06 | M21: [O-][N+](=O)C1=CC=C2N=C(NC3=CC=C(Cl)C(Cl)=C3)C(NC4=CC=C(Cl)C(Cl)=C4)=NC2=C1 | O21: Plouffe 2016 | R21: Plouffe 2016
A22: GNF-Pf-5458 | D22: 34.80 | G22: 2.11 | K22: 0.06 | M22: CC1(C)C2CCC(C2)C1(C)NC(=S)NN=CC3=CC=CC=N3 | O22: Plouffe 2016 | R22: Plouffe 2016
A23: GNF-Pf-1947 | D23: 5000.00 | G23: 382.65 | K23: 0.08 | M23: CCN1C(OC2=CC=C(C=C12)C3=CC=CC=C3)=CC=CC4=[N+](CC)C5=CC(=CC=C5O4)C6=CC=CC=C6 | O23: Plouffe 2016 | R23: Plouffe 2016
A24: GNF-Pf-5371 | D24: 70.30 | G24: 5.43 | K24: 0.08 | M24: COC1=CC=C(C=C1)C(OCCS(=O)(=O)CCO)(C2=CC=CC=C2)C3=CC=C(OC)C=C3 | O24: Plouffe 2016 | R24: Plouffe 2016
A25: GNF-Pf-3542 | D25: 5000.00 | G25: 484.64 | K25: 0.10 | M25: [O-][N+](=O)C1=CC=C(O1)C(=O)NC2=CC=C3OC(=NC3=C2)C4=CC=CC=C4F | O25: Plouffe 2016 | R25: Plouffe 2016
A26: GNF-Pf-1484 | D26: 5000.00 | G26: 542.25 | K26: 0.11 | M26: O=C1C2=CC=CC=C2C3=NC4=CC(C#N)=C(C=C4N=C13)C#N | O26: Plouffe 2016 | R26: Plouffe 2016
A27: MMV062221 | D27: 2000.00 | F27: 570.00 | G27: 220.00 | J27: =F27/D27 -> 0.29 | K27: 0.11 | M27: Cc1cc(C)nc(n1)n2nc(C)cc2Nc3ccccc3 | O27: Duffy 2017 | Q27: Duffy 2017 | R27: Duffy 2017
A28: GP69 | D28: 5000.00 | G28: 555.35 | K28: 0.11 | M28: O=C(c1ccc(o1)[N+](=O)[O-])N1CCC(Cn2cnc3ccccc32)CC1 | O28: Paonessa 2022 | R28: Paonessa 2022
A29: GNF-Pf-4637 | D29: 1095.00 | G29: 122.01 | K29: 0.11 | M29: CC1CCN(CC1)C2=CC(C)=NC(=N2)N3N=C(C)C=C3C | O29: Plouffe 2016 | R29: Plouffe 2016
A30: GP37 | D30: 5000.00 | G30: 562.86 | K30: 0.11 | M30: [O-][N+](=O)c1cc2nc(Nc3ccc(F)cc3)c(nc2cc1)Nc1ccc(F)cc1 | O30: Paonessa 2022 | R30: Paonessa 2022
A31: GNF-Pf-5349 | D31: 38.50 | G31: 4.34 | K31: 0.11 | M31: S=C(NN=CC1=CC=CC=N1)NC2CC3CC2C=C3 | O31: Plouffe 2016 | R31: Plouffe 2016
A32: BRD-K87640608-001-01-8 | D32: 5000.00 | G32: 574.56 | K32: 0.11 | M32: CCc1csc(n1)N1[C@H](CO)[C@@H]([C@@H]1CNC)c1ccccc1 | O32: Plouffe 2016 | R32: Plouffe 2016
A33: anazolene sodium | B33: anazolene sodium | D33: 5000.00 | G33: 600.00 | K33: 0.12 | M33: C1=CC=C(C=C1)NC2=C3C(=C(C=C2)N=NC4=C5C(=CC(=C4)S(=O)(=O)[O-])C=C(C=C5O)S(=O)(=O)[O-])C=CC=C3S(=O)(=O)[O-].[Na+].[Na+].[Na+] | O33: Sanders 2014 | R33: Sanders 2014
A34: DDD01254473 | D34: 448.00 | F34: 529.00 | G34: 55.70 | J34: =F34/D34 -> 1.18 | K34: 0.12 | M34: CCN1C=CN=C1CN1CCC2=C(NC=N2)C1C1=CC=C(CC)C=N1 | O34: Abraham 2020 | Q34: Delves 2018 | R34: Abraham 2020
A35: GNF-Pf-2145 | D35: 381.00 | G35: 48.86 | K35: 0.13 | M35: [O-][N+](=O)C1=CC=C(O1)C=CC=C(C#N)C2=NC3=CC=CC=C3N2 | O35: Plouffe 2016 | R35: Plouffe 2016
A36: GP63 | D36: 1731.40 | G36: 225.00 | K36: 0.13 | M36: Cc1ccc(cc1)Nc1cc(C)nc(n1)Nc1ccc(cc1)NC(=O)C1=Cc2ccccc2OC1=O | O36: Paonessa 2022 | R36: Paonessa 2022
A37: GP16 | D37: 1271.80 | G37: 167.48 | K37: 0.13 | M37: [O-][n+]1ccccc1SCc1c(nc2ccc(C)cn12)c1ccccc1 | O37: Paonessa 2022 | R37: Paonessa 2022
A38: GP35 | D38: 4112.80 | G38: 598.94 | K38: 0.15 | M38: Clc1nc(Cl)n(n1)C(Cn1nc(Cl)nc1Cl)S(=O)(=O)c1ccc(C)cc1 | O38: Paonessa 2022 | R38: Paonessa 2022
A39: GNF-Pf-188 | D39: 707.00 | G39: 106.63 | K39: 0.15 | M39: [O-][N+](=O)C1=CC=C(O1)C=CC=C2SC(=N)NC2=O | O39: Plouffe 2016 | R39: Plouffe 2016
A40: GP27 | D40: 4125.40 | G40: 649.66 | K40: 0.16 | M40: NCCCNCCOc1ccc(cc1)c1ccccc1 | O40: Paonessa 2022 | R40: Paonessa 2022
A41: GNF-Pf-2090 | D41: 1250.00 | G41: 223.10 | K41: 0.18 | M41: COC1=CC=C(C=C1)C2=CN=NC(NN=CC3=CC=C(O3)[N+]([O-])=O)=N2 | O41: Plouffe 2016 | R41: Plouffe 2016
A42: GP8 | D42: 4192.60 | G42: 759.49 | K42: 0.18 | M42: CC1(C)C2CC1C(CC2)CCN1CCC2(CC1)C(=O)N(CN2c1ccccc1)CCCNCc1ccccc1 | O42: Paonessa 2022 | R42: Paonessa 2022
A43: GNF-Pf-5611 | D43: 97.10 | G43: 17.89 | K43: 0.18 | M43: CC1=CC=C2C=CC3=CC=C(C)N=C3C2=N1 | O43: Plouffe 2016 | R43: Plouffe 2016
A44: GNF-Pf-2960 | D44: 1377.00 | G44: 262.68 | K44: 0.19 | M44: C1=CC=C2C(=C1)C=CC3=CC4=CC=CC=[N+]4C=C23 | O44: Plouffe 2016 | R44: Plouffe 2016
A45: GP38 | D45: 5000.00 | G45: 991.08 | K45: 0.20 | M45: [O-][N+](=O)c1ccc(Sc2nnc[NH]2)c2nonc12 | O45: Paonessa 2022 | R45: Paonessa 2022
A46: MMV1581373 | B46: KAE609 analog | D46: 0.55 | E46: 1.14 | G46: 0.11 | I46: =E46/D46 -> 2.07 | K46: 0.20 | M46: C[C@H]1CC2=C([C@]3(N1)C4=C(C=CC(=C4)Cl)NC3=O)NC5=CC(=C(C=C25)F)Cl | O46: This study | P46: This study | Q46: This study | R46: This study
A47: MMV1030799 | D47: 2590.00 | F47: 2500.00 | G47: 560.00 | J47: =F47/D47 -> 0.97 | K47: 0.22 | M47: CCCn1c(NC(=O)c2ccc3ccccc3n2)nc4ccccc14 | O47: Duffy 2017 | Q47: Duffy 2017 | R47: Duffy 2017
A48: DDD01057018 | D48: 530.00 | G48: 115.16 | K48: 0.22 | M48: CC1=CC=CC(CN2CCCC2C2=CC=CC(NC3=NC=CS3)=N2)=C1 | O48: Abraham 2020 | R48: Abraham 2020
A49: GP59 | D49: 5000.00 | G49: 1088.86 | K49: 0.22 | M49: CC1(C)CC(CC(C)(C)N1)N1Cc2cc(Cl)c3cccnc3c2OC1 | O49: Paonessa 2022 | R49: Paonessa 2022
A50: GP51 | D50: 5000.00 | G50: 1117.38 | K50: 0.22 | M50: Clc1ccc(cc1)C(c1ccc2cccnc2c1O)N1CCN(CC1)CCO | O50: Paonessa 2022 | R50: Paonessa 2022
A51: MMV1088520 | D51: 2000.00 | F51: 670.00 | G51: 450.00 | J51: =F51/D51 -> 0.34 | K51: 0.23 | M51: CC(C)N(Cc1ccccn1)Cc2csc(n2)c3oc(C)cc3 | O51: Duffy 2017 | Q51: Duffy 2017 | R51: Duffy 2017
A52: DDD107498 | B52: M5717 | D52: 1.00 | E52: 3.57 | F52: 1.61 | G52: 0.25 | I52: =E52/D52 -> 3.57 | J52: =F52/D52 -> 1.61 | K52: 0.25 | M52: O=C(NCCN1CCCC1)c1cc(nc2ccc(F)cc12)c1ccc(cc1)CN1CCOCC1 | O52: Baragana 2015 | P52: Reader 2022 | Q52: Plouffe 2016 | R52: Reader 2022
A53: MMV643121 | B53: M5717 (DDD107498) | D53: 1.00 | E53: 3.57 | G53: 0.25 | I53: =E53/D53 -> 3.57 | K53: 0.25 | M53: O=C(NCCN1CCCC1)c1cc(nc2ccc(F)cc12)c1ccc(cc1)CN1CCOCC1 | O53: This study | P53: This study | Q53: This study | R53: This study
A54: GNF-Pf-1500 | D54: 5000.00 | G54: 1250.00 | K54: 0.25 | M54: CCCC(=O)O[C@@]1([C@@H](C)C[C@H]2[C@@H]3CCC4=CC(=O)C=C[C@]4(C)[C@@]3(F)C(=O)C[C@]12C)C(=O)CCl | O54: Plouffe 2016 | R54: Plouffe 2016
A55: MMV560185 | D55: 2000.00 | F55: 710.00 | G55: 510.00 | J55: =F55/D55 -> 0.36 | K55: 0.26 | M55: C1CCN(CC1)c2cc(nc3ccccc23)c4ccccn4 | O55: Duffy 2017 | Q55: Duffy 2017 | R55: Duffy 2017
A56: MMV1028806 | D56: 2000.00 | F56: 420.00 | G56: 520.00 | J56: =F56/D56 -> 0.21 | K56: 0.26 | M56: Fc1ccccc1C2CC2C(=O)Nc3nc(cs3)c4ccccn4 | O56: Duffy 2017 | Q56: Duffy 2017 | R56: Duffy 2017
A57: GP43 | D57: 5000.00 | G57: 1309.90 | K57: 0.26 | M57: O=S1(=O)C=C(Sc2nc3ccccc3s2)c2ccccc21 | O57: Paonessa 2022 | R57: Paonessa 2022
A58: GP73 | D58: 4815.90 | G58: 1266.71 | K58: 0.26 | M58: Cn1nnnc1Sc1ncnc2sccc21 | O58: Paonessa 2022 | R58: Paonessa 2022
A59: GP31 | D59: 967.19 | G59: 276.61 | K59: 0.29 | M59: Fc1ccc(cc1)C1=NN=C2c3cc(OC)c(OC)cc3N(C=C21)Cc1ccccc1OC | O59: Paonessa 2022 | R59: Paonessa 2022
A60: GP71 | D60: 1417.60 | G60: 417.37 | K60: 0.29 | M60: O=C(/C=C/c1ccco1)Nc1ccc(Nc2cc(C)nc(n2)N2CCCC2)cc1 | O60: Paonessa 2022 | R60: Paonessa 2022
A61: GP22 | D61: 5000.00 | G61: 1516.43 | K61: 0.30 | M61: CC1CC(C)(C)Nc2ccc(OC(=O)c3ccco3)cc12 | O61: Paonessa 2022 | R61: Paonessa 2022
A62: MMV1037162 | D62: 2000.00 | G62: 610.00 | K62: 0.31 | M62: CCNC(=O)C(C)Nc1nc(nc2sc(C)c(C)c12)c3cccnc3 | O62: Duffy 2017 | R62: Duffy 2017
A63: BRD-K69682028-019-01-6 | D63: 4601.94 | G63: 1440.42 | K63: 0.31 | M63: Fc1cccc(CN2C[C@H]3N[C@@H](C2)[C@H]3c2ccc(\C=C\c3ccccc3)cc2)c1 | O63: Plouffe 2016 | R63: Plouffe 2016
A64: GP41 | D64: 3719.80 | G64: 1165.48 | K64: 0.31 | M64: Clc1cc(CN2CCOCC2)c(O)c2ncccc12 | O64: Paonessa 2022 | R64: Paonessa 2022
A65: GP25 | D65: 5000.00 | G65: 1578.31 | K65: 0.32 | M65: CC1CC(C)(C)Nc2ccc(OC(=O)c3cccs3)cc12 | O65: Paonessa 2022 | R65: Paonessa 2022
A66: GNF-Pf-3948 | D66: 3940.00 | G66: 1250.00 | K66: 0.32 | M66: O=C1NC(=O)C2=CC=C3C4=NC5=CC(=CC=C5N4C(=O)C6=CC=C1C2=C36)C#N | O66: Plouffe 2016 | R66: Plouffe 2016
A67: GP13 | D67: 1736.70 | G67: 582.42 | K67: 0.34 | M67: Clc1ccc(cc1)C(O)C1CCN(CCCN2CCC(CC2)C(O)c2ccc(Cl)cc2)CC1 | O67: Paonessa 2022 | R67: Paonessa 2022
A68: GP34 | D68: 501.53 | G68: 169.17 | K68: =G68/D68 -> 0.34 | M68: Cc1cc(ncc1)Nc1nc(cs1)c1ccccn1 | O68: Paonessa 2022 | R68: Paonessa 2022
A69: GP70 | D69: 5000.00 | G69: 1718.38 | K69: 0.34 | M69: O=C(Nc1nc(cs1)c1ccccn1)Nc1ccc2OCOc2c1 | O69: Paonessa 2022 | R69: Paonessa 2022
A70: GP60 | D70: 5000.00 | G70: 1754.66 | K70: 0.35 | M70: O=S(=O)(Cc1ccccc1)c1oc(nc1S(=O)(=O)c1ccccc1)C1CCC(C)CC1 | O70: Paonessa 2022 | R70: Paonessa 2022
A71: GNF-Pf-78 | D71: 1503.00 | G71: 550.88 | K71: 0.37 | M71: CC1=C(C(=O)NCC2=CC=CN=C2)C3=C(O1)C(=O)C4=CC=CC=C4C3=O | O71: Plouffe 2016 | R71: Plouffe 2016
A72: GNF-Pf-4432 | D72: 549.00 | G72: 202.66 | K72: 0.37 | M72: FC(F)(F)C1=CC=CC(NC2=CC(=O)C3=CC=CC=C3C2=O)=C1 | O72: Plouffe 2016 | R72: Plouffe 2016
A73: GP53 | D73: 2359.40 | G73: 876.06 | K73: 0.37 | M73: Clc1cccc(c1)COc1ccc(CNCC2CCNCC2)cc1OC | O73: Paonessa 2022 | R73: Paonessa 2022
A74: GP30 | D74: 2926.80 | G74: 1088.17 | K74: 0.37 | M74: O=C(OCC)N1CCN(CC1)C(c1c2ccccc2n(O)c1c1ccccc1)c1ccccn1 | O74: Paonessa 2022 | R74: Paonessa 2022
A75: GP17 | D75: 1610.00 | G75: 600.09 | K75: 0.37 | M75: COc1ccc(cc1OC)CN1Cc2cc(Cl)c3cccnc3c2OC1 | O75: Paonessa 2022 | R75: Paonessa 2022
A76: GP11 | D76: 1545.10 | G76: 580.19 | K76: 0.38 | M76: Clc1cc(c(OC)cc1N)C(=O)NCC1CCN(CC2(O)CCN(CC3=CCC4CC3C4(C)C)CC2)CC1 | O76: Paonessa 2022 | R76: Paonessa 2022
A77: GNF-Pf-107 | D77: 712.00 | G77: 269.57 | K77: 0.38 | M77: COC1=CN=C(N=C1NC(C)C)C2=CC=CC=N2 | O77: Plouffe 2016 | R77: Plouffe 2016
A78: GP46 | D78: 3273.00 | G78: 1241.64 | K78: 0.38 | M78: CCC(NC)C(=O)NC1C(=O)N2C(CCC2CCC1CCNCc1ccccc1)C(=O)NC(c1ccccc1)c1ccccc1 | O78: Paonessa 2022 | R78: Paonessa 2022
A79: GP78 | D79: 322.81 | G79: 123.66 | K79: 0.38 | M79: Cc1cc(Nc2ccc(NC(=O)c3ccc(Nc4ccnc5ccccc54)cc3)cc2)nc(N)n1 | O79: Paonessa 2022 | R79: Paonessa 2022
A80: GP56 | D80: 2347.30 | G80: 910.13 | K80: 0.39 | M80: Cc1ccc(cc1Cl)c1ccc(CNCC2CCNCC2)o1 | O80: Paonessa 2022 | R80: Paonessa 2022
A81: GP5 | D81: 3526.60 | G81: 1381.98 | K81: 0.39 | M81: Oc1ccc(cc1)Nc1ccccc1CNCCCCN1CCN(CC1)c1ccc(F)cc1 | O81: Paonessa 2022 | R81: Paonessa 2022
A82: GNF-Pf-1153 | D82: 1660.00 | G82: 662.58 | K82: 0.40 | M82: CC1CCN(CC1)C2=CC(C)=C3C=C(NC(=O)C4=CC=C(O4)[N+]([O-])=O)C=CC3=N2 | O82: Plouffe 2016 | R82: Plouffe 2016
A83: GP6 | D83: 3868.10 | G83: 1559.51 | K83: 0.40 | M83: CC1(C)C2CC1C(CCN1CCC(N)CC1)CC2 | O83: Paonessa 2022 | R83: Paonessa 2022
A84: GP74 | D84: 2666.20 | G84: 1080.12 | K84: 0.41 | M84: Cc1c2c(nc(nc2sc1C)c1cccnc1)NC1CC1 | O84: Paonessa 2022 | R84: Paonessa 2022
A85: GNF-Pf-4133 | D85: 810.00 | G85: 333.92 | K85: 0.41 | M85: CN(C)CCNC1=CC(=NC2=CC=CC=C12)C3=CC=C4C=CC=CC4=C3 | O85: Plouffe 2016 | R85: Plouffe 2016
A86: BRD-K25161260-019-01-1 | D86: 4189.87 | G86: 1727.92 | K86: 0.41 | M86: CN(C)CC(=O)N1C[C@H]2N[C@@H](C1)[C@H]2c1ccc(cc1)-c1cccc(C)c1 | O86: Plouffe 2016 | R86: Plouffe 2016
A87: GP72 | D87: 5000.00 | G87: 2068.33 | K87: 0.41 | M87: CCN(CC)CCN1Cc2cc(Cl)c3cccnc3c2OC1 | O87: Paonessa 2022 | R87: Paonessa 2022
A88: GP2 | D88: 5000.00 | G88: 2089.22 | K88: 0.42 | M88: O=S(=O)(c1ccc(s1)S(=O)(=O)NCc1ccccn1)c1ncc(cc1Cl)C(F)(F)F | O88: Paonessa 2022 | R88: Paonessa 2022
A89: MMV1029203 | D89: 2000.00 | G89: 840.00 | K89: 0.42 | M89: CNC(=O)CNc1nc(nc2scc(c3ccccc3)c12)c4ccccn4 | O89: Duffy 2017 | R89: Duffy 2017
A90: GP20 | D90: 1656.50 | G90: 698.38 | K90: 0.42 | M90: Clc1cc2CN(COc2c2ncccc21)CCc1ccccc1 | O90: Paonessa 2022 | R90: Paonessa 2022
A91: GP1 | D91: 5000.00 | G91: 2112.58 | K91: 0.42 | M91: FC(F)(F)c1cc(ccc1)NC(=O)OCCSc1ccc(c2nonc12)[N+]([O-])=O | O91: Paonessa 2022 | R91: Paonessa 2022
A92: GP49 | D92: 5000.00 | G92: 2120.51 | K92: 0.42 | M92: Cc1cc(NC(=S)NC(C)C23CC4CC(CC(C2)C4)C3)c(OC)cc1 | O92: Paonessa 2022 | R92: Paonessa 2022
A93: GP57 | D93: 5000.00 | G93: 2134.16 | K93: 0.43 | M93: O=S(=O)(c1oc(nc1C#N)c1ccccc1)N1CCCCC1 | O93: Paonessa 2022 | R93: Paonessa 2022
A94: GP4 | D94: 2209.40 | G94: 943.58 | K94: 0.43 | M94: COc1ccccc1CNCCN1CC(c2ccccc2)N(CCNCc2ccccc2OC)CC1c1ccccc1 | O94: Paonessa 2022 | R94: Paonessa 2022
A95: GP26 | D95: 5000.00 | G95: 2169.52 | K95: 0.43 | M95: CC(CC)c1ccc(cc1)NC(=S)Nc1ccn(n1)C12CC3CC(CC(C3)C1)C2 | O95: Paonessa 2022 | R95: Paonessa 2022
A96: GNF-Pf-109 | D96: 2878.00 | G96: 1250.00 | K96: 0.43 | M96: CC1=CC=C(O)C(=C1)C(=O)C2=CNC(=C2)C3=NC4=CC=CC=C4N3 | O96: Plouffe 2016 | R96: Plouffe 2016
A97: GP19 | D97: 3181.40 | G97: 1415.68 | K97: 0.44 | M97: Clc1cc2CN(COc2c2ncccc21)Cc1cccnc1 | O97: Paonessa 2022 | R97: Paonessa 2022
A98: GP47 | D98: 5000.00 | G98: 2243.32 | K98: 0.45 | M98: CC(CC)S(=O)(=O)c1oc(nc1S(=O)(=O)c1ccc(F)cc1)c1ccc(F)cc1 | O98: Paonessa 2022 | R98: Paonessa 2022
A99: GP28 | D99: 5000.00 | G99: 2271.74 | K99: 0.45 | M99: O=S(C)(=O)c1nc(cc(n1)C(F)(F)F)c1ccc(F)cc1 | O99: Paonessa 2022 | R99: Paonessa 2022
A100: GP7 | D100: 1136.00 | G100: 517.91 | K100: 0.46 | M100: OCC(O)CN(C)CCCN1CN(c2ccccc2)C2(CCN(CC2)CCC2CCC3CC2C3(C)C)C1=O | O100: Paonessa 2022 | R100: Paonessa 2022
A101: BRD-K16971439-019-01-0 | D101: 5000.00 | G101: 2312.61 | K101: 0.46 | M101: CS(=O)(=O)N1C[C@H]2N[C@@H](C1)[C@H]2c1ccc(cc1)-c1ccccc1 | O101: Plouffe 2016 | R101: Plouffe 2016
A102: GP3 | D102: 5000.00 | G102: 2335.00 | K102: 0.47 | M102: O=C(OC)c1ccc2c(c1)n1CC(COc3ccccc3c1c2C1CCCCC1)N(CCCCCNC)CCN(C)C | O102: Paonessa 2022 | R102: Paonessa 2022
A103: GP54 | D103: 5000.00 | G103: 2342.72 | K103: 0.47 | M103: N#Cc1nc(oc1S(=O)(=O)c1ccc(F)cc1)C(C)(C)C | O103: Paonessa 2022 | R103: Paonessa 2022
A104: GP10 | D104: 5000.00 | G104: 2349.40 | K104: 0.47 | M104: CCOc1ccc2ccccc2c1C(=O)NCC1CCN(CCC2CCC3CC2C3(C)C)CC1 | O104: Paonessa 2022 | R104: Paonessa 2022
A105: GNF-Pf-1319 | D105: 1491.00 | G105: 701.83 | K105: 0.47 | M105: CCC1=CC=C2NC(=O)C3(NN=C(S3)C4=CC=C(C)C=C4)C2=C1 | O105: Plouffe 2016 | R105: Plouffe 2016
A106: GNF-Pf-5664 | D106: 8.94 | G106: 4.23 | K106: 0.47 | M106: CC(C=NNC(N)=S)=NNC(N)=S | O106: Plouffe 2016 | R106: Plouffe 2016
A107: Epoxomycin | B107: Epoxomycin | D107: 8.00 | E107: 12.10 | F107: 0.42 | G107: 3.80 | I107: =E107/D107 -> 1.51 | J107: =F107/D107 -> 0.05 | K107: 0.48 | M107: CC[C@H](C)[C@@H](C(=O)N[C@@H]([C@@H](C)O)C(=O)N[C@@H](CC(C)C)C(=O)[C@]1(CO1)C)NC(=O)[C@H]([C@@H](C)CC)N(C)C(=O)C | O107: Lelievre 2012 | P107: D'Allesandro 2015 | Q107: Lelievre 2012 | R107: Bowman 2014
A108: GP81 | D108: 866.38 | G108: 427.83 | K108: 0.49 | M108: OC=1C(=O)c2ccccc2C2=NC(=O)C(C)(C)C=12 | O108: Paonessa 2022 | R108: Paonessa 2022
A109: GNF-Pf-2943 | D109: 625.00 | G109: 319.36 | K109: 0.51 | M109: [O-][N+](=O)C1=CC=C(O1)C=NNC2=NC(NC3=CC=CC=C3)=NC(NC4=CC=CC=C4)=N2 | O109: Plouffe 2016 | R109: Plouffe 2016
A110: GP65 | D110: 903.88 | G110: 480.20 | K110: 0.53 | M110: COc1ccc(cc1)NC(=O)Nc1ccc(cc1)Nc1nc(C)cc(Nc2ccc(C)cc2)n1 | O110: Paonessa 2022 | R110: Paonessa 2022
A111: GP36 | D111: 5000.00 | G111: 2663.32 | K111: 0.53 | M111: Oc1cc2OCOc2cc1C(c1cccc(OC)c1O)N1CCOCC1 | O111: Paonessa 2022 | R111: Paonessa 2022
A112: GP18 | D112: 2314.80 | G112: 1234.69 | K112: 0.53 | M112: Clc1cc2CN(COc2c2ncccc21)CCOC | O112: Paonessa 2022 | R112: Paonessa 2022
A113: GP55 | D113: 5000.00 | G113: 2671.61 | K113: 0.53 | M113: Cc1ccc(s1)c1nc(nc(c1)C(F)(F)F)S(=O)(=O)CC | O113: Paonessa 2022 | R113: Paonessa 2022
A114: GNF-Pf-1950 | D114: 437.00 | G114: 233.64 | K114: 0.53 | M114: CC1=C(C(=O)NC2CCS(=O)(=O)C2)C3=C(O1)C(=O)C4=CC=CC=C4C3=O | O114: Plouffe 2016 | R114: Plouffe 2016
A115: GP62 | D115: 776.74 | G115: 423.97 | K115: 0.55 | M115: CC(C)CC(=O)Nc1ccc(cc1)Nc1nc(C)cc(Nc2ccc(C)cc2)n1 | O115: Paonessa 2022 | R115: Paonessa 2022
A116: GNF-Pf-136 | D116: 489.00 | G116: 273.76 | K116: 0.56 | M116: COC1=CN=C(N=C1N2CCCC2)C3=CC=CC=N3 | O116: Plouffe 2016 | R116: Plouffe 2016
A117: GNF-Pf-279 | D117: 2222.00 | G117: 1250.00 | K117: 0.56 | M117: COC(=O)C1=C(OC)C(=O)OC12C=CC(=O)C=C2 | O117: Plouffe 2016 | R117: Plouffe 2016
A118: GP14 | D118: 3458.90 | G118: 1959.59 | K118: 0.57 | M118: Oc1ccc(cc1)c1n2CCCc3cccc(c32)c1CCCN1CCC(CC1)OC(c1ccccc1)c1ccccc1 | O118: Paonessa 2022 | R118: Paonessa 2022
A119: GP39 | D119: 539.97 | G119: 308.40 | K119: 0.57 | M119: Clc1cnc(Nc2nc(cs2)c2ccccn2)cc1 | O119: Paonessa 2022 | R119: Paonessa 2022
A120: GP45 | D120: 5000.00 | G120: 2856.56 | K120: 0.57 | M120: CCC(N)C(=O)NC1C(=O)N2C(CCC2CCC1CCNCc1ccccc1)C(=O)NC(c1ccccc1)c1ccccc1 | O120: Paonessa 2022 | R120: Paonessa 2022
A121: GP48 | D121: 2134.10 | G121: 1241.14 | K121: 0.58 | M121: Cc1ccc(cc1Cl)c1ccc(CNCCCN(C)C)o1 | O121: Paonessa 2022 | R121: Paonessa 2022
A122: GNF-Pf-1611 | D122: 1185.00 | G122: 693.30 | K122: 0.59 | M122: CC1=C(C(=O)NCC2CCCO2)C3=C(O1)C(=O)C4=CC=CC=C4C3=O | O122: Plouffe 2016 | R122: Plouffe 2016
A123: MMV023985 | D123: 695.36 | F123: 5000.00 | G123: 410.00 | J123: =F123/D123 -> 7.19 | K123: 0.59 | M123: COc1ccc(cc1OC)c2cnc3ccc(nn23)N4CCCC4 | O123: Duffy 2017 | Q123: Duffy 2017 | R123: Duffy 2017
A124: GP29 | D124: 1169.20 | G124: 699.43 | K124: 0.60 | M124: Clc1cc(CN2CCCC2)c(O)c2ncccc21 | O124: Paonessa 2022 | R124: Paonessa 2022
A125: GP64 | D125: 437.24 | G125: 263.74 | K125: 0.60 | M125: Cc1cc(cc(C)c1)C(=O)Nc1ccc(cc1)Nc1nc(C)cc(Nc2ccc(OC)cc2)n1 | O125: Paonessa 2022 | R125: Paonessa 2022
A126: GNF-Pf-5216 | D126: 123.20 | G126: 76.13 | K126: 0.62 | M126: CCSC(Cl)=C(NC(=O)C1=CC=CC=C1)[P+](C2=CC=CC=C2)(C3=CC=CC=C3)C4=CC=CC=C4 | O126: Plouffe 2016 | R126: Plouffe 2016
A127: GP58 | D127: 5000.00 | G127: 3150.45 | K127: 0.63 | M127: FC(F)(F)c1ccc(cc1)C(c1c(C)[NH]c2ccccc12)N1CCCCC1 | O127: Paonessa 2022 | R127: Paonessa 2022
A128: GP33 | D128: 270.26 | G128: 173.60 | K128: 0.64 | M128: CN1CCN(CC1)c1cc2[NH]c(nc2cc1)c1ccc2nc([NH]c2c1)c1ccc(OCC)cc1 | O128: Paonessa 2022 | R128: Paonessa 2022
A129: GP44 | D129: 5000.00 | G129: 3306.53 | K129: 0.66 | M129: Oc1ccc2NC(C)(C)C=C(C)c2c1 | O129: Paonessa 2022 | R129: Paonessa 2022
A130: GP52 | D130: 1249.50 | G130: 828.87 | K130: 0.66 | M130: Clc1cc(c2ccc(CNCCN3CCNCC3)o2)c(Cl)cc1 | O130: Paonessa 2022 | R130: Paonessa 2022
A131: GP24 | D131: 5000.00 | G131: 3332.63 | K131: 0.67 | M131: O=S(CC(=O)OC(C)C)c1ccc(cc1[N+]([O-])=O)C(F)(F)F | O131: Paonessa 2022 | R131: Paonessa 2022
A132: MMV010576 | D132: 97.13 | F132: 150.00 | G132: 66.00 | J132: =F132/D132 -> 1.54 | K132: =G132/D132 -> 0.68 | M132: COc1cc(ccc1O)c2cc(cnc2N)c3ccc(cc3)S(=O)(=O)C | O132: Duffy 2017 | Q132: Duffy 2017 | R132: Duffy 2017
A133: GP82 | D133: 2246.60 | G133: 1534.34 | K133: 0.68 | M133: COc1ccc(cc1)CN(Cc1ccc(OC)cc1)CC1CC2CCN1CC2c1cc(nc(n1)c1ccncc1)C(CC)CC | O133: Paonessa 2022 | R133: Paonessa 2022
A134: GP61 | D134: 3177.50 | G134: 2175.43 | K134: 0.68 | M134: COc1ccc(cc1)C(c1c(c2ccccc2)n(O)c2ccccc12)N1CCOCC1 | O134: Paonessa 2022 | R134: Paonessa 2022
A135: BRD-K65395967-019-01-2 | D135: 5000.00 | G135: 3426.27 | K135: 0.69 | M135: O=C(Nc1ccc2OCOc2c1)N1C[C@H]2N[C@@H](C1)[C@H]2c1ccc(cc1)-c1ccc(cc1)C#N | O135: Plouffe 2016 | R135: Plouffe 2016
A136: GP76 | D136: 756.92 | G136: 520.53 | K136: 0.69 | M136: CN1CCC(NC(=O)c2ccc(Nc3nc4N(C5CCCC5)C(CC)C(=O)N(C)c4cn3)c(OC)c2)CC1 | O136: Paonessa 2022 | R136: Paonessa 2022
A137: GP32 | D137: 5000.00 | G137: 3472.12 | K137: 0.69 | M137: Nc1c2cc3CN(C)CCc3nc2sc1C(=O)Nc1nc2ccccc2s1 | O137: Paonessa 2022 | R137: Paonessa 2022
A138: GNF-Pf-2727 | D138: 976.00 | G138: 693.39 | K138: 0.71 | M138: ClCC(=O)NC1=CC=C(CN2CCCCC2)C=C1 | O138: Plouffe 2016 | R138: Plouffe 2016
A139: GP21 | D139: 5000.00 | G139: 3564.75 | K139: 0.71 | M139: O=C(/C(=C/c1ccncc1)n1cncn1)C(C)(C)C | O139: Paonessa 2022 | R139: Paonessa 2022
A140: DDD01073292 | D140: 1840.00 | G140: 1313.64 | K140: 0.71 | M140: CC1=CN2CCCC(CNCC3=CC4=CC=CC=C4OC3)C2=N1 | O140: Abraham 2020 | R140: Abraham 2020
A141: GP80 | D141: 34.47 | G141: 24.77 | K141: 0.72 | M141: O=C(NC(Cc1ccccc1)C(=O)NC(CC(C)C)Br(O)O)c1cnccn1 | O141: Paonessa 2022 | R141: Paonessa 2022
A142: GNF-Pf-4272 | D142: 742.00 | G142: 545.40 | K142: 0.74 | M142: O=C(NC1=CC=C(C=C1)C2=NC3=CC=C(C=C3N2)C4=NC5=CC=C(NC(=O)C6=CC=CC7=CC=CC=C67)C=C5N4)C8=CC=CC9=CC=CC=C89 | O142: Plouffe 2016 | R142: Plouffe 2016
A143: GP67 | D143: 5000.00 | G143: 3703.44 | K143: 0.74 | M143: O=S(=O)(N1CCCC1C(=O)Nc1nc2c3ccccc3SCc2s1)c1cccs1 | O143: Paonessa 2022 | R143: Paonessa 2022
A144: GP66 | D144: 5000.00 | G144: 3783.63 | K144: 0.76 | M144: Cc1cc(nn1C)C(=O)NC1=NC2c3ccccc3SCC2S1 | O144: Paonessa 2022 | R144: Paonessa 2022
A145: GNF179 | B145: GNF179 | D145: 4.31 | E145: 19.92 | F145: 9.15 | G145: 3.36 | I145: =E145/D145 -> 4.62 | J145: =F145/D145 -> 2.12 | K145: 0.78 | M145: CC1(C2=NC(=C(N2CCN1C(=O)CN)NC3=CC=C(C=C3)Cl)C4=CC=C(C=C4)F)C | O145: Kuhen 2014 LaMonte 2020 | P145: Plouffe 2016 | Q145: Plouffe 2016 | R145: Plouffe 2016
A146: GNF-Pf-4046 | D146: 408.00 | G146: 320.03 | K146: 0.78 | M146: CC1=CC=C(NC(=O)ON=C2CCCC2)C=C1 | O146: Plouffe 2016 | R146: Plouffe 2016
A147: MMV024443 | D147: 720.99 | F147: 2710.00 | G147: 570.00 | J147: =F147/D147 -> 3.76 | K147: 0.79 | M147: CN(C(=O)c1cc2c(cccc2[nH]1)c3cncnc3)c4ccccc4 | O147: Duffy 2017 | Q147: Duffy 2017 | R147: Duffy 2017
A148: MMV019189 | D148: 1131.76 | F148: 1970.00 | G148: 900.00 | J148: =F148/D148 -> 1.74 | K148: 0.80 | M148: Cc1ccc2c(NC(=O)C23NN=C(S3)c4ccccc4)c1C | O148: Duffy 2017 | Q148: Duffy 2017 | R148: Duffy 2017
A149: MMV022478 | D149: 779.51 | F149: 2890.00 | G149: 620.00 | J149: =F149/D149 -> 3.71 | K149: 0.80 | M149: Clc1cccc(c1)c2cnn3ccc(nc23)C(=O)Nc4ccc(cc4)N5CCNCC5 | O149: Duffy 2017 | Q149: Duffy 2017 | R149: Duffy 2017
A150: GNF-Pf-2288 | D150: 213.90 | G150: 175.24 | K150: 0.82 | M150: CC(=O)N(C1=CC=CC(Cl)=C1)C2=C(N3CCOCC3)C(=O)C4=CC=CC=C4C2=O | O150: Plouffe 2016 | R150: Plouffe 2016
A151: MMV000050 | B151: Chlorproguanil | D151: 5000.00 | E151: 5000.00 | F151: 2002.60 | G151: 4160.00 | I151: =E151/D151 -> 1.00 | J151: =F151/D151 -> 0.40 | K151: 0.83 | M151: CC(C)NC(=N)NC(=N)Nc1ccc(Cl)c(Cl)c1 | O151: Duffy 2013 | P151: Plouffe 2016 | Q151: Lucantoni 2016 | R151: Lucantoni 2015
A152: GNF-Pf-5675 | D152: 8.92 | G152: 7.48 | K152: 0.84 | M152: COC(OC)C(C)=NNC(N)=S | O152: Plouffe 2016 | R152: Plouffe 2016
A153: GP50 | D153: 2190.10 | G153: 1857.36 | K153: 0.85 | M153: O=C(/C(=C/c1ccc(Cl)cc1Cl)n1cncn1)C(C)C | O153: Paonessa 2022 | R153: Paonessa 2022
A154: MMV026356 | D154: 282.58 | F154: 740.00 | G154: 240.00 | J154: =F154/D154 -> 2.62 | K154: 0.85 | M154: CCn1ncc2c(NC3CCOCC3)c(CNC(=O)c4ccnn4C)c(C)nc12 | O154: Duffy 2017 | Q154: Duffy 2017 | R154: Duffy 2017
A155: MMV000018 | B155: NPC-1161B | D155: 3360.00 | E155: 2180.00 | F155: 2032.60 | G155: 2864.86 | I155: =E155/D155 -> 0.65 | J155: =F155/D155 -> 0.60 | K155: 0.85 | M155: COc1cc(N[C@H](C)CCCN)c2nccc(C)c2c1Oc3ccc(Cl)c(Cl)c3 | O155: Duffy 2013 | P155: Duffy 2013 | Q155: Lucantoni 2016 | R155: Plouffe 2016
A156: GP68 | D156: 5000.00 | G156: 4297.01 | K156: 0.86 | M156: O=S(=O)(Cc1ccccc1)CCCC(=O)Nc1nc2c3ccccc3SCc2s1 | O156: Paonessa 2022 | R156: Paonessa 2022
A157: MMV023860 | D157: 1496.28 | F157: 2130.00 | G157: 1330.00 | J157: =F157/D157 -> 1.42 | K157: 0.89 | M157: NS(=O)(=O)c1cccc(c1)c2ccc3ncc(nc3c2)N4CCOCC4 | O157: Duffy 2017 | Q157: Duffy 2017 | R157: Duffy 2017
A158: GNF-Pf-2153 | D158: 185.10 | G158: 174.28 | K158: 0.94 | M158: COC1=CC=C(C=C1)S(=O)(=O)N=C2C=C(NC3=CC=C(O)C=C3)C(=O)C4=CC=CC=C24 | O158: Plouffe 2016 | R158: Plouffe 2016
A159: GNF-Pf-3997 | D159: 1323.00 | G159: 1250.00 | K159: 0.94 | M159: CC1=CC(C)=NC(NC2=NC(C)=C3C=C(C)C(C)=CC3=N2)=N1 | O159: Plouffe 2016 | R159: Plouffe 2016
A160: MMV665852 | B160: NSC 35217 | D160: 5171.67 | E160: 3978.00 | G160: 5000.00 | I160: =E160/D160 -> 0.77 | K160: 0.97 | M160: Clc1ccc(NC(=O)Nc2ccc(Cl)c(Cl)c2)cc1Cl | O160: This study | P160: This study | Q160: This study | R160: This study
A161: GNF-Pf-3195 | D161: 91.10 | G161: 89.22 | K161: 0.98 | M161: COC1=CC2=NC(=NC(N)=C2C=C1OC)N3CCN(CC3)C4=NC(N)=C5C=C(OC)C(OC)=CC5=N4 | O161: Plouffe 2016 | R161: Plouffe 2016
A162: DDD01079164 | D162: 5000.00 | F162: 5000.00 | G162: 4970.00 | J162: =F162/D162 -> 1.00 | K162: 0.99 | M162: CN1CCC(CC1)NCC(O)C1=CC=CC(OCC2=CC=CC=C2)=C1 | O162: Delves 2018 | Q162: Delves 2018 | R162: Delves 2018
A163: MMV007224 | B163: MMV007224 | D163: 5000.00 | E163: 5000.00 | G163: 5000.00 | I163: =E163/D163 -> 1.00 | K163: 1.00 | M163: Brc1ccc(Nc2nc3ccccc3nc2Nc4ccc(Br)cc4)cc1 | O163: This study | P163: This study | Q163: This study | R163: This study
A164: MMV020746 | B164: MMV020746 | D164: 5000.00 | E164: 5487.00 | G164: 5000.00 | I164: =E164/D164 -> 1.10 | K164: 1.00 | M164: Cc1ccc(Oc2ncccc2C(=O)Nc3cccc4cccnc34)c(C)c1 | O164: This study | P164: This study | Q164: This study | R164: This study
A165: BRD-K74949371-001-01-3 | D165: 4998.13 | G165: 5000.00 | K165: 1.00 | M165: C[C@H](CO)N1C[C@H](C)[C@H](CN(C)C(=O)Nc2ccc(cc2)C(F)(F)F)Oc2c(NC(=O)c3ccc(cc3)-c3nccs3)cccc2C1=O | O165: Plouffe 2016 | R165: Plouffe 2016
A166: DDD01255740 | D166: 3559.50 | F166: 5000.00 | G166: 3567.00 | J166: =F166/D166 -> 1.40 | K166: 1.00 | M166: CCOc1ccc2ccccc2c1CNCC1CCNCC1 | O166: Delves 2018 | Q166: Delves 2018 | R166: Delves 2018
A167: BRD-K38571893-001-01-9 | D167: 4908.15 | G167: 5000.00 | K167: 1.02 | M167: C[C@@H](CO)N1C[C@H](C)[C@@H](CN(C)S(=O)(=O)c2ccc(F)cc2)OCCCC[C@H](C)Oc2ccc(cc2C1=O)N(C)C | O167: Plouffe 2016 | R167: Plouffe 2016
A168: GP9 | D168: 4883.60 | G168: 5000.00 | K168: 1.02 | M168: Clc1ccc(NC(=O)N(CC=C)CC(Cc2ccccc2O)c2ccccc2)cc1Cl | O168: Paonessa 2022 | R168: Paonessa 2022
A169: GNF-Pf-4512 | D169: 270.10 | G169: 285.14 | K169: 1.06 | M169: CC(C)CCNCC(O)CN1C2=CC=C(Br)C=C2C3=CC(Br)=CC=C13 | O169: Plouffe 2016 | R169: Plouffe 2016
A170: BRD-K17570530-001-01-5 | D170: 4621.47 | G170: 5000.00 | K170: 1.08 | M170: C[C@H](CO)N1C[C@@H](C)[C@H](CN(C)S(=O)(=O)c2ccc(F)cc2)OCCCC[C@@H](C)Oc2ccc(cc2C1=O)N(C)C | O170: Plouffe 2016 | R170: Plouffe 2016
A171: GNF-Pf-1340 | D171: 598.00 | G171: 650.37 | K171: 1.09 | M171: CC(NCCN1CCNCC1)C2=CC(=CC3=C2CCC3(C)C)C(C)(C)C | O171: Plouffe 2016 | R171: Plouffe 2016
A172: GP40 | D172: 38.09 | G172: 41.65 | K172: 1.09 | M172: C/[N+](C)=C1/C=CC2=Nc3ccc(cc3SC2=C1)N(C)C | O172: Paonessa 2022 | R172: Paonessa 2022
A173: BRD-K16425675-019-01-0 | D173: 4556.10 | G173: 5000.00 | K173: 1.10 | M173: COc1ccccc1NC(=O)N1C[C@H]2N[C@@H](C1)[C@@H]2c1ccc(\C=C\c2ccccc2)cc1 | O173: Plouffe 2016 | R173: Plouffe 2016
A174: BRD-K77041516-001-01-2 | D174: 4454.72 | G174: 5000.00 | K174: 1.12 | M174: C[C@H](CO)N1C[C@@H](C)[C@@H](CN(C)S(=O)(=O)c2ccc(F)cc2)OCCCC[C@@H](C)Oc2ccc(cc2C1=O)N(C)C | O174: Plouffe 2016 | R174: Plouffe 2016
A175: MMV667491 | D175: 1230.00 | E175: 891.50 | F175: 696.40 | G175: 1390.65 | I175: =E175/D175 -> 0.72 | J175: =F175/D175 -> 0.57 | K175: 1.13 | M175: C12=C(N=CN(CCCN(C)C)C1=N)Oc3c(ccc(cccc4)c34)C2c5ccc(OC)cc5 | O175: Duffy 2013 | P175: Plouffe 2016 | Q175: D Allesandro 2016 | R175: Plouffe 2016
A176: MMV019918 | D176: 280.00 | E176: 824.00 | F176: 406.90 | G176: 320.00 | I176: =E176/D176 -> 2.94 | J176: =F176/D176 -> 1.45 | K176: 1.14 | M176: Clc1cc(Br)ccc1c2oc(CNCC3CCNCC3)cc2 | O176: Bowman 2014 | P176: Duffy 2013 | Q176: D Allesandro 2016 | R176: Bowman 2014
A177: GNF-Pf-2103 | D177: 1072.00 | G177: 1250.00 | K177: 1.17 | M177: COC1=CC=CC=C1NC2=CC(=NS(=O)(=O)C3=CC=CS3)C4=CC=CC=C4C2=O | O177: Plouffe 2016 | R177: Plouffe 2016
A178: MMV084032 | B178: Borrelidine | D178: 4228.33 | E178: 5000.00 | G178: 5000.00 | I178: =E178/D178 -> 1.18 | K178: 1.18 | M178: CC1CC(C)CC(C)C(O)\C(=C/C=C\CC(OC(=O)CC(O)C(C)C1)C2CCCC2C(=O)O)\C#N | O178: This study | P178: This study | Q178: This study | R178: This study
A179: BRD-K64741770-001-01-3 | D179: 3072.98 | G179: 3719.47 | K179: 1.21 | M179: CN(C)C(=O)c1cccc(c1)-c1ccc2N[C@@H](CO)[C@@H]3CCN([C@@H]3c2c1)S(=O)(=O)c1ccc(C)cc1 | O179: Plouffe 2016 | R179: Plouffe 2016
A180: GNF-Pf-4739 | D180: 112.80 | G180: 138.77 | K180: 1.23 | M180: CC1=CC=NC(NC2=NC(=CS2)C3=CC=CC=N3)=C1 | O180: Plouffe 2016 | R180: Plouffe 2016
A181: MMV007591 | D181: 920.00 | E181: 5000.00 | F181: 1091.00 | G181: 1150.00 | I181: =E181/D181 -> 5.43 | J181: =F181/D181 -> 1.19 | K181: 1.25 | M181: COc1ccc(cc1)C(=O)C(CCC(CNC(C)(C)C)C(=O)c2ccc(OC)cc2)CNC(C)(C)C | O181: Bowman 2014 | P181: Plouffe 2016 | Q181: Duffy 2013 | R181: Bowman 2014
A182: MMV020081 | D182: 244.52 | F182: 680.00 | G182: 310.00 | J182: =F182/D182 -> 2.78 | K182: 1.27 | M182: COc1cccc(CC(=O)N2CCC(CC2)n3c(C)nc4ccc(F)cc34)c1 | O182: Duffy 2017 | Q182: Duffy 2017 | R182: Duffy 2017
A183: GNF-Pf-2008 | D183: 632.00 | G183: 810.09 | K183: 1.28 | M183: CC1=CC=C(C=C1)S(=O)(=O)N=C2C=C(SC3=NC4=CC=CC=C4N3)C(=O)C5=CC=CC=C25 | O183: Plouffe 2016 | R183: Plouffe 2016
A184: MMV000760 | D184: 3760.50 | E184: 5000.00 | F184: 3722.00 | G184: 5000.00 | I184: =E184/D184 -> 1.33 | J184: =F184/D184 -> 0.99 | K184: 1.33 | M184: Oc1c(CN2CCN(CC2)c3ccccc3F)cc(Br)c4cccnc14 | O184: Lucantoni 2013 | P184: Plouffe 2016 | Q184: Sun 2014 | R184: Plouffe 2016
A185: MMV1542945 | B185: ACT-451840 | D185: 8.34 | E185: 9.90 | G185: 11.10 | I185: =E185/D185 -> 1.19 | K185: 1.33 | M185: CC(C)(C)c1ccc(cc1)/C=C/C(=O)N(Cc1ccc(cc1)N1CCN(CC1)C(C)=O)[C@@H](Cc1ccccc1)C(=O)N1CCN(Cc2ccc(C#N)cc2)CC1 | O185: This study | P185: This study | Q185: This study | R185: This study
A186: BRD-K28504277-001-01-8 | D186: 2667.33 | G186: 3557.32 | K186: 1.33 | M186: CC(C)CC#Cc1ccc(cc1)[C@H]1[C@H](CO)N2CCCCN(C[C@H]12)C(=O)Nc1ccccc1 | O186: Plouffe 2016 | R186: Plouffe 2016
A187: GNF-Pf-4604 | D187: 120.80 | G187: 167.45 | K187: 1.39 | M187: O=C(NC1=CC=C(C=C1)C2=NC3=CC=CC=C3N2)C4=CC=CC(=N4)C(=O)NC5=CC=C(C=C5)C6=NC7=CC=CC=C7N6 | O187: Plouffe 2016 | R187: Plouffe 2016
A188: BRD-K41549807-001-01-5 | D188: 3606.76 | G188: 5000.00 | K188: 1.39 | M188: OC[C@H]1[C@H]([C@H]2CN(CCCCN12)C(=O)Nc1ccccc1F)c1ccc(\C=C\c2ccccc2)cc1 | O188: Plouffe 2016 | R188: Plouffe 2016
A189: MMV396749 | D189: 928.00 | E189: 1384.56 | F189: 5000.00 | G189: 1354.33 | I189: =E189/D189 -> 1.49 | J189: =F189/D189 -> 5.39 | K189: 1.46 | M189: C12(Nc(cccc3)c3c4n1c5c(cccc5)n4)C(=O)Nc(ccc(OC)c6)c26 | O189: Duffy 2013 | P189: Plouffe 2016 | Q189: Sun 2014 | R189: Plouffe 2016
A190: BRD-K20449903-001-01-6 | D190: 3415.17 | G190: 5000.00 | K190: 1.46 | M190: OC[C@@H]1[C@@H]([C@H]2CN(CCCCN12)S(=O)(=O)c1cccs1)c1ccc(\C=C\c2ccccc2)cc1 | O190: Plouffe 2016 | R190: Plouffe 2016
A191: MMV085499 | D191: 95.00 | F191: 550.00 | G191: 140.00 | J191: =F191/D191 -> 5.79 | K191: 1.47 | M191: NC(=O)c1ccc(cc1)c2nc(cnc2N)c3ccc(cc3)C#N | O191: Duffy 2017 | Q191: Duffy 2017 | R191: Duffy 2017
A192: DM4 | D192: 706.00 | G192: 1080.00 | K192: 1.53 | M192: COc1ccc(cc1)CCNCC(O)CNc1nc2ccccc2n1Cc1ccc(F)cc1 | O192: Mambwe 2021 | R192: Mambwe 2021
A193: GNF-Pf-445 | D193: 761.00 | G193: 1166.57 | K193: 1.53 | M193: CC1=NC(=C(O1)N2CCCCC2)[P+](C3=CC=CC=C3)(C4=CC=CC=C4)C5=CC=CC=C5 | O193: Plouffe 2016 | R193: Plouffe 2016
A194: GNF-Pf-403 | D194: 797.00 | G194: 1250.00 | K194: 1.57 | M194: CCOC(=O)C1=C(Cl)N=NC(C2=CC=CC=C2)=C1C3=CC=CC=C3 | O194: Plouffe 2016 | R194: Plouffe 2016
A195: GNF-Pf-5666 | D195: 8.92 | G195: 14.46 | K195: 1.62 | M195: CN1C(NNC(N)=S)C(NNC(N)=S)N(C)C1=O | O195: Plouffe 2016 | R195: Plouffe 2016
A196: BRD-K12503654-001-01-1 | D196: 1990.90 | G196: 3240.33 | K196: =G196/D196 -> 1.63 | M196: C[C@@H](CO)N1C[C@H](C)[C@H](CN(C)C(=O)c2ccccc2)Oc2ncc(cc2C1=O)C#Cc1ccccc1 | O196: Plouffe 2016 | R196: Plouffe 2016
A197: BRD-K72492940-001-01-8 | D197: 2922.23 | G197: 5000.00 | K197: 1.71 | M197: COc1ccccc1-c1ccc2N[C@@H](CO)[C@@H]3CCN([C@@H]3c2c1)C(=O)C1CCC1 | O197: Plouffe 2016 | R197: Plouffe 2016
A198: MMV022029 | D198: 819.34 | F198: 4040.00 | G198: 1420.00 | J198: =F198/D198 -> 4.93 | K198: 1.73 | M198: CN1CCC(CC1)NCc2cccc(c2)c3ccc(cc3)S(=O)(=O)NCc4ccccc4 | O198: Duffy 2017 | Q198: Duffy 2017 | R198: Duffy 2017
A199: GNF-Pf-5192 | D199: 122.90 | G199: 216.10 | K199: 1.76 | M199: CCN1C(NNC(N)=S)C(NNC(N)=S)N(CC)C1=O | O199: Plouffe 2016 | R199: Plouffe 2016
A200: GNF-Pf-3641 | D200: 166.70 | G200: 297.20 | K200: 1.78 | M200: [O-][N+](=O)C1=CC(Br)=C(NC2=CC=CC=C2)C(=C1)[N+]([O-])=O | O200: Plouffe 2016 | R200: Plouffe 2016
... 337 more rows

Sheet Figure S2a
A1: Source Data for Supplementary Figure S2a
B2: Stage distribution (%)
B3: Ring | E3: Trophozoite | H3: Stage I | K3: Stage II | N3: Stage III | Q3: Stage IV | T3: Stage V
B4: n1 | C4: n2 | D4: n3 | E4: n1 | F4: n2 | G4: n3 | H4: n1 | I4: n2 | J4: n3 | K4: n1 | L4: n2 | M4: n3 | N4: n1 | O4: n2 | P4: n3 | Q4: n1 | R4: n2 | S4: n3 | T4: n1 | U4: n2 | V4: n3
A5: ABS | B5: 95.8 | C5: 93.1 | D5: 94.5 | E5: 4.2 | F5: 6.9 | G5: 5.5 | H5: 0 | I5: 0 | J5: 0 | K5: 0 | L5: 0 | M5: 0 | N5: 0 | O5: 0 | P5: 0 | Q5: 0 | R5: 0 | S5: 0 | T5: 0 | U5: 0 | V5: 0
A6: iGc | B6: 2 | C6: 6 | D6: 8 | E6: 1 | F6: 3 | G6: 2 | H6: 14 | I6: 12 | J6: 13 | K6: 53 | L6: 61 | M6: 49 | N6: 30 | O6: 18 | P6: 27 | Q6: 0 | R6: 0 | S6: 1 | T6: 0 | U6: 0 | V6: 0
A7: mGc | B7: 0 | C7: 0 | D7: 0 | E7: 0 | F7: 0 | G7: 0 | H7: 0 | I7: 0 | J7: 0 | K7: 1 | L7: 0 | M7: 0 | N7: 2 | O7: 3 | P7: 2 | Q7: 7 | R7: 10 | S7: 5 | T7: 90 | U7: 87 | V7: 93
B11: Stage distribution (%)
B12: Ring | E12: Trophozoite | H12: Stage I | K12: Stage II | N12: Stage III | Q12: Stage IV | T12: Stage V
B13: average | C13: SD | D13: SEM | E13: average | F13: SD | G13: SEM | H13: average | I13: SD | J13: SEM | K13: average | L13: SD | M13: SEM | N13: average | O13: SD | P13: SEM | Q13: average | R13: SD | S13: SEM | T13: average | U13: SD | V13: SEM
A14: ABS | B14: 94.5 | C14: 1.4 | D14: 0.8 | E14: 5.5 | F14: 1.4 | G14: 0.8 | H14: 0.0 | I14: 0.0 | J14: 0.0 | K14: 0.0 | L14: 0.0 | M14: 0.0 | N14: 0.0 | O14: 0.0 | P14: 0.0 | Q14: 0.0 | R14: 0.0 | S14: 0.0 | T14: 0.0 | U14: 0.0 | V14: 0.0
A15: iGc | B15: 5.3 | C15: 3.1 | D15: 1.8 | E15: 2.0 | F15: 1.0 | G15: 0.6 | H15: 13.0 | I15: 1.0 | J15: 0.6 | K15: 54.3 | L15: 6.1 | M15: 3.5 | N15: 25.0 | O15: 6.2 | P15: 3.6 | Q15: 0.3 | R15: 0.6 | S15: 0.3 | T15: 0.0 | U15: 0.0 | V15: 0.0
A16: mGc | B16: 0.0 | C16: 0.0 | D16: 0.0 | E16: 0.0 | F16: 0.0 | G16: 0.0 | H16: 0.0 | I16: 0.0 | J16: 0.0 | K16: 0.3 | L16: 0.6 | M16: 0.3 | N16: 2.3 | O16: 0.6 | P16: 0.3 | Q16: 7.3 | R16: 2.5 | S16: 1.5 | T16: 90.0 | U16: 3.0 | V16: 1.7

Sheet Figure S2b
A1: Source Data for Supplementary Figure S2b
A2: Compound identifier | B2: Trivial name | D2: ABS IC50 (nM) | E2: iGct IC50 (nM) | F2: mGct IC50 (nM) | G2: K-means cluster on IC50
A4: MMV011895 | B4: MMV011895 | D4: 233 | E4: 2156 | F4: 5000 | G4: 1
A5: MMV668399 | B5: MMV668399 | D5: 339.43 | E5: 1770 | F5: 5000 | G5: 1
A6: MMV1557817 | B6: MIPS1778 | D6: 32.83 | E6: 1798 | F6: 5000 | G6: 1
A7: MMV652007 | B7: AN3661 | D7: 46.26 | E7: 1086 | F7: 5000 | G7: 1
A8: MMV1576861 | B8: 49c | D8: 0.6 | E8: 1031 | F8: 5000 | G8: 1
A9: MMV688533 | B9: MMV533 | D9: 1.9 | E9: 247.1 | F9: 5000 | G9: 1
A10: MMV674253 | B10: AZ412/MMV253 | D10: 9 | E10: 141.97 | F10: 5000 | G10: 1
A11: MMV000022 | B11: Piperaquine | D11: 7.2 | E11: 108 | F11: 5000 | G11: 1
A12: MMV018052 | B12: MMV052 (OZ609) | D12: 1.3 | E12: 60.1 | F12: 5000 | G12: 1
A13: MMV000003 | B13: Artemether | D13: 5.7 | E13: 62.5 | F13: 5000 | G13: 1
A14: MMV000001 | B14: Amodiaquine | D14: 15 | E14: 54.3 | F14: 5000 | G14: 1
A15: MMV000056 | B15: Ferroquine (SSR97193) | D15: 9.5 | E15: 29.1 | F15: 5000 | G15: 1
A16: MMV000019 | B16: Artefenomel (OZ439) | D16: 3 | E16: 20.2 | F16: 5000 | G16: 1
A17: MMV687815 | B17: BRD7929 | D17: 1.07 | E17: 12.45 | F17: 5000 | G17: 1
A18: MMV1582617 | B18: NVP-INE963 | D18: 3 | E18: 4.49 | F18: 4987.7 | G18: 1
A19: MMV892646 | B19: JPC-3210 | D19: 9 | E19: 4.84 | F19: 5000 | G19: 1
A20: MMV000008 | B20: Chloroquine | D20: 9 | E20: 5.92 | F20: 5000 | G20: 1
A21: MMV084032 | B21: Borrelidine | D21: 4228.33 | E21: 5000 | F21: 5000 | G21: 2
A22: MMV000041 | B22: Ulodesine | D22: 5000 | E22: 5000 | F22: 5000 | G22: 2
A23: MMV007224 | B23: MMV007224 | D23: 5000 | E23: 5000 | F23: 5000 | G23: 2
A24: MMV665852 | B24: NSC 35217 | D24: 5171.67 | E24: 3978 | F24: 5000 | G24: 2
A25: MMV020746 | B25: MMV020746 | D25: 5000 | E25: 5487 | F25: 5000 | G25: 2
A26: MMV1581373 | B26: KAE609 analog | D26: 0.55 | E26: 1.14 | F26: 0.11 | G26: 3
A27: MMV643121 | B27: M5717 (DDD107498) | D27: 1 | E27: 3.57 | F27: 0.25 | G27: 3
A28: MMV693183 | B28: MMV183 | D28: 9.4 | E28: 113 | F28: 26.2 | G28: 3
A29: MMV390048 | B29: MMV048 | D29: 24 | E29: 171 | F29: 101.4 | G29: 3
A30: MMV642943 | D30: 5.38 | E30: 208.7 | F30: 125.6 | G30: 3
A31: MMV672641 | B31: TDD-E209 | D31: 2.89 | E31: 143.4 | F31: 110.05 | G31: 3
A32: MMV009952 | B32: (-)-Halofuginone | D32: 1.02 | E32: 8.4 | F32: 7.64 | G32: 3
A33: MMV642944 | B33: CC_642944 | D33: 13.78 | E33: 306.6 | F33: 319.1 | G33: 3
A34: MMV1542945 | B34: ACT-451840 | D34: 8.34 | E34: 9.9 | F34: 11.1 | G34: 3
A35: MMV1577530 | B35: MMV1577530 | D35: 25.87 | E35: 147.14 | F35: 481.57 | G35: 3
A36: MMV397264 | B36: 21A092 | D36: 10.58 | E36: 62.1 | F36: 213.3 | G36: 3
A37: MMV390482 | B37: SJ733 | D37: 30 | E37: 102.7 | F37: 367.5 | G37: 3
A38: MMV674143 | B38: Cladosporin | D38: 65.89 | E38: 199.4 | F38: 1000.67 | G38: 3
A39: MMV000061 | B39: Methylene Blue | D39: 21.7 | E39: 62.7 | F39: 457 | G39: 3
A40: MMV000073 | B40: Cipargamin/KAE609/NITD609 | D40: 0.5 | E40: 1.03 | F40: 27.7 | G40: 3
A41: MMV000025 | B41: Pyronaridine | D41: 17 | E41: 27 | F41: 938.4 | G41: 3
A42: MMV016838 | B42: MMV016838 | D42: 1718 | E42: 2000 | F42: 5000 | G42: 4
A43: MMV023367 | B43: MMV023367 | D43: 1192.27 | E43: 2718 | F43: 5000 | G43: 4
A44: MMV000055 | B44: Sulfadoxine | D44: 1000 | E44: 5000 | F44: 5000 | G44: 4
A45: MMV020438 | B45: MMV020438 | D45: 1150.27 | E45: 4554 | F45: 5000 | G45: 4
A46: MMV000043 | B46: Tafenoquine | D46: 1000 | E46: 3988 | F46: 5000 | G46: 4
A47: MMV1578884 | B47: CRS-3123 | D47: 1643.33 | E47: 3776 | F47: 5000 | G47: 4
A48: MMV019662 | B48: MMV019662 | D48: 1729 | E48: 4715.5 | F48: 5000 | G48: 4
A49: MMV670325 | B49: MMV670325 | D49: 1365 | E49: 4492 | F49: 3715.67 | G49: 4
A50: MMV650381 | B50: KDU691 | D50: 42.7 | E50: 2257 | F50: 767.8 | G50: 5
A51: MMV019721 | B51: MMV019721 | D51: 844.3 | E51: 3379 | F51: 1841.33 | G51: 5
A52: MMV000130 | B52: Ganaplacide/KAF156 | D52: 6 | E52: 3300 | F52: 5000 | G52: 6
A53: MMV1557821 | B53: SC 83288 | D53: 6.68 | E53: 3903 | F53: 5000 | G53: 6
A54: MMV019313 | B54: MMV019313 | D54: 115.85 | E54: 3928 | F54: 5000 | G54: 6
A55: MMV1645159 | B55: MMV1645159 | D55: 388.83 | E55: 4379 | F55: 5000 | G55: 6
A56: MMV029272 | B56: MMV029272 | D56: 264.07 | E56: 4042 | F56: 3676 | G56: 6
A57: MMV030084 | B57: MMV030084 | D57: 160.17 | E57: 5000 | F57: 5000 | G57: 6
A58: MMV892604 | B58: MMV892604 | D58: 151.9 | E58: 5000 | F58: 5000 | G58: 6
A59: MMV667530 | B59: MMV667530 | D59: 129.73 | E59: 5000 | F59: 5000 | G59: 6
A60: MMV019066 | B60: MMV019066 | D60: 104.54 | E60: 5000 | F60: 5000 | G60: 6
A61: MMV1580857 | B61: Mupirocin | D61: 100.49 | E61: 5000 | F61: 5000 | G61: 6
A62: MMV884705 | B62: NMT-145 | D62: 0.144 | E62: 5000 | F62: 5000 | G62: 6
A63: MMV000046 | B63: Atovaquone | D63: 1 | E63: 5000 | F63: 5000 | G63: 6
A64: MMV034055 | B64: ELQ-300 | D64: 5 | E64: 5000 | F64: 5000 | G64: 6
A65: MMV018912 | B65: DSM265 | D65: 4.3 | E65: 5000 | F65: 5000 | G65: 6
A66: MMV000147 | B66: P218 | D66: 6 | E66: 5000 | F66: 5000 | G66: 6
A67: MMV1793038 | B67: BRD7539 | D67: 5.54 | E67: 5000 | F67: 5000 | G67: 6
A68: MMV1794913 | B68: S2140804224 | D68: 10 | E68: 5000 | F68: 5000 | G68: 6
A69: MMV1793799 | B69: ML10 | D69: 18.15 | E69: 5000 | F69: 5000 | G69: 6
A70: MMV000024 | B70: Pyrimethamine | D70: 22 | E70: 5000 | F70: 5000 | G70: 6
A71: MMV027634 | B71: MMV027634 | D71: 37.74 | E71: 5000 | F71: 5000 | G71: 6
A72: MMV1804586 | B72: S2140803834 | D72: 23 | E72: 5000 | F72: 4903 | G72: 6
A73: MMV650896 | B73: MMV650896 | D73: 341.23 | E73: 5000 | F73: 5000 | G73: 6
A74: MMV007839 | B74: MMV007839 | D74: 413.15 | E74: 5000 | F74: 5000 | G74: 6
A75: MMV1576861 | B75: MMV1576861 | D75: 519.35 | E75: 5000 | F75: 5000 | G75: 6
A76: MMV665924 | B76: MMV665924 | D76: 649.2 | E76: 5000 | F76: 5000 | G76: 6
A77: MMV1558277 | B77: MMV1558277 | D77: 759.3 | E77: 5000 | F77: 5000 | G77: 6
A78: MMV675052 | B78: TM2-115 | D78: 10.71 | E78: 1411 | F78: 2399.33 | G78: 7
A79: MMV1792684 | B79: TCMDC-135051 | D79: 115.67 | E79: 840 | F79: 2526 | G79: 7
A80: MMV982301 | B80: FAR797 | D80: 614.8 | E80: 682.9 | F80: 2965 | G80: 7
A81: MMV1542805 | B81: MMV805 | D81: 85 | E81: 95.5 | F81: 2617 | G81: 7
A82: MMV000004 | B82: Artenimol (DHA) | D82: 1.45 | E82: 20.5 | F82: 2103.3 | G82: 7
A83: MMV000014 | B83: Lumefantrine | D83: 3 | E83: 9.88 | F83: 2382.3 | G83: 7

Sheet Figure S3b
A1: Source Data for Supplementary Figure S3b
B2: Parasitemia (%)
B3: NF54attB | C3: NF54nap
A4: 24 h | B4: 1.25 | C4: 0.9
A5: 72 h | B5: 6.8 | C5: 5.2

Sheet Figure S3c
A1: Source Data for Supplementary Figure S3c
B2: Normalized RLU (%)
A3: Time (min) | B3: NF54nap
A4: 0 | B4: 100.0
A5: 10 | B5: 88.7
A6: 20 | B6: 77.6
A7: 30 | B7: 72.3
A8: 40 | B8: 67.6
A9: 50 | B9: 59.6
A10: 60 | B10: 61.8

Sheet Figure S3d
A1: Source Data for Supplementary Figure S3d
B2: RLU | L2: RLU | P2: NormalizedRLU
B3: 1% HC 1%P | E3: 1% HC 2%P | H3: 1% HC 3%P | L3: Media | P3: 1% HC 1%P | S3: 1% HC 2%P | V3: 1% HC 3%P
B4: n1 | C4: n2 | D4: n3 | E4: n1 | F4: n2 | G4: n3 | H4: n1 | I4: n2 | J4: n3 | L4: n1 | M4: n2 | N4: n3 | P4: n1 | Q4: n2 | R4: n3 | S4: n1 | T4: n2 | U4: n3 | V4: n1 | W4: n2 | X4: n3
B5: 260 | C5: 296 | D5: 263 | E5: 400 | F5: 453 | G5: 440 | H5: 690 | I5: 620 | J5: 680 | L5: 33 | M5: 26 | N5: 33 | P5: =B5-$L$9 -> 224.5 | Q5: =C5-$M$9 -> 260.75 | R5: =D5-$N$9 -> 227.25 | S5: =E5-$L$9 -> 364.5 | T5: =F5-$M$9 -> 417.75 | U5: =G5-$N$9 -> 404.25 | V5: =H5-$L$9 -> 654.5 | W5: =I5-$M$9 -> 584.75 | X5: =J5-$N$9 -> 644.25
B6: 300 | C6: 263 | D6: 290 | E6: 453 | F6: 400 | G6: 443 | H6: 733 | I6: 656 | J6: 743 | L6: 36 | M6: 40 | N6: 43 | P6: =B6-$L$9 -> 264.5 | Q6: =C6-$M$9 -> 227.75 | R6: =D6-$N$9 -> 254.25 | S6: =E6-$L$9 -> 417.5 | T6: =F6-$M$9 -> 364.75 | U6: =G6-$N$9 -> 407.25 | V6: =H6-$L$9 -> 697.5 | W6: =I6-$M$9 -> 620.75 | X6: =J6-$N$9 -> 707.25
B7: 286 | C7: 243 | D7: 286 | E7: 410 | F7: 433 | G7: 450 | H7: 750 | I7: 693 | J7: 713 | L7: 39 | M7: 40 | N7: 30 | P7: 250.5 | Q7: 207.75 | R7: 250.25 | S7: 374.5 | T7: 397.75 | U7: 414.25 | V7: 714.5 | W7: 657.75 | X7: 677.25
B8: 320 | C8: 256 | D8: 286 | E8: 486 | F8: 410 | G8: 450 | H8: 650 | I8: 710 | J8: 720 | L8: 34 | M8: 35 | N8: 37 | P8: 284.5 | Q8: 220.75 | R8: 250.25 | S8: 450.5 | T8: 374.75 | U8: 414.25 | V8: 614.5 | W8: 674.75 | X8: 684.25
A9: average | B9: =AVERAGE(B5:B8) -> 291.5 | C9: =AVERAGE(C5:C8) -> 264.5 | D9: 281.25 | E9: =AVERAGE(E5:E8) -> 437.25 | F9: =AVERAGE(F5:F8) -> 424 | G9: 445.75 | H9: =AVERAGE(H5:H8) -> 705.75 | I9: =AVERAGE(I5:I8) -> 669.75 | J9: 714 | L9: =AVERAGE(L5:L8) -> 35.5 | M9: =AVERAGE(M5:M8) -> 35.25 | N9: 35.75 | P9: =AVERAGE(P5:P8) -> 256 | Q9: =AVERAGE(Q5:Q8) -> 229.25 | R9: 245.5 | S9: =AVERAGE(S5:S8) -> 401.75 | T9: =AVERAGE(T5:T8) -> 388.75 | U9: 410 | V9: =AVERAGE(V5:V8) -> 670.25 | W9: =AVERAGE(W5:W8) -> 634.5 | X9: 678.25
B11: RLU | P11: NormalizedRLU
B12: 2% HC 1%P | E12: 2% HC 2%P | H12: 2% HC 3%P | P12: 2% HC 1%P | S12: 2% HC 2%P | V12: 2% HC 3%P
B13: n1 | C13: n2 | D13: n3 | E13: n1 | F13: n2 | G13: n3 | H13: n1 | I13: n2 | J13: n3 | P13: n1 | Q13: n2 | R13: n3 | S13: n1 | T13: n2 | U13: n3 | V13: n1 | W13: n2 | X13: n3
B14: 300 | C14: 296 | D14: 356 | E14: 463 | F14: 490 | G14: 566 | H14: 790 | I14: 866 | J14: 800 | P14: =B14-$L$9 -> 264.5 | Q14: =C14-$M$9 -> 260.75 | R14: =D14-$N$9 -> 320.25 | S14: =E14-$L$9 -> 427.5 | T14: =F14-$M$9 -> 454.75 | U14: =G14-$N$9 -> 530.25 | V14: =H14-$L$9 -> 754.5 | W14: =I14-$M$9 -> 830.75 | X14: =J14-$N$9 -> 764.25
B15: 296 | C15: 320 | D15: 273 | E15: 570 | F15: 503 | G15: 520 | I15: 930 | J15: 820 | P15: =B15-$L$9 -> 260.5 | Q15: =C15-$M$9 -> 284.75 | R15: =D15-$N$9 -> 237.25 | S15: =E15-$L$9 -> 534.5 | T15: =F15-$M$9 -> 467.75 | U15: =G15-$N$9 -> 484.25 | W15: =I15-$M$9 -> 894.75 | X15: =J15-$N$9 -> 784.25
B16: 250 | C16: 330 | D16: 283 | E16: 500 | F16: 556 | G16: 530 | H16: 776 | I16: 830 | J16: 823 | P16: 214.5 | Q16: 294.75 | R16: 247.25 | S16: 464.5 | T16: 520.75 | U16: 494.25 | V16: =H16-$L$9 -> 740.5 | W16: 794.75 | X16: 787.25
B17: 323 | C17: 336 | D17: 330 | E17: 550 | F17: 506 | G17: 556 | H17: 790 | I17: 886 | J17: 766 | P17: 287.5 | Q17: 300.75 | R17: 294.25 | S17: 514.5 | T17: 470.75 | U17: 520.25 | V17: 754.5 | W17: 850.75 | X17: 730.25
A18: average | B18: =AVERAGE(B14:B17) -> 292.25 | C18: =AVERAGE(C14:C17) -> 320.5 | D18: 310.5 | E18: =AVERAGE(E14:E17) -> 520.75 | F18: =AVERAGE(F14:F17) -> 513.75 | G18: 543 | H18: =AVERAGE(H14:H17) -> 785.3333333 | I18: =AVERAGE(I14:I17) -> 878 | J18: 802.25 | P18: =AVERAGE(P14:P17) -> 256.75 | Q18: =AVERAGE(Q14:Q17) -> 285.25 | R18: 274.75 | S18: =AVERAGE(S14:S17) -> 485.25 | T18: =AVERAGE(T14:T17) -> 478.5 | U18: 507.25 | V18: =AVERAGE(V14:V17) -> 749.8333333 | W18: =AVERAGE(W14:W17) -> 842.75 | X18: 766.5
B20: RLU | Q20: Normalized RLU
B21: 1% HC | E21: 2% HC | Q21: 1% HC | T21: 2% HC
B22: n1 | C22: n2 | D22: n3 | E22: n1 | F22: n2 | G22: n3 | Q22: n1 | R22: n2 | S22: n3 | T22: n1 | U22: n2 | V22: n3
A23: 1% P | B23: 291.5 | C23: 264.5 | D23: 281.25 | E23: 292.25 | F23: 320.5 | G23: 310.5 | P23: 1% P | Q23: 255.675 | R23: 228.675 | S23: 245.425 | T23: 256.425 | U23: 284.675 | V23: 274.675
A24: 2% P | B24: 437.25 | C24: 424 | D24: 445.75 | E24: 520.75 | F24: 513.75 | G24: 543 | P24: 2% P | Q24: 401.425 | R24: 388.175 | S24: 409.925 | T24: 484.925 | U24: 477.925 | V24: 507.175
A25: 3% P | B25: 705.75 | C25: 669.75 | D25: 714 | E25: 785.3333333 | F25: 878 | G25: 802.25 | P25: 3% P | Q25: 669.925 | R25: 633.925 | S25: 678.175 | T25: 749.5083333 | U25: 842.175 | V25: 766.425
Q27: Normalized RLU
Q28: 1% HC | T28: 2% HC
Q29: average | R29: SEM | S29: n | T29: average | U29: SEM | V29: n
P30: 1% P | Q30: 243.2583333 | R30: 7.86915568 | S30: 3 | T30: 271.925 | U30: 8.270177346 | V30: 3
P31: 2% P | Q31: 399.8416667 | R31: 6.328397199 | S31: 3 | T31: 490.0083333 | U31: 8.817989819 | V31: 3
P32: 3% P | Q32: 660.675 | R32: 13.58537817 | S32: 3 | T32: 786.0361111 | U32: 28.49107777 | V32: 3

Sheet Figure S3e
A1: Source Data for Supplementary Figure S3e
B2: Stage distribution (%)
B3: Ring | E3: Trophozoite | H3: Stage I | K3: Stage II | N3: Stage III | Q3: Stage IV | T3: Stage V
B4: n1 | C4: n2 | D4: n3 | E4: n1 | F4: n2 | G4: n3 | H4: n1 | I4: n2 | J4: n3 | K4: n1 | L4: n2 | M4: n3 | N4: n1 | O4: n2 | P4: n3 | Q4: n1 | R4: n2 | S4: n3 | T4: n1 | U4: n2 | V4: n3
A5: ABS | B5: 92.1 | C5: 97.6 | D5: 95.8 | E5: 7.9 | F5: 2.4 | G5: 4.2 | H5: 0 | I5: 0 | J5: 0 | K5: 0 | L5: 0 | M5: 0 | N5: 0 | O5: 0 | P5: 0 | Q5: 0 | R5: 0 | S5: 0 | T5: 0 | U5: 0 | V5: 0
A6: iGc | B6: 4.3 | C6: 2.7 | D6: 5.9 | E6: 0.5 | F6: 1.8 | G6: 3.4 | H6: 10.1 | I6: 15.6 | J6: 12.9 | K6: 48 | L6: 33.5 | M6: 43.2 | N6: 33.1 | O6: 45.4 | P6: 34.6 | Q6: 4 | R6: 1 | S6: 0 | T6: 0 | U6: 0 | V6: 0
A7: mGc | B7: 0 | C7: 0 | D7: 0 | E7: 0 | F7: 0 | G7: 0 | H7: 0 | I7: 0 | J7: 0 | K7: 2 | L7: 0 | M7: 1 | N7: 6 | O7: 10 | P7: 13 | Q7: 8.3 | R7: 11 | S7: 10.8 | T7: 83.7 | U7: 79 | V7: 75.2
B10: Stage distribution (%)
B11: Ring | E11: Trophozoite | H11: Stage I | K11: Stage II | N11: Stage III | Q11: Stage IV | T11: Stage V
B12: average | C12: SD | D12: SEM | E12: average | F12: SD | G12: SEM | H12: average | I12: SD | J12: SEM | K12: average | L12: SD | M12: SEM | N12: average | O12: SD | P12: SEM | Q12: average | R12: SD | S12: SEM | T12: average | U12: SD | V12: SEM
A13: ABS | B13: 95.2 | C13: 2.8 | D13: 1.6 | E13: 4.8 | F13: 2.8 | G13: 1.6 | H13: 0.0 | I13: 0.0 | J13: 0.0 | K13: 0.0 | L13: 0.0 | M13: 0.0 | N13: 0.0 | O13: 0.0 | P13: 0.0 | Q13: 0.0 | R13: 0.0 | S13: 0.0 | T13: 0.0 | U13: 0.0 | V13: 0.0
A14: iGc | B14: 4.3 | C14: 1.6 | D14: 0.9 | E14: 1.9 | F14: 1.5 | G14: 0.8 | H14: 12.9 | I14: 2.8 | J14: 1.6 | K14: 41.6 | L14: 7.4 | M14: 4.3 | N14: 37.7 | O14: 6.7 | P14: 3.9 | Q14: 1.7 | R14: 2.1 | S14: 1.2 | T14: 0.0 | U14: 0.0 | V14: 0.0
A15: mGc | B15: 0.0 | C15: 0.0 | D15: 0.0 | E15: 0.0 | F15: 0.0 | G15: 0.0 | H15: 0.0 | I15: 0.0 | J15: 0.0 | K15: 1.0 | L15: 1.0 | M15: 0.6 | N15: 9.7 | O15: 3.5 | P15: 2.0 | Q15: 10.0 | R15: 1.5 | S15: 0.9 | T15: 79.3 | U15: 4.3 | V15: 2.5

Sheet Figure S4a
A1: Source Data for Supplementary Figure S4a
B2: SCR (%) | I2: Gametocytemia (%)
B3: n1 | C3: n2 | D3: n3 | E3: n4 | F3: average | I3: n1 | J3: n2 | K3: n3 | L3: average
A4: Unt | B4: 19.44 | C4: 19.56 | D4: 24.39 | E4: 25.81 | F4: 22.30 | I4: 1.93 | J4: 1.63 | K4: 2.31 | L4: 1.96
A5: DSM265 | B5: 10.00 | C5: 45.83 | D5: 26.67 | F5: 27.50 | I5: 2.37 | J5: 2.45 | K5: 2.73 | L5: 2.52
A6: CQ | B6: 25.58 | C6: 31.37 | D6: 23.68 | F6: 26.88 | I6: 2.89 | J6: 2.43 | K6: 1.73 | L6: 2.35
A7: MMV253 | B7: 16.66 | C7: 33.33 | D7: 25.81 | F7: 25.27 | I7: 2.05 | J7: 2.43 | K7: 1.95 | L7: 2.14
A8: MMV533 | B8: 23.25 | C8: 61.96 | D8: 30.30 | E8: 41.86 | F8: 39.34 | I8: 3.96 | J8: 4.27 | K8: 3.61 | L8: 3.94
A9: M5717 | B9: 12.00 | C9: 25.00 | D9: 16.67 | F9: 17.89 | I9: 0.61 | J9: 0.46 | K9: 0.50 | L9: 0.52
A10: MMV183 | B10: 11.11 | C10: 50.94 | D10: 32.43 | F10: 31.49 | I10: 1.21 | J10: 1.97 | K10: 1.54 | L10: 1.57
A11: SJ733 | B11: 17.14 | C11: 34.62 | D11: 25.71 | F11: 25.82 | I11: 3.91 | J11: 3.61 | K11: 3.20 | L11: 3.57
A12: MMV048 | B12: 14.63 | C12: 22.41 | D12: 37.14 | F12: 24.73 | I12: 2.71 | J12: 2.96 | K12: 3.47 | L12: 3.04

Sheet Figure S4b
A1: Source Data for Supplementary Figure S4a
B2: Parasite inhibition (%)
B3: ABS | H3: LGc (10%) | N3: LGc
B4: n1 | C4: n2 | D4: n3 | E4: average | F4: SD | G4: SEM | H4: n1 | I4: n2 | J4: n3 | K4: average | L4: SD | M4: SEM | N4: n1 | O4: n2 | P4: n3 | Q4: average | R4: SD | S4: SEM
A5: DSM265 | B5: 100.0 | C5: 100.0 | D5: 100.0 | E5: 100.0 | F5: 0.0 | G5: 0.0 | H5: 8.2 | I5: 13.4 | J5: 5.4 | K5: 9.0 | L5: 4.1 | M5: 2.3 | N5: 0.0 | O5: 1.7 | P5: 0.0 | Q5: 0.6 | R5: 1.0 | S5: 0.6
A6: MMV253 | B6: 100.0 | C6: 100.0 | D6: 100.0 | E6: 100.0 | F6: 0.0 | G6: 0.0 | H6: 20.8 | I6: 22.1 | J6: 23.2 | K6: 22.0 | L6: 1.2 | M6: 0.7 | N6: 0.0 | O6: 8.6 | P6: 0.0 | Q6: 2.9 | R6: 5.0 | S6: 2.9
A7: MMV533 | B7: 100.0 | C7: 100.0 | D7: 100.0 | E7: 100.0 | F7: 0.0 | G7: 0.0 | H7: 17.7 | I7: 21.4 | J7: 21.1 | K7: 20.1 | L7: 2.1 | M7: 1.2 | N7: 0.0 | O7: 0.0 | P7: 0.3 | Q7: 0.1 | R7: 0.2 | S7: 0.1
A8: M5717 | B8: 100.0 | C8: 100.0 | D8: 100.0 | E8: 100.0 | F8: 0.0 | G8: 0.0 | H8: 96.4 | I8: 97.2 | J8: 97.8 | K8: 97.1 | L8: 0.7 | M8: 0.4 | N8: 94.5 | O8: 95.5 | P8: 96.4 | Q8: 95.5 | R8: 1.0 | S8: 0.6
A9: MMV183 | B9: 100.0 | C9: 100.0 | D9: 100.0 | E9: 100.0 | F9: 0.0 | G9: 0.0 | H9: 80.6 | I9: 91.1 | J9: 83.9 | K9: 85.2 | L9: 5.4 | M9: 3.1 | N9: 66.4 | O9: 67.5 | P9: 68.3 | Q9: 67.4 | R9: 0.9 | S9: 0.5
A10: SJ733 | B10: 100.0 | C10: 100.0 | D10: 100.0 | E10: 100.0 | F10: 0.0 | G10: 0.0 | H10: 98.2 | I10: 100.0 | J10: 91.6 | K10: 96.6 | L10: 4.4 | M10: 2.5 | N10: 88.4 | O10: 91.2 | P10: 90.2 | Q10: 89.9 | R10: 1.4 | S10: 0.8
A11: MMV048 | B11: 97.2 | C11: 75.8 | D11: 83.8 | E11: 85.6 | F11: 10.8 | G11: 6.2 | H11: 75.3 | I11: 74.6 | J11: 69.3 | K11: 73.1 | L11: 3.2 | M11: 1.9 | N11: 29.4 | O11: 35.5 | P11: 31.7 | Q11: 32.2 | R11: 3.1 | S11: 1.8

Sheet Figure S4d
A1: Source Data for Supplementary Figure S4d
B2: Female gametocytes | E2: Male gametocytes | I2: F/M ratio | N2: F/M ratio
B3: n1 | C3: n2 | E3: n1 | F3: n2 | I3: n1 | J3: n2 | N3: Average | O3: SD | P3: SEM | Q3: N
A4: Unt | B4: 152 | C4: 78 | E4: 50 | F4: 30 | I4: 3.04 | J4: 2.60 | M4: Unt | N4: 2.82 | O4: 0.31 | P4: 0.22 | Q4: 2
A5: M5717 | B5: 60 | C5: 26 | E5: 50 | F5: 30 | I5: 1.20 | J5: 0.87 | M5: M5717 | N5: 1.03 | O5: 0.24 | P5: 0.17 | Q5: 2
A6: MMV048 | B6: 192 | C6: 103 | E6: 50 | F6: 30 | I6: 3.84 | J6: 3.43 | M6: MMV048 | N6: 3.64 | O6: 0.29 | P6: 0.20 | Q6: 2
A7: DSM265 | B7: 163 | C7: 83 | E7: 50 | F7: 30 | I7: 3.26 | J7: 2.77 | M7: DSM265 | N7: 3.01 | O7: 0.35 | P7: 0.25 | Q7: 2
A8: MMV533 | B8: 93 | C8: 54 | E8: 50 | F8: 30 | I8: 1.86 | J8: 1.80 | M8: MMV533 | N8: 1.83 | O8: 0.04 | P8: 0.03 | Q8: 2
A9: MMV253 | B9: 142 | C9: 62 | E9: 50 | F9: 30 | I9: 2.84 | J9: 2.07 | M9: MMV253 | N9: 2.45 | O9: 0.55 | P9: 0.39 | Q9: 2
A10: SJ733 | B10: 160 | C10: 74 | E10: 50 | F10: 30 | I10: 3.20 | J10: 2.47 | M10: SJ733 | N10: 2.83 | O10: 0.52 | P10: 0.37 | Q10: 2

Sheet Figure S5a
A1: Source Data for Supplementary Figure S5a (from source data for Figure 4)
B2: Transcript expression | E2: Protein expression | H2: Transcript expression | K2: Protein expression
B3: FC<10 transcript | E3: FC<10 protein | H3: FC>10 transcript | K3: FC>10 protein
B4: Average | C4: SD | D4: n | E4: Average | F4: SD | G4: n | H4: Average | I4: SD | J4: n | K4: Average | L4: SD | M4: n
A5: ABS | B5: 0.48 | C5: 0.24 | D5: 45.00 | E5: 5.43 | F5: 10.43 | G5: 32.00 | H5: 0.52 | I5: 0.27 | J5: 54.00 | K5: 12.20 | L5: 63.25 | M5: 38.00
A6: iGc | B6: 0.11 | C6: 0.62 | D6: 45.00 | E6: 6.22 | F6: 15.57 | G6: 32.00 | H6: 0.16 | I6: 0.45 | J6: 54.00 | K6: 14.51 | L6: 78.84 | M6: 38.00
A7: mGc | B7: 0.01 | C7: 0.55 | D7: 45.00 | E7: 87.66 | F7: 315.22 | G7: 32.00 | H7: -0.02 | I7: 0.47 | J7: 54.00 | K7: 76.73 | L7: 427.59 | M7: 38.00

Sheet Figure S5b
A1: Source Data for Supplementary Figure S5b (from source data for Figure 4)
B2: Transcript expression | E2: Protein expression | H2: Transcript expression | K2: Protein expression
B3: FC<10 transcript | E3: FC<10 protein | H3: FC>10 transcript | K3: FC>10 protein
B4: Average | C4: SD | D4: n | E4: Average | F4: SD | G4: n | H4: Average | I4: SD | J4: n | K4: Average | L4: SD | M4: n
A5: ABS | B5: 0.50 | C5: 0.36 | D5: 32.00 | E5: 2.72 | F5: 7.62 | G5: 22.00 | H5: 0.53 | I5: 0.26 | J5: 40.00 | K5: 2.82 | L5: 4.66 | M5: 30.00
A6: iGc | B6: -0.05 | C6: 0.43 | D6: 32.00 | E6: 2.02 | F6: 4.66 | G6: 22.00 | H6: 0.14 | I6: 0.45 | J6: 40.00 | K6: 2.31 | L6: 3.14 | M6: 30.00
A7: mGc | B7: 0.04 | C7: 0.50 | D7: 32.00 | E7: 5.45 | F7: 12.84 | G7: 22.00 | H7: -0.12 | I7: 0.48 | J7: 40.00 | K7: 8.27 | L7: 10.17 | M7: 30.00

Sheet Figure S5c
A1: Source Data for Supplementary Figure S5c (data from source data for Figure 4)
A2: Activity FC<10 | F2: Activity FC>10
A3: Compound/target | B3: FC Activity (Gc/ABS) | C3: FC Protein abundance (ABS/Gc) | F3: Compound/target | G3: FC Activity (Gc/ABS) | H3: FC Protein abundance (ABS/Gc)
A4: NSC 35217 ATP2 | B4: 0.77 | C4: 1.00 | F4: BRD7929/PheRS | G4: 11.64 | H4: 1.01
A5: NSC 35217 PKG | B5: 0.77 | C5: 0.80 | F5: KDU691/PI4K | G5: 11.83
A6: Chlorproguanil/PPPK-DHPS | B6: 1.00 | C6: 2.59 | F6: MMV183/AcAS | G6: 12.02 | H6: 2.35
A7: Thiostrepton proteosome | B7: 1.05 | C7: 0.30 | F7: MMV839/FNT | G7: 12.10 | H7: 1.95
A8: SAHA/HDAC1 | B8: 1.13 | C8: 2.30 | F8: MMV839/PKG | G8: 12.10 | H8: 0.80
A9: Triclosan/ENR | B9: 1.42 | C9: 0.71 | F9: Decoquinate/cytbc | G9: 15.00 | H9: 0.27
A10: Triclosan DHFR | B10: 1.42 | C10: 1.80 | F10: MMV253/V-ATPase | G10: 15.77 | H10: 1.40
A11: Epoxomycin/Proteosome | B11: 1.51 | C11: 0.25 | F11: CC_642944/PI4K | G11: 22.25
A12: KAE609/ATP4 | B12: 2.06 | C12: 4.03 | F12: MMV943/PI4K | G12: 23.39
A13: CRS-3123/MetRS | B13: 2.30 | C13: 0.42 | F13: AN3661/CPSF3 | G13: 23.48 | H13: 1.09
A14: SJ733/ATP4 | B14: 3.42 | C14: 4.03 | F14: KAF246/ATP4 | G14: 26.30 | H14: 4.03
A15: M5717/EF2 | B15: 3.57 | C15: 1.74 | F15: MMV406/Hsp90 | G15: 27.15 | H15: 0.80
A16: Doxycycline hydrochloride ribosome | B16: 3.97 | C16: 0.29 | F16: MMV406/HDP | G16: 27.15
A17: Trimethoprim DHFR | B17: 3.97 | C17: 1.80 | F17: MMV084/PKG | G17: 31.22 | H17: 0.80
A18: MMV721/AcAS | B18: 4.00 | C18: 2.35 | F18: MMV084/TLK3 | G18: 31.22
A19: MMV019721 ACS10 | B19: 4.00 | C19: 2.01 | F19: BRD3444/PheRS | G19: 31.33 | H19: 1.01
A20: MMV019721 ACS11 | B20: 4.00 | C20: 1.01 | F20: MMV913/FTB | G20: 33.91
A21: MMV054/MAPK2 | B21: 4.00 | C21: 1.00 | F21: MMV913/FTA | G21: 33.91
A22: MMV054/A-M1 | B22: 4.00 | C22: 1.60 | F22: MMV913/FPPS | G22: 33.91 | H22: 0.68
A23: Cycloheximide 60s | B23: 4.61 | C23: 1.44 | F23: MMV943/PI4K | G23: 38.79
A24: MMV665852 ATP2 | B24: 4.86 | C24: 1.00 | F24: Mupirocin/IRS | G24: 49.76 | H24: 0.61
A25: MMV0048 PKG | B25: 7.13 | F25: Mupirocin/IRS | G25: 49.76
A26: MMV684/CLK3 | B26: 7.26 | C26: 1.00 | F26: MMV023/DOHH | G26: 54.35
A27: MMV924/AcAS | B27: 7.70 | C27: 2.35 | F27: MMV023/A-M17 | G27: 54.35 | H27: 0.86
A28: MMV924/ACS10 | B28: 7.70 | C28: 1.01 | F28: MMV023/A-M1 | G28: 54.35 | H28: 1.60
A29: MMV020788 ENR | B29: 8.72 | F29: MMV023/cytbc | G29: 54.35 | H29: 0.27
A30: MMV1576861 PMX | B30: 9.63 | C30: 1.00 | F30: MIPS1778/A-M17 | G30: 54.77 | H30: 0.86
A31: Halofuginone/PRS | B31: 8.24 | C31: 0.63 | F31: MIPS1778/A-M1 | G31: 54.77 | H31: 1.60
A32: MMV019662/NCR1 | B32: 2.73 | C32: 1.87 | F32: MMV810/PI4K | G32: 111.16
F33: TM2-115 | G33: 131.75
F34: MMV634/DHFR | G34: 132.49 | H34: 1.80
F35: MMV693/DHODH | G35: 210.08 | H35: 1.50
F36: MMV693/EG5 | G36: 210.08
F37: MMV693/cytbc | G37: 210.08 | H37: 0.27
F38: ML10/PKG | G38: 275.48
F39: KAF156 | G39: 550.00
F40: BRD7539/DHODH | G40: 902.53 | H40: 1.50
F41: MMV203/TrxR | G41: 943.40 | H41: 1.09
F42: MMV203/IRP | G42: 943.40 | H42: 1.00
F43: MMV203/MFR3 | G43: 943.40
F44: MMV203/GR | G44: 943.40 | H44: 1.09
F45: ELQ-300/cytbc | G45: 1000.00 | H45: 0.27
F46: P218/DHFR | G46: 1086.96 | H46: 1.80
F47: DSM265/DHODH | G47: 1162.79 | H47: 1.50
F48: 49c/PMX | G48: 1718.33 | H48: 1.00
F49: Pyr/DHFR | G49: 2000.00 | H49: 1.80
F50: Atovaquone/cytbc | G50: 5000.00 | H50: 0.27
F51: NMT-145/NMT | G51: 5000.00 | H51: 1.56
F52: MMV533/ACG1 | G52: 130.00 | H52: 2.00
F53: MMV533/EHD | G53: 130.00 | H53: 1.60

Sheet Figure S5d
A1: Source Data for Supplementary Figure S5d (data from source data for Figure 4)
A2: Activity FC<10 | F2: Activity FC>10
A3: Compound/target | B3: FC Activity (Gc/ABS) | C3: FC Protein abundance (ABS/Gc) | F3: Compound/target | G3: FC Activity (Gc/ABS) | H3: FC Protein abundance (ABS/Gc)
A4: M5717/EF2 | B4: 0.25 | C4: 0.60 | F4: MMV054/A-M1 | G4: 10.01 | H4: 0.49
A5: Epoxomycin/proteosome | B5: 0.48 | C5: 0.22 | F5: MMV839/FNT | G5: 12.10 | H5: 1.65
A6: MMV985/CDPK1 | B6: 0.59 | C6: 0.36 | F6: SJ733/ATP4 | G6: 12.25 | H6: 0.68
A7: MMV985/PK7 | B7: 0.59 | C7: 1.65 | F7: KDU691/PI4K | G7: 17.98
A8: GNF179/CARL | B8: 0.78 | C8: 0.80 | F8: TCM051/CLK3 | G8: 21.84 | H8: 0.50
A9: GNF179/ACT | B9: 0.78 | C9: 0.20 | F9: MMV943/PI4K | G9: 21.92
A10: GNF179/UGT | B10: 0.78 | C10: 0.80 | F10: MMV944/PI4K | G10: 23.16
A11: MMV443/CDPK1 | B11: 0.79 | C11: 0.36 | F11: KAF246/ATP4 | G11: 29.44 | H11: 0.68
A12: NSC35217/ATP2 | B12: 0.97 | F12: MMV693/EG5 | G12: 30.67
A13: MMV081/ATP4 | B13: 1.27 | C13: 0.68 | F13: MMV084/PKG | G13: 31.22 | H13: 0.20
A14: MMV749/ATP4 | B14: 1.46 | C14: 0.68 | F14: GL/Proteosome | G14: 39.76 | H14: 0.22
A15: ACT-451840/MDR1 | B15: 1.80 | C15: 0.70 | F15: MMV313/GGPPS | G15: 43.16 | H15: 1.19
A16: MMV721/AcAS | B16: 2.18 | C16: 3.54 | F16: MMV313/FT | G16: 43.16
A17: MMV183/AcAS | B17: 2.79 | C17: 3.54 | F17: MMV313/FT | G17: 43.16
A18: CRS-3123/MetRS | B18: 3.04 | C18: 0.16 | F18: Mupirocin/IRS | G18: 49.76 | H18: 0.38
A19: MMV048/PKG | B19: 4.23 | C19: 0.20 | F19: Mupirocin/IRS | G19: 49.76
A20: MMV852/ATP2 | B20: 4.86 | F20: Pyronaridine/TP2 | G20: 55.20 | H20: 0.46
A21: MMV924/AcAS | B21: 7.70 | C21: 3.54 | F21: KAE609/ATP4 | G21: 55.40 | H21: 0.68
A22: MMV924/ACS10 | B22: 7.70 | C22: 1.20 | F22: MMV007/CPSF3 | G22: 108.08
A23: MMV721/AcAS | B23: 7.87 | C23: 3.54 | F23: MMV634/DHFR | G23: 132.49 | H23: 0.11
A24: MMV861/PMX | B24: 9.63 | C24: 0.50 | F24: MMV023/A-M17 | G24: 135.87 | H24: 0.45
A25: Halofuginone/PRS | B25: 7.49 | C25: 0.15 | F25: MMV023/A-M1 | G25: 135.87 | H25: 0.49
A26: MMV662/NCR1 | B26: 2.89 | C26: 11.88 | F26: MIPS1778/A-M17 | G26: 152.30 | H26: 0.45
A27: Chlorproguanil/PPPK-DHPS | B27: 0.80 | C27: 8.00 | F27: MIPS1778/A-M1 | G27: 152.30 | H27: 0.49
F28: Methylene blue/GR | G28: 266.67 | H28: 0.13
F29: ML10/PKG | G29: 275.48 | H29: 0.20
F30: MMV253/V-ATPase | G30: 555.56 | H30: 0.06
F31: P218/DHFR | G31: 833.33 | H31: 0.11
F32: BRD7539/DHODH | G32: 902.53 | H32: 0.61
F33: ELQ-300/CytBc1 | G33: 1000.00 | H33: 0.06
F34: DSM265/DHODH | G34: 1162.79 | H34: 0.61
F35: Pyr/DHFR | G35: 2000.00 | H35: 0.11
F36: MMV533/ACG1 | G36: 2631.58 | H36: 0.40
F37: MMV533/EHD | G37: 2631.58 | H37: 0.44
F38: AQ/CytBc1 | G38: 3703.70 | H38: 0.06
F39: BRD7929/PheRS | G39: 4672.90 | H39: 0.33
F40: 49c/PMX | G40: 8333.33 | H40: 0.50
F41: MMV533/ACG1 | G41: 2631.00 | H41: 2.00
F42: MMV533/EHD | G42: 2631.00 | H42: 0.40

Sheet Figure S6a-d
A1: Source Data for Supplementary Figure S6a (data from source data for Figure 5)
A2: Compound identifier | B2: Trivial name | D2: SMILEs | F2: cLogS | G2: cLogD | H2: cLogP | I2: MW | J2: HBD | K2: HBA | L2: TPSA | M2: Flexibility | N2: Rotatable Bonds | P2: Group
A4: MMV1580488 | B4: ML324 | D4: O=C(NCCCN(C)C)C3=CC=C(C2=CC1=CC=CN=C1C(=C2)O)C=C3 | F4: 2.311 | G4: 1.52 | H4: 2.573 | I4: 349.4 | J4: 2 | K4: 5 | L4: 65.46 | M4: 0.25 | N4: 7 | P4: ABS iGc
A5: SD-70 | D5: O=C(NC(c1ccco1)c1ccc2cccnc2c1O)C(C)C | F5: 1.497 | G5: 2.557 | H5: 2.557 | I5: 310.3 | J5: 2 | K5: 5 | L5: 75.36 | M5: 0.2 | N5: 5 | P5: ABS iGc
A6: JIB-04 | D6: ClC(C=C1)=CN=C1N/N=C(C2=CC=CC=C2)/C3=CC=CC=N3 | F6: 1.311 | G6: 3.07 | H6: 3.07 | I6: 308.8 | J6: 1 | K6: 4 | L6: 50.17 | M6: 0.1667 | N6: 4 | P6: ABS iGc
A7: MMV687273 | B7: SQ109 | D7: CC(=CCC\C(=C/CNCCNC1C2CC3CC(CC1C3)C2)\C)C | F7: 2.37 | G7: 1.814 | H7: 4.335 | I7: 330.6 | J7: 2 | K7: 2 | L7: 24.06 | M7: 0.3462 | N7: 9 | P7: ABS iGc
A8: Oxamflatin | B8: Oxamflatin | D8: O=S(NC1=CC(C#C/C=C/C(NO)=O)=CC=C1)(C2=CC=CC=C2)=O | F8: 2.357 | G8: 0.3595 | H8: 1.719 | I8: 342.4 | J8: 3 | K8: 6 | L8: 95.5 | M8: 0.28 | N8: 7 | P8: ABS iGc
A9: MMV006706 | D9: n1(c2c(cccc2)n3)c3c(C#N)c(C)cc1N(CC4)CCN4C5CCCC5 | F9: 1.982 | G9: 2.88 | H9: 4.309 | I9: 359.5 | J9: 0 | K9: 5 | L9: 47.57 | M9: 0.09677 | N9: 3 | P9: ABS iGc
A10: SGI-1027 | D10: O=C(NC1=CC=C(NC2=NC(N)=NC(C)=C2)C=C1)C(C=C3)=CC=C3NC4=CC=NC5=C4C=CC=C5 | F10: -0.5345 | G10: 3.537 | H10: 3.787 | I10: 461.5 | J10: 4 | K10: 8 | L10: 117.8 | M10: 0.1795 | N10: 7 | P10: ABS iGc
A11: GD34 | D11: CCN(CC)Cc1cc(cc(c1O)Nc1nc2ccccc2n1Cc1ccc(cc1)C(F)(F)F)Cl | F11: 1.196 | G11: 4.268 | H11: 5.824 | I11: 503 | J11: 2 | K11: 5 | L11: 53.32 | M11: 0.2368 | N11: 9 | P11: ABS iGc
A12: Chaetocin | B12: Chaetocin | D12: O=C1[C@](CO)(SS2)N(C)C([C@]32N1[C@@H](NC4=CC=CC=C45)[C@]5([C@@]6(C7=CC=CC=C7N8)[C@H]8N(C([C@](CO)(SS9)N(C)C%10=O)=O)[C@]%109C6)C3)=O | F12: 1.81 | G12: 1.767 | H12: 1.522 | I12: 696.8 | J12: 4 | K12: 12 | L12: 145.8 | M12: 0.05455 | N12: 3 | P12: ABS iGc
A13: UNC0379 | D13: COC1=C(C=C2C(=C1)C(=NC(=N2)N3CCCC3)NCCCCCN4CCCC4)OC | F13: 2.934 | G13: 2.12 | H13: 4.207 | I13: 413.6 | J13: 1 | K13: 7 | L13: 62.75 | M13: 0.303 | N13: 10 | P13: ABS iGc
A14: UNC0646 | D14: CC(C)N(CC6)CCCN6C1=NC(NC3CCN(C5CCCCC5)CC3)=C2C(C=C(OCCCN4CCCCC4)C(OC)=C2)=N1 | F14: 2.486 | G14: 3.028 | H14: 5.633 | I14: 621.9 | J14: 1 | K14: 9 | L14: 69.23 | M14: 0.22 | N14: 11 | P14: ABS iGc
A15: BIX01294 | B15: BIX01294 | D15: COc1cc2nc(nc(c2cc1OC)NC1CCN(CC1)Cc1ccccc1)N1CCCN(CC1)C | F15: 2.573 | G15: 2.8 | H15: 3.92 | I15: 490.6 | J15: 1 | K15: 8 | L15: 65.99 | M15: 0.175 | N15: 7 | P15: ABS iGc
A16: UNC0631 | D16: COC1=CC2=C(NC3CCN(CC4CCCCC4)CC3)N=C(N5CCN(C(C)C)CCC5)N=C2C=C1OCCCN6CCCCC6 | F16: 2.45 | G16: 3.303 | H16: 5.754 | I16: 635.9 | J16: 1 | K16: 9 | L16: 69.23 | M16: 0.2353 | N16: 12 | P16: ABS iGc
A17: MMV892646 | B17: JPC-3210 | D17: Oc1c(CNC(C)(C)C)cc(cc1c1cnc(c(c1)F)C(F)(F)F)C(C)(C)C | F17: -0.3258 | G17: 2.435 | H17: 4.973 | I17: 398.4 | J17: 2 | K17: 3 | L17: 45.15 | M17: 0.2069 | N17: 6 | P17: ABS iGc
A18: GD37 | D18: CCN(CC)Cc1cc(cc(c1O)Nc1nc2ccccc2n1Cc1ccc(cc1)C(F)(F)F)F | F18: 1.065 | G18: 3.729 | H18: 5.463 | I18: 486.5 | J18: 2 | K18: 5 | L18: 53.32 | M18: 0.2368 | N18: 9 | P18: ABS iGc
A19: GD25 | D19: CCN(CC)Cc1cc(cc(c1O)Nc1nc2ccccc2n1Cc1ccc(cc1)C(F)(F)F)C | F19: 0.8608 | G19: 3.76 | H19: 5.767 | I19: 482.5 | J19: 2 | K19: 5 | L19: 53.32 | M19: 0.2368 | N19: 9 | P19: ABS iGc
A20: MMV665948 | D20: Oc1ccccc1NC(=O)c2oc(cc2)c3ccc(Cl)cc3Cl | F20: 0.35 | G20: 4.595 | H20: 4.595 | I20: 348.2 | J20: 2 | K20: 4 | L20: 62.47 | M20: 0.16 | N20: 4 | P20: ABS iGc
A21: MMV000018 | B21: NPC-1161B | D21: COc1cc(N[C@H](C)CCCN)c2nccc(C)c2c1Oc3ccc(Cl)c(Cl)c3 | F21: 0.733 | G21: 3.067 | H21: 4.593 | I21: 434.4 | J21: 2 | K21: 5 | L21: 69.4 | M21: 0.2581 | N21: 8 | P21: ABS iGc
A22: MMV000008 | B22: Chloroquine | D22: CCN(CC)CCCC(C)Nc1ccnc2cc(Cl)ccc12 | F22: 2.434 | G22: 0.93 | H22: 4.63 | I22: 319.9 | J22: 1 | K22: 3 | L22: 28.16 | M22: 0.3478 | N22: 8 | P22: ABS iGc
A23: Salinomycin | B23: Salinomycin | D23: O=C([C@H]([C@H]([C@@H]([C@]3([H])O[C@]([C@@H](CC)C(O)=O)([H])CC[C@@H]3C)C)O)C)[C@H](CC)[C@@]([C@@H](C)C[C@H]2C)([H])O[C@]12O[C@@]4(CC[C@]([C@]5([H])O[C@@H](C)[C@](CC)(O)CC5)(C)O4)[C@H](O)C=C1 | F23: 0.1789 | G23: 1.992 | H23: 3.677 | I23: 751 | J23: 4 | K23: 11 | L23: 161.2 | M23: 0.2105 | N23: 12 | P23: ABS iGc
A24: Scriptaid | B24: Scriptaid | D24: O=C(C1=CC=CC2=C1C3=CC=C2)N(CCCCCC(NO)=O)C3=O | F24: 1.58 | G24: 0.5114 | H24: 2.535 | I24: 326.3 | J24: 2 | K24: 6 | L24: 86.71 | M24: 0.2692 | N24: 7 | P24: ABS iGc
A25: MMV666604 | D25: CCOC(=O)C1=C(C)N=C2SC(=Cc3ccccc3O)C(=O)N2C1c4ccc(OC)c5ccccc45 | F25: -0.6364 | G25: 4.931 | H25: 4.931 | I25: 500.6 | J25: 1 | K25: 7 | L25: 90.12 | M25: 0.15 | N25: 6 | P25: ABS iGc
A26: MMV667491 | D26: C12=C(N=CN(CCCN(C)C)C1=N)Oc3c(ccc(cccc4)c34)C2c5ccc(OC)cc5 | F26: 0.3772 | G26: 3.261 | H26: 5.221 | I26: 440.5 | J26: 1 | K26: 6 | L26: 63.37 | M26: 0.1622 | N26: 6 | P26: ABS iGc
A27: MMV665971 | D27: CCOC(=O)C1=C(C)N=C2SC(=Cc3cc(Cl)ccc3O)C(=O)N2C1c4ccc(OC)cc4 | F27: 0.6669 | G27: 4.662 | H27: 4.662 | I27: 485 | J27: 1 | K27: 7 | L27: 90.12 | M27: 0.1667 | N27: 6 | P27: ABS iGc
A28: MMV665882 | D28: OC(CNC1CCCCC1)Cn2c3ccc(I)cc3c4cc(I)ccc24 | F28: 0.3925 | G28: 2.482 | H28: 4.858 | I28: 574.2 | J28: 2 | K28: 3 | L28: 37.19 | M28: 0.1724 | N28: 5 | P28: ABS iGc
A29: UNC0638 | D29: CC(C)N(CC5)CCC5NC1=C2C(C=C(OCCCN4CCCC4)C(OC)=C2)=NC(C3CCCCC3)=N1 | F29: 2.637 | G29: 2.828 | H29: 5.63 | I29: 509.7 | J29: 1 | K29: 7 | L29: 62.75 | M29: 0.2439 | N29: 10 | P29: ABS iGc
A30: UNC0642 | D30: CC(C)N(CC4)CCC4NC1=C2C(C=C(OCCCN3CCCC3)C(OC)=C2)=NC(N5CCC(F)(F)CC5)=N1 | F30: 2.348 | G30: 2.965 | H30: 4.769 | I30: 546.7 | J30: 1 | K30: 8 | L30: 65.99 | M30: 0.2326 | N30: 10 | P30: ABS iGc
A31: Barasertib (AZD1152-HQPA) | B31: Barasertib (AZD1152-HQPA) | D31: CCN(CCOP(O)(O)=O)CCCOC1=CC2=C(C(NC3=CC(CC(NC4=CC(F)=CC=C4)=O)=NN3)=NC=N2)C=C1 | F31: 1.598 | G31: 0.8697 | H31: 2.739 | I31: 587.5 | J31: 5 | K31: 13 | L31: 174.8 | M31: 0.3636 | N31: 16 | P31: ABS iGc
A32: MMV665852 | B32: NSC 35217 | D32: Clc1ccc(NC(=O)Nc2ccc(Cl)c(Cl)c2)cc1Cl | F32: 0.4183 | G32: 5.57 | H32: 5.57 | I32: 350 | J32: 2 | K32: 3 | L32: 41.13 | M32: 0.1905 | N32: 4 | P32: ABS iGc
A33: MMV665953 | D33: Fc1ccc(NC(=O)Nc2ccc(Cl)c(Cl)c2)cc1Cl | F33: 0.3957 | G33: 5.061 | H33: 5.061 | I33: 333.6 | J33: 2 | K33: 3 | L33: 41.13 | M33: 0.1905 | N33: 4 | P33: ABS iGc
A34: GD39 | D34: CCNCc1cc(cc(c1O)Nc1nc2cc(c(cc2n1Cc1ccc(cc1)C(F)(F)F)F)F)C | F34: -0.4437 | G34: 2.907 | H34: 5.214 | I34: 490.5 | J34: 3 | K34: 5 | L34: 62.11 | M34: 0.2105 | N34: 8 | P34: ABS iGc
A35: Trichostatin A | B35: Trichostatin A | D35: CN(C)c1ccc(cc1)C(=O)C(C)/C=C(\C)/C=C/C(=O)NO | F35: 3.345 | G35: 0.6649 | H35: 1.896 | I35: 302.4 | J35: 2 | K35: 5 | L35: 69.64 | M35: 0.3182 | N35: 7 | P35: ABS iGc
A36: ZM 447439 | D36: COc1cc2c(ncnc2cc1OCCCN1CCOCC1)Nc1ccc(cc1)NC(=O)c1ccccc1 | F36: 1.306 | G36: 3.609 | H36: 3.893 | I36: 513.6 | J36: 2 | K36: 9 | L36: 97.84 | M36: 0.2619 | N36: 11 | P36: ABS iGc
A37: CX-6258 HCl | B37: CX-6258 HCl | D37: CN1CCCN(CC1)C(=O)c2cccc(c2)c3ccc(o3)/C=C/4\c5cc(ccc5NC4=O)Cl | F37: 2.117 | G37: 2.851 | H37: 3.209 | I37: 461.9 | J37: 1 | K37: 6 | L37: 65.79 | M37: 0.1081 | N37: 4 | P37: ABS iGc
A38: Quisinostat (JNJ-26481585) 2HCl | B38: Quisinostat (JNJ-26481585) 2HCl | D38: Cn1cc(c2c1cccc2)CNCC3CCN(CC3)c4ncc(cn4)C(=O)NO | F38: 1.793 | G38: 0.7049 | H38: 2.219 | I38: 394.5 | J38: 3 | K38: 8 | L38: 95.31 | M38: 0.2188 | N38: 7 | P38: ABS iGc
A39: MMV000050 | B39: Chlorproguanil | D39: CC(C)NC(=N)NC(=N)Nc1ccc(Cl)c(Cl)c1 | F39: 3.272 | G39: 0.8281 | H39: 2.856 | I39: 288.2 | J39: 5 | K39: 5 | L39: 83.79 | M39: 0.3333 | N39: 6 | P39: ABS iGc
A40: MMV007224 | B40: MMV007224 | D40: Brc1ccc(Nc2nc3ccccc3nc2Nc4ccc(Br)cc4)cc1 | F40: -0.365 | G40: 5.982 | H40: 5.982 | I40: 470.2 | J40: 2 | K40: 4 | L40: 49.84 | M40: 0.1379 | N40: 4 | P40: ABS iGc
A41: PBI.125 | D41: FC1=C(F)C=C(N=C2N3C(N[C@@H](C)C4=CC=CC=C4Cl)=CC(C(F)(F)F)=C2C#N)C3=C1 | F41: -0.9726 | G41: 3.73 | H41: 5.592 | I41: 450.8 | J41: 1 | K41: 4 | L41: 53.12 | M41: 0.1471 | N41: 5 | P41: ABS iGc
A42: Sirtinol | B42: Sirtinol | D42: O=C(N([H])C(C1=CC=CC=C1)C)C(C=CC=C2)=C2/N=C/C3=C(O)C=CC4=C3C=CC=C4 | F42: 0.04791 | G42: 4.804 | H42: 4.804 | I42: 394.5 | J42: 2 | K42: 4 | L42: 61.69 | M42: 0.1818 | N42: 6 | P42: ABS iGc
A43: Decitabine | B43: Decitabine | D43: NC1=NC(N([C@@H]2O[C@H](CO)[C@@H](O)C2)C=N1)=O | F43: 4.149 | G43: -1.613 | H43: -1.94 | I43: 228.2 | J43: 3 | K43: 8 | L43: 123.5 | M43: 0.1176 | N43: 2 | P43: ABS iGc
A44: MMV000019 | B44: OZ439 | D44: C(CN1CCOCC1)Oc2ccc(cc2)[C@@H]3CC[C@@]4(CC3)OO[C@@]5(O4)[C@@H]6CC7C[C@@H](CC5C7)C6 | F44: 2.01 | G44: 2.799 | H44: 2.983 | I44: 469.6 | J44: 0 | K44: 6 | L44: 49.39 | M44: 0.125 | N44: 5 | P44: ABS iGc
A45: MMV084940 | D45: C1(=NC(C)(Cc(cc(OC)c(OC)c2)c23)C)C3=NNC1=O | F45: 3.748 | G45: 1.27 | H45: 1.27 | I45: 287.3 | J45: 1 | K45: 6 | L45: 72.28 | M45: 0.08696 | N45: 2 | P45: ABS iGc
A46: MMV000030 | B46: Thiostrepton | D46: CCC(C)C1NC2C=Cc3c(cc(nc3C2O)C(=O)OC(C)C4NC(=O)c5csc(n5)C(NC(=O)C6CSC(=N6)\C(=C/C)\NC(=O)C(NC(=O)c7csc(n7)C8(CCC(=NC8C9CSC4N9)c%10nc(cs%10)C(=O)NC(=C)C(=O)NC(=C)C(=O)N)NC(=O)C(C)NC(=O)C(=C)NC(=O)C(C)NC1=O)C(C)O)C(C)(O)C(C)O)C(C)O | F46: 2.886 | G46: 4.265 | H46: 0.5695 | I46: 1669 | J46: 18 | K46: 37 | L46: 561.9 | M46: 0.1138 | N46: 14 | P46: ABS iGc
A47: MMV007273 | D47: COc1cc(cc(OC)c1O)c2nc(c3ccc(Sc4ccccc4)cc3)c([nH]2)c5ccccc5 | F47: -1.447 | G47: 5.838 | H47: 5.838 | I47: 480.6 | J47: 2 | K47: 5 | L47: 67.37 | M47: 0.1795 | N47: 7 | P47: ABS iGc
A48: MMV020746 | B48: MMV020746 | D48: Cc1ccc(Oc2ncccc2C(=O)Nc3cccc4cccnc34)c(C)c1 | F48: -0.3161 | G48: 3.845 | H48: 3.845 | I48: 369.4 | J48: 1 | K48: 5 | L48: 64.11 | M48: 0.1613 | N48: 5 | P48: ABS iGc
A49: Dacinostat, LAQ824 | B49: Dacinostat, LAQ824 | D49: O=C(NO)/C=C/C1=CC=C(CN(CCC2=CNC3=C2C=CC=C3)CCO)C=C1 | F49: 2.889 | G49: 0.7206 | H49: 2.412 | I49: 379.5 | J49: 4 | K49: 6 | L49: 88.59 | M49: 0.3333 | N49: 10 | P49: ABS iGc
A50: MMV982301 | B50: FAR797 | P50: ABS iGc
A51: MMV1542805 | B51: MMV805 | P51: ABS iGc
A52: SRT1720 HCl | D52: c1ccc(c(c1)c2cn3c(csc3n2)CN4CCNCC4)NC(=O)c5cnc6ccccc6n5 | F52: 2.144 | G52: 3.052 | H52: 3.479 | I52: 469.6 | J52: 2 | K52: 8 | L52: 87.45 | M52: 0.1538 | N52: 6 | P52: ABS iGc
A53: Vorinostat (SAHA, MK0683) | B53: Vorinostat (SAHA, MK0683) | D53: O=C(Nc1ccccc1)CCCCCCC(=O)NO | F53: 3.306 | G53: 0.733 | H53: 2.101 | I53: 264.3 | J53: 3 | K53: 5 | L53: 78.43 | M53: 0.5263 | N53: 10 | P53: ABS iGc
A54: MMV019881 | D54: O=C(NC1CCN(Cc2ccccc2)CC1)c3cc(cc(c3)C(=O)NC4CCN(Cc5ccccc5)CC4)C(=O)NC6CCN(Cc7ccccc7)CC6 | F54: 2.235 | G54: 3.632 | H54: 4.289 | I54: 726.9 | J54: 3 | K54: 9 | L54: 97.02 | M54: 0.25 | N54: 15 | P54: ABS iGc
A55: MMV016838 | D55: Cc1ccc(cc1)c2cc(C(=O)Nc3cccnc3)c4cc(Br)ccc4n2 | F55: -0.3897 | G55: 4.27 | H55: 4.27 | I55: 418.3 | J55: 1 | K55: 4 | L55: 54.88 | M55: 0.1333 | N55: 4 | P55: ABS iGc
A56: BIX01294 (hydrochloride hydrate) | B56: BIX01294 (hydrochloride hydrate) | D56: CN1CCCN(CC1)c2nc3cc(c(cc3c(n2)NC4CCN(CC4)Cc5ccccc5)OC)OC | F56: 2.573 | G56: 2.8 | H56: 3.92 | I56: 490.6 | J56: 1 | K56: 8 | L56: 65.99 | M56: 0.175 | N56: 7 | P56: ABS iGc
A57: MMV084032 | B57: Borrelidine | D57: CC1CC(C)CC(C)C(O)\C(=C/C=C\CC(OC(=O)CC(O)C(C)C1)C2CCCC2C(=O)O)\C#N | F57: 0.9633 | G57: 1.195 | H57: 4.118 | I57: 489.6 | J57: 3 | K57: 7 | L57: 127.9 | M57: 0.08333 | N57: 3 | P57: ABS iGc
A58: MMV1542945 | B58: ACT-451840 | D58: CC(C)(C)c1ccc(cc1)/C=C/C(=O)N(Cc1ccc(cc1)N1CCN(CC1)C(C)=O)[C@@H](Cc1ccccc1)C(=O)N1CCN(Cc2ccc(C#N)cc2)CC1 | F58: 2.264 | G58: 3.564 | H58: 4.533 | I58: 751 | J58: 0 | K58: 9 | L58: 91.2 | M58: 0.2623 | N58: 16 | P58: ABS iGc
A59: MMV000020 | B59: OZ277 | D59: CC(C)(N)CNC(=O)C[C@@H]1CC[C@@]2(CC1)OOC3(O2)C4CC5CC(CC3C5)C4 | F59: 2.175 | G59: 1.527 | H59: 1.934 | I59: 392.5 | J59: 2 | K59: 6 | L59: 82.81 | M59: 0.1563 | N59: 5 | P59: ABS iGc
A60: Lestaurtinib | D60: O=C(NC1)C2=C1C(C(C=CC=C3)=C3N45)=C4C6=C2C7=C(C=CC=C7)N6[C@@]8([H])C[C@](O)(CO)[C@]5(C)O8 | F60: 1.01 | G60: 3.15 | H60: 3.15 | I60: 439.5 | J60: 3 | K60: 7 | L60: 88.65 | M60: 0.025 | N60: 1 | P60: ABS iGc
A61: MMV000008 | B61: Chloroquine | D61: CCN(CC)CCCC(C)Nc1ccnc2cc(Cl)ccc12 | F61: 2.434 | G61: 0.93 | H61: 4.63 | I61: 319.9 | J61: 1 | K61: 3 | L61: 28.16 | M61: 0.3478 | N61: 8 | P61: ABS iGc
A62: GD32 | D62: CCNCc1cc(cc(c1O)Nc1nc2ccccc2n1Cc1ccc(cc1)C(F)(F)F)C | F62: 0.4968 | G62: 2.989 | H62: 5.216 | I62: 454.5 | J62: 3 | K62: 5 | L62: 62.11 | M62: 0.2222 | N62: 8 | P62: ABS iGc
A63: MMV665894 | D63: CC(=O)c1sc(NC(=O)Nc2ccc(C)cc2C)nc1C | F63: 1.93 | G63: 3.295 | H63: 3.295 | I63: 303.4 | J63: 2 | K63: 5 | L63: 71.09 | M63: 0.2273 | N63: 5 | P63: ABS iGc
A64: SGI-1776 free base | D64: CN1CCC(CC1)CNC2=NN3C(=NC=C3C4=CC(=CC=C4)OC(F)(F)F)C=C2 | F64: 2.367 | G64: 2.979 | H64: 3.775 | I64: 405.4 | J64: 1 | K64: 6 | L64: 54.69 | M64: 0.1875 | N64: 6 | P64: ABS iGc
A65: M 344 | D65: ONC(=O)CCCCCCNC(=O)c1ccc(cc1)N(C)C | F65: 3.618 | G65: 0.5473 | H65: 1.729 | I65: 307.4 | J65: 3 | K65: 6 | L65: 81.67 | M65: 0.5 | N65: 11 | P65: ABS iGc
A66: MMV007907 | D66: Cc1ccc(Nc2nc(cs2)c3ccccn3)cc1 | F66: 2.369 | G66: 3.065 | H66: 3.065 | I66: 267.3 | J66: 1 | K66: 3 | L66: 37.81 | M66: 0.1429 | N66: 3 | P66: ABS iGc
A67: MMV000760 | D67: Oc1c(CN2CCN(CC2)c3ccccc3F)cc(Br)c4cccnc14 | F67: 1.594 | G67: 3.246 | H67: 4.284 | I67: 416.3 | J67: 1 | K67: 4 | L67: 39.6 | M67: 0.1034 | N67: 3 | P67: ABS iGc
A68: MMV000704 | D68: c1(Nc(cc2)ccc2N(CC3)CCN3C)c4c(ccc(OC)c4)ncc1C(OCC)=O | F68: 2.01 | G68: 3.064 | H68: 3.46 | I68: 420.5 | J68: 1 | K68: 7 | L68: 66.93 | M68: 0.2059 | N68: 7 | P68: ABS iGc
A69: 4-iodo-SAHA | B69: 4-iodo-SAHA | D69: IC1=CC=C(NC(CCCCCCC(NO)=O)=O)C=C1 | F69: 2.94 | G69: 0.9484 | H69: 2.708 | I69: 390.2 | J69: 3 | K69: 5 | L69: 78.43 | M69: 0.5 | N69: 10 | P69: ABS iGc
A70: CAY10603 | D70: ONC(=O)CCCCCCNC(=O)c1noc(c1)c1ccc(cc1)NC(=O)OC(C)(C)C | F70: 1.84 | G70: 1.387 | H70: 2.805 | I70: 446.5 | J70: 4 | K70: 10 | L70: 142.8 | M70: 0.4545 | N70: 15 | P70: ABS iGc
A71: Givinostat (ITF2357) | B71: Givinostat (ITF2357) | D71: CCN(CC)Cc1ccc2cc(ccc2c1)COC(=O)Nc3ccc(cc3)C(=O)NO | F71: 1.757 | G71: 2.149 | H71: 3.37 | I71: 421.5 | J71: 3 | K71: 7 | L71: 90.9 | M71: 0.3333 | N71: 11 | P71: ABS iGc
A72: ITF 2357 | D72: CCN(CC)Cc1ccc2cc(ccc2c1)COC(=O)Nc3ccc(cc3)C(=O)NO | F72: 1.757 | G72: 2.149 | H72: 3.37 | I72: 421.5 | J72: 3 | K72: 7 | L72: 90.9 | M72: 0.3333 | N72: 11 | P72: ABS iGc
A73: Celastrol | B73: Celastrol | D73: O=C(OC)C1(C)CCC2(C)CCC3(C)C4=CC=C5C(=CC(=O)C(O)=C5C)C4(C)CCC3(C)C2C1 | F73: 0.341 | G73: 4.495 | H73: 4.495 | I73: 464.6 | J73: 1 | K73: 4 | L73: 63.6 | M73: 0.05263 | N73: 2 | P73: ABS iGc
A74: Triclosan | B74: Triclosan | D74: ClC1=C(OC2=CC=C(Cl)C=C2O)C=CC(Cl)=C1 | F74: 1.241 | G74: 4.95 | H74: 4.95 | I74: 289.5 | J74: 1 | K74: 2 | L74: 29.46 | M74: 0.1111 | N74: 2 | P74: ABS iGc
A75: GSK1070916 | D75: CN(C)CC1=CC=CC(C2=CC3=C(C4=CN(CC)N=C4C5=CC=C(NC(N(C)C)=O)C=C5)C=CN=C3N2)=C1 | F75: 1.123 | G75: 3.315 | H75: 4.418 | I75: 507.6 | J75: 2 | K75: 8 | L75: 82.08 | M75: 0.2143 | N75: 9 | P75: ABS iGc
A76: Fedratinib (SAR302503, TG101348) | B76: Fedratinib (SAR302503, TG101348) | D76: CC(C)(C)NS(C1=CC=CC(NC2=NC(NC3=CC=C(OCCN4CCCC4)C=C3)=NC=C2C)=C1)(=O)=O | F76: 1.525 | G76: 2.833 | H76: 4.447 | I76: 524.7 | J76: 3 | K76: 9 | L76: 108.5 | M76: 0.275 | N76: 11 | P76: ABS iGc
A77: GD19 | D77: CCN(CC)Cc1cccc(c1O)Nc1nc2ccccc2n1Cc1ccc(cc1)C#N | F77: 1.408 | G77: 2.75 | H77: 4.448 | I77: 425.5 | J77: 2 | K77: 6 | L77: 77.11 | M77: 0.2571 | N77: 9 | P77: ABS iGc
A78: MI-463 | D78: CC1=C(C=CC2=C1C=C(N2)C#N)CN3CCC(CC3)NC4=C5C=C(SC5=NC=N4)CC(F)(F)F | F78: 0.6452 | G78: 3.37 | H78: 5.386 | I78: 484.5 | J78: 2 | K78: 6 | L78: 80.63 | M78: 0.1842 | N78: 7 | P78: ABS iGc
A79: MMV666597 | D79: CCCCCCc1cc2C=C(C(=Nc3ccccc3C)Oc2cc1O)c4nc5ccccc5[nH]4 | F79: -0.04394 | G79: 7.336 | H79: 7.336 | I79: 451.6 | J79: 2 | K79: 5 | L79: 74.41 | M79: 0.1842 | N79: 7 | P79: ABS iGc
A80: MMV396749 | D80: C12(Nc(cccc3)c3c4n1c5c(cccc5)n4)C(=O)Nc(ccc(OC)c6)c26 | F80: 2.223 | G80: 2.472 | H80: 2.597 | I80: 368.4 | J80: 2 | K80: 6 | L80: 68.18 | M80: 0.0303 | N80: 1 | P80: ABS iGc
A81: MMV1582617 | B81: NVP-INE963 | D81: NCC1(O)CCN(CC1)c1nn2c(s1)ncc2c1ccc(nc1OC)C(C)C | F81: 2.844 | G81: 1.538 | H81: 1.541 | I81: 402.5 | J81: 2 | K81: 8 | L81: 101.8 | M81: 0.1613 | N81: 5 | P81: ABS iGc
A82: Nigericin | B82: Nigericin | D82: CC1CCC(OC1C(C)C(=O)O)CC2CC(C(C3(O2)C(CC(O3)(C)C4CCC(O4)(C)C5C(CC(O5)C6C(CC(C(O6)(CO)O)C)C)C)C)C)OC | F82: 0.9352 | G82: 2.268 | H82: 3.773 | I82: 725 | J82: 3 | K82: 11 | L82: 142.4 | M82: 0.1607 | N82: 9 | P82: ABS iGc
A83: Epoxomycin | B83: Epoxomycin | D83: CC[C@H](C)[C@@H](C(=O)N[C@@H]([C@@H](C)O)C(=O)N[C@@H](CC(C)C)C(=O)[C@]1(CO1)C)NC(=O)[C@H]([C@@H](C)CC)N(C)C(=O)C | F83: 2.985 | G83: 1.491 | H83: 1.491 | I83: 554.7 | J83: 4 | K83: 11 | L83: 157.4 | M83: 0.5128 | N83: 20 | P83: ABS iGc
A84: GD35 | D84: CCNCc1cc(cc(c1O)Nc1nc2ccccc2n1Cc1ccc(cc1)C(F)(F)F)Cl | F84: 0.9379 | G84: 3.533 | H84: 5.212 | I84: 474.9 | J84: 3 | K84: 5 | L84: 62.11 | M84: 0.2222 | N84: 8 | P84: ABS iGc
A85: MMV011895 | D85: Nc1ccc(cc1)c2nc3cc(Oc4ccc(Oc5ccc6[nH]c(nc6c5)c7ccc(N)cc7)cc4)ccc3[nH]2 | F85: -0.4149 | G85: 4.374 | H85: 4.569 | I85: 524.6 | J85: 4 | K85: 8 | L85: 127.9 | M85: 0.1304 | N85: 6 | P85: ABS iGc
A86: TG101209 | D86: CC1=CN=C(N=C1NC2=CC(=CC=C2)S(=O)(=O)NC(C)(C)C)NC3=CC=C(C=C3)N4CCN(CC4)C | F86: 1.997 | G86: 2.829 | H86: 3.866 | I86: 509.7 | J86: 3 | K86: 9 | L86: 102.5 | M86: 0.2051 | N86: 8 | P86: ABS iGc
A87: CBHA | D87: ONC(=O)\C=C/c1cccc(c1)C(=O)NO | F87: 4.132 | G87: -0.9567 | H87: 0.2714 | I87: 222.2 | J87: 4 | K87: 6 | L87: 98.66 | M87: 0.3125 | N87: 5 | P87: ABS iGc
A88: DM7 | D88: O=C(CN1CCC(CC1)Nc1nc2ccccc2n1Cc1ccc(F)cc1)c1ccc(OC)cc1 | F88: 1.015 | G88: 3.299 | H88: 4.386 | I88: 472.6 | J88: 1 | K88: 6 | L88: 59.39 | M88: 0.2051 | N88: 8 | P88: ABS iGc
A89: MMV000025 | B89: Pyronaridine | D89: COc1ccc2nc3cc(Cl)ccc3c(Nc4cc(CN5CCCC5)c(O)c(CN6CCCC6)c4)c2n1 | F89: 1.515 | G89: 3.863 | H89: 3.985 | I89: 518 | J89: 2 | K89: 7 | L89: 73.75 | M89: 0.1667 | N89: 7 | P89: ABS iGc
A90: GD38 | D90: CCN(CC)Cc1c(c(ccc1Cl)Nc1nc2ccccc2n1Cc1ccc(cc1)C(F)(F)F)O | F90: 0.654 | G90: 4.246 | H90: 5.902 | I90: 503 | J90: 2 | K90: 5 | L90: 53.32 | M90: 0.2368 | N90: 9 | P90: ABS iGc
A91: CLM-19 | D91: CS(=O)(=O)c1ccc(cc1)c2cnn3ccc(cc23)c4cccc(c4)S(=O)(=O)C5CC5 | F91: 0.9161 | G91: 3.342 | H91: 3.342 | I91: 452.5 | J91: 0 | K91: 6 | L91: 85.58 | M91: 0.1429 | N91: 5 | P91: ABS iGc
A92: MMV674850 | D92: CS(=O)(=O)c1ccc(cc1)c2cnn3ccc(cc23)c4cccc(c4)S(=O)(=O)C5CC5 | F92: 0.9161 | G92: 3.342 | H92: 3.342 | I92: 452.5 | J92: 0 | K92: 6 | L92: 85.58 | M92: 0.1429 | N92: 5 | P92: ABS iGc
A93: DM8 | D93: O=C(Cc1ccc(OC)cc1)N1CCC(Nc2nc3ccccc3n2Cc2ccc(F)cc2)CC1 | F93: 1.122 | G93: 2.736 | H93: 4.104 | I93: 472.6 | J93: 1 | K93: 6 | L93: 59.39 | M93: 0.2051 | N93: 8 | P93: ABS iGc
A94: Pracinostat (SB939) | B94: Pracinostat (SB939) | D94: CCCCC1=NC2=C(N1CCN(CC)CC)C=CC(=C2)/C=C/C(=O)NO | F94: 3.028 | G94: 0.6107 | H94: 2.867 | I94: 358.5 | J94: 2 | K94: 6 | L94: 70.39 | M94: 0.4074 | N94: 11 | P94: ABS iGc
A95: Belinostat (PXD101) | B95: Belinostat (PXD101) | D95: C1=CC=C(C=C1)NS(=O)(=O)C2=CC=CC(=C2)/C=C/C(=O)NO | F95: 3.006 | G95: 0.2316 | H95: 1.322 | I95: 318.3 | J95: 3 | K95: 6 | L95: 95.5 | M95: 0.2609 | N95: 6 | P95: ABS iGc
A96: GSK-J4 | D96: COCC(=O)CCNc1cc(nc(n1)c1ccccn1)N1CCc2ccccc2CC1 | F96: 0.9872 | G96: 2.233 | H96: 3.308 | I96: 417.5 | J96: 1 | K96: 7 | L96: 80.24 | M96: 0.2353 | N96: 8 | P96: ABS iGc
A97: MMV000839 | D97: OC(CNCc1ccccc1)Cn2c3ccccc3c4ccccc24 | F97: 1.38 | G97: 2.105 | H97: 4.186 | I97: 330.4 | J97: 2 | K97: 3 | L97: 37.19 | M97: 0.2143 | N97: 6 | P97: ABS iGc
A98: Monensin | B98: Monensin | D98: CCC1(CCC(O1)C2(CCC3(O2)CC(C(C(O3)C(C)C(C(C)C(=O)O)OC)C)O)C)C4C(CC(O4)C5C(CC(C(O5)(CO)O)C)C)C | F98: 1.598 | G98: 1.414 | H98: 3.009 | I98: 670.9 | J98: 4 | K98: 11 | L98: 153.4 | M98: 0.1961 | N98: 10 | P98: ABS iGc
A99: PC29 | D99: CS(=O)c1ccc(cc1)c1cnc2ccc(nn12)c1cccc(c1)C(=O)N1CCCCC1 | F99: 0.6293 | G99: 3.827 | H99: 3.827 | I99: 444.5 | J99: 0 | K99: 6 | L99: 67.57 | M99: 0.1389 | N99: 5 | P99: ABS iGc
A100: PBI.109 | B100: PBI.109 | D100: Fc1cc2nc3c(c(cc(n3c2cc1F)NC1(CC1)c1ccccc1)C(F)(F)F)C#N | F100: -0.6364 | G100: 2.993 | H100: 5.217 | I100: 428.4 | J100: 1 | K100: 4 | L100: 53.12 | M100: 0.1429 | N100: 5 | P100: ABS iGc
A101: MMV000753 | D101: Oc1ccc(cc1)c2nc(c3ccc4oc5ccc(cc5c4c3)c6[nH]c(nc6c7ccccc7)c8ccc(O)cc8)c([nH]2)c9ccccc9 | F101: -1.403 | G101: 7.223 | H101: 7.223 | I101: 636.7 | J101: 4 | K101: 7 | L101: 111 | M101: 0.1053 | N101: 6 | P101: ABS iGc
A102: Pyroxamide | B102: Pyroxamide | D102: O=C(CCCCCCC(NO)=O)NC1=CC=CN=C1 | F102: 3.508 | G102: 0.06394 | H102: 1.402 | I102: 265.3 | J102: 3 | K102: 6 | L102: 91.32 | M102: 0.5263 | N102: 10 | P102: ABS iGc
A103: GD24 | D103: CCN(CC)Cc1cccc(c1O)Nc1nc2ccccc2n1Cc1ccc(cc1)C(F)(F)F | F103: 1.014 | G103: 3.653 | H103: 5.412 | I103: 468.5 | J103: 2 | K103: 5 | L103: 53.32 | M103: 0.2432 | N103: 9 | P103: ABS iGc
A104: MMV006962 | D104: Clc1ccc(cc1)C(=O)Nc2ccc(cc2)c3nc4cc(NC(=O)c5ccc(Cl)cc5)ccc4[nH]3 | F104: -0.1223 | G104: 5.321 | H104: 5.321 | I104: 501.4 | J104: 3 | K104: 6 | L104: 86.88 | M104: 0.1795 | N104: 7 | P104: ABS iGc
A105: HC Toxin | B105: HC Toxin | D105: [H][C@@]12C(N([H])[C@@H](C)C(N([H])[C@H](C)C(N([H])[C@](CCCCCC([C@@H]3CO3)=O)([H])C(N1CCC2)=O)=O)=O)=O | F105: 3.387 | G105: 0.7373 | H105: 0.7373 | I105: 436.5 | J105: 3 | K105: 10 | L105: 137.2 | M105: 0.2121 | N105: 7 | P105: ABS iGc
A106: BI-847325 | D106: O=C(NCC)C#CC1=CC2=C(/C(C(N2)=O)=C(NC3=CC=C(CN(C)C)C=C3)/C4=CC=CC=C4)C=C1 | F106: 1.671 | G106: 2.647 | H106: 3.787 | I106: 464.6 | J106: 3 | K106: 6 | L106: 73.47 | M106: 0.2368 | N106: 9 | P106: ABS iGc
A107: MMV007224 | D107: Brc1ccc(Nc2nc3ccccc3nc2Nc4ccc(Br)cc4)cc1 | F107: -0.365 | G107: 5.982 | H107: 5.982 | I107: 470.2 | J107: 2 | K107: 4 | L107: 49.84 | M107: 0.1379 | N107: 4 | P107: ABS iGc
A108: GD40 | D108: Cc1cc(c(c(c1)Nc1nc2cc(c(cc2n1Cc1ccc(cc1)C(F)(F)F)F)F)O)CNC(C)(C)C | F108: -0.7471 | G108: 3.163 | H108: 5.781 | I108: 518.5 | J108: 3 | K108: 5 | L108: 62.11 | M108: 0.2 | N108: 8 | P108: ABS iGc
A109: MMV000073 | B109: Cipargamin/KAE609/NITD609 | D109: CC1Cc2c3cc(F)c(cc3[nH]c2C2(N1)C(=O)Nc1c2cc(Cl)cc1)Cl | F109: 1.145 | G109: 2.683 | H109: 3.719 | I109: 390.2 | J109: 3 | K109: 4 | L109: 56.92 | M109: 0 | N109: 0 | P109: ABS iGc
A110: Abexinostat (PCI-24781) | B110: Abexinostat (PCI-24781) | D110: O=C(NO)C1=CC=C(OCCNC(C2=C(CN(C)C)C3=C(C=CC=C3)O2)=O)C=C1 | F110: 2.822 | G110: 1.108 | H110: 1.867 | I110: 397.4 | J110: 3 | K110: 8 | L110: 104 | M110: 0.3226 | N110: 10 | P110: ABS iGc
A111: MMV000022 | B111: Piperaquine | D111: Clc1ccc2c(ccnc2c1)N3CCN(CCCN4CCN(CC4)c5ccnc6cc(Cl)ccc56)CC3 | F111: 1.514 | G111: 4.267 | H111: 4.532 | I111: 535.5 | J111: 0 | K111: 6 | L111: 38.74 | M111: 0.1429 | N111: 6 | P111: ABS iGc
A112: MMV000003 | B112: Artemether | D112: CO[C@H]1O[C@@H]2O[C@@]3(C)CC[C@H]4[C@H](C)CC[C@@H]([C@H]1C)[C@@]24OO3 | F112: 2.063 | G112: 2.935 | H112: 2.935 | I112: 298.4 | J112: 0 | K112: 5 | L112: 46.15 | M112: 0.04167 | N112: 1 | P112: ABS iGc
A113: MMV1581373 | B113: KAE609 analog | D113: C[C@H]1CC2=C([C@]3(N1)C4=C(C=CC(=C4)Cl)NC3=O)NC5=CC(=C(C=C25)F)Cl | F113: 1.103 | G113: 2.682 | H113: 3.719 | I113: 390.2 | J113: 3 | K113: 4 | L113: 56.92 | M113: 0 | N113: 0 | P113: ABS iGc
A114: GD36 | D114: CC(C)(C)NCc1cc(cc(c1O)Nc1nc2ccccc2n1Cc1ccc(cc1)C(F)(F)F)Cl | F114: 0.5828 | G114: 3.785 | H114: 5.766 | I114: 503 | J114: 3 | K114: 5 | L114: 62.11 | M114: 0.2105 | N114: 8 | P114: ABS iGc
A115: MMV011436 | D115: CC(C)(C)c1ccc(cc1)C2CC(=C3C(N(C(=O)c4ccccc4Cl)c5ccccc5N=C3C2)c6ccc(F)cc6)O | F115: -2.82 | G115: 7.569 | H115: 7.569 | I115: 579.1 | J115: 1 | K115: 4 | L115: 52.9 | M115: 0.1064 | N115: 5 | P115: ABS iGc
A116: MMV000013 | B116: HYDROXYCHLOROQUINE SULFATE | D116: CCN(CCO)CCCC(C)Nc1ccnc2cc(Cl)ccc12 | F116: 3.05 | G116: 0.9564 | H116: 3.657 | I116: 335.9 | J116: 2 | K116: 4 | L116: 48.39 | M116: 0.375 | N116: 9 | P116: ABS iGc
A117: MI-136 | D117: N#CC1=CC2=CC(CN3CCC(NC4=C(C=C(CC(F)(F)F)S5)C5=NC=N4)CC3)=CC=C2N1 | F117: 0.8001 | G117: 3.389 | H117: 5.011 | I117: 470.5 | J117: 2 | K117: 6 | L117: 80.63 | M117: 0.1892 | N117: 7 | P117: ABS iGc
A118: MMV666692 | D118: CCCCCCc1cc2C=C(C(=O)Oc2cc1O)c3csc(C=Cc4ccccc4)n3 | F118: 0.07042 | G118: 6.534 | H118: 6.534 | I118: 431.5 | J118: 1 | K118: 4 | L118: 63.33 | M118: 0.2353 | N118: 8 | P118: ABS iGc
A119: Tenovin-6 | B119: Tenovin-6 | D119: CC(C)(C)c1ccc(cc1)C(=O)NC(=S)Nc2ccc(cc2)NC(=O)CCCCN(C)C | F119: 1.378 | G119: 2.316 | H119: 4.259 | I119: 454.6 | J119: 3 | K119: 6 | L119: 73.47 | M119: 0.3939 | N119: 13 | P119: ABS iGc
A120: MMV000068 | B120: Tetracycline | D120: CN(C)[C@H]1[C@@H]2C[C@H]3C(=C(O)[C@]2(O)C(=O)C(=C1O)C(=O)N)C(=O)c4c(O)cccc4[C@@]3(C)O | F120: 2.782 | G120: -0.6165 | H120: -1.47 | I120: 444.4 | J120: 6 | K120: 10 | L120: 181.6 | M120: 0.05714 | N120: 2 | P120: ABS iGc
A121: MMV665902 | D121: OC(CN1C(=N)N(CCN2CCCCC2)c3ccccc13)c4cccc(Br)c4 | F121: 2.601 | G121: 2.068 | H121: 3.378 | I121: 443.4 | J121: 2 | K121: 5 | L121: 57.18 | M121: 0.1935 | N121: 6 | P121: ABS iGc
A122: MMV023367 | D122: Nc1ncc(cc1c2nc3cc(F)ccc3[nH]2)c4cn[nH]c4 | F122: 1.612 | G122: 1.831 | H122: 1.799 | I122: 294.3 | J122: 3 | K122: 6 | L122: 96.27 | M122: 0.08 | N122: 2 | P122: ABS iGc
A123: MMV019127 | D123: CCN(Cc1ccccc1)C2CCN(Cc3cc(Br)ccc3O)CC2 | F123: 3.299 | G123: 2.474 | H123: 4.714 | I123: 403.4 | J123: 1 | K123: 3 | L123: 26.71 | M123: 0.2222 | N123: 6 | P123: ABS iGc
A124: MMV1578884 | B124: CRS-3123 | D124: Oc1cc(NCCCN[C@@H]2CCOc3c(Br)cc(Br)cc23)nc4ccsc14 | F124: 0.4757 | G124: 2.521 | H124: 3.958 | I124: 513.2 | J124: 3 | K124: 5 | L124: 66.41 | M124: 0.2 | N124: 6 | P124: ABS iGc
A125: GD33 | D125: Cc1cc(c(c(c1)Nc1nc2ccccc2n1Cc1ccc(cc1)C(F)(F)F)O)CNC(C)(C)C | F125: 0.1238 | G125: 3.268 | H125: 5.813 | I125: 482.5 | J125: 3 | K125: 5 | L125: 62.11 | M125: 0.2105 | N125: 8 | P125: ABS iGc
A126: MMV642944 | D126: CS(=O)(=O)c1ccc(cc1)c2cnc(N)c(n2)c3ccc(nc3)C(F)(F)F | F126: 0.6878 | G126: 2.489 | H126: 2.969 | I126: 394.4 | J126: 1 | K126: 6 | L126: 98.83 | M126: 0.1379 | N126: 4 | P126: ABS iGc
A127: Puromycin | B127: Puromycin | D127: COC1=CC=C(C[C@H](N)C(=O)N[C@@H]2[C@@H](CO)O[C@H]([C@@H]2O)N2C=NC3=C2N=CN=C3N(C)C)C=C1 | F127: 3.225 | G127: 0.6439 | H127: -0.1577 | I127: 471.5 | J127: 4 | K127: 12 | L127: 160.9 | M127: 0.2432 | N127: 9 | P127: ABS iGc
A128: MMV665820 | D128: COc1ccc2C(=O)C=C(Oc2c1)C(Cl)(Cl)Cl | F128: 1.875 | G128: 3.416 | H128: 3.416 | I128: 293.5 | J128: 0 | K128: 3 | L128: 39.44 | M128: 0.1111 | N128: 2 | P128: ABS iGc
A129: MMV019266 | D129: Cc1sc2ncnc(Sc3nc4ccccc4[nH]3)c2c1C | F129: 0.7531 | G129: 4.192 | H129: 4.192 | I129: 312.4 | J129: 1 | K129: 4 | L129: 54.46 | M129: 0.08333 | N129: 2 | P129: ABS iGc
A130: LLY-507 | D130: N#CC1=CC(C(NCCCN2CCCC2)=O)=CC(C3=CC=CC=C3N4CCN(CCN5C=C(C)C6=C5C=CC=C6)CC4)=C1 | F130: 1.59 | G130: 4.112 | H130: 4.846 | I130: 574.8 | J130: 1 | K130: 7 | L130: 67.54 | M130: 0.25 | N130: 12 | P130: ABS iGc
A131: CAY10398 | D131: ONC(=O)CCCCCNC(=O)c1ccc(cc1)N(C)C | F131: 4.008 | G131: 0.2993 | H131: 1.178 | I131: 293.4 | J131: 3 | K131: 6 | L131: 81.67 | M131: 0.4762 | N131: 10 | P131: ABS iGc
A132: MMV666116 | D132: Oc1ccccc1CN2CCC3(CCCN(Cc4ccccc4F)C3)C2 | F132: 3.01 | G132: 2.465 | H132: 2.866 | I132: 354.5 | J132: 1 | K132: 3 | L132: 26.71 | M132: 0.1379 | N132: 4 | P132: ABS iGc
A133: GD41 | D133: CCNCc1cc(cc(c1O)Nc1nc2cc(c(cc2n1Cc1ccc(cc1)C(F)(F)F)F)F)Cl | F133: 0.01797 | G133: 3.314 | H133: 5.182 | I133: 510.9 | J133: 3 | K133: 5 | L133: 62.11 | M133: 0.2105 | N133: 8 | P133: ABS iGc
A134: DM-36 | D134: CC(C)(C)c1nc(on1)c1ccc(CCN2CCC(Nc3nc4ccccc4n3C)CC2)cc1 | F134: 1.67 | G134: 2.864 | H134: 5.146 | I134: 458.6 | J134: 1 | K134: 7 | L134: 72.01 | M134: 0.1842 | N134: 7 | P134: ABS iGc
A135: MMV000014 | B135: Lumefantrine | D135: CCCCN(CCCC)CC(O)c1cc(Cl)cc2\C(=C/c3ccc(Cl)cc3)\c4cc(Cl)ccc4c12 | F135: -0.2291 | G135: 5.837 | H135: 8.018 | I135: 528.9 | J135: 1 | K135: 2 | L135: 23.47 | M135: 0.2632 | N135: 10 | P135: ABS iGc
A136: PM3a | B136: Jozimine A2 | D136: CC1Cc2ccc(c(O)c2C(C)N1)c1c(C)c(c(O)c2c1cccc2OC)c1c(O)c2c(cccc2OC)c(c2ccc3CC(C)NC(C)c3c2O)c1C | F136: -0.03896 | G136: 4.004 | H136: 5.972 | I136: 724.9 | J136: 6 | K136: 8 | L136: 123.4 | M136: 0.08197 | N136: 5 | P136: ABS iGc
A137: Cycloheximidine | B137: Cycloheximidine | D137: CC1CC(C(=O)C(C1)C(CC2CC(=O)NC(=O)C2)O)C | F137: 3.627 | G137: 0.5502 | H137: 0.5502 | I137: 281.3 | J137: 2 | K137: 5 | L137: 83.47 | M137: 0.1429 | N137: 3 | P137: ABS iGc
A138: Ellagic acid | D138: OC1=C(O)C=C2C(C3=C4C=C(O)C(O)=C3OC2=O)=C1OC4=O | F138: 2.867 | G138: 1.572 | H138: 1.572 | I138: 302.2 | J138: 4 | K138: 8 | L138: 141.3 | M138: 0 | N138: 0 | P138: ABS iGc
A139: GM45 | D139: CC(C=C1)=CC=C1CNC2=CC(C(F)(F)F)=C(C#N)C3=NC4=CC(Cl)=C(Cl)C=C4N32 | F139: -0.2222 | G139: 4.284 | H139: 6.134 | I139: 449.3 | J139: 1 | K139: 4 | L139: 53.12 | M139: 0.1515 | N139: 5 | P139: ABS iGc
A140: MMV665785 | D140: CC(C)(C)c1ccc(O)c(CNC2CCCCC2)c1 | F140: 1.91 | G140: 1.283 | H140: 4.601 | I140: 261.4 | J140: 2 | K140: 2 | L140: 32.26 | M140: 0.2 | N140: 4 | P140: ABS iGc
A141: MMV665789 | D141: CC(NCc1ccccc1)c2cc(Cl)ccc2O | F141: 2.774 | G141: 1.77 | H141: 4.012 | I141: 261.7 | J141: 2 | K141: 2 | L141: 32.26 | M141: 0.2105 | N141: 4 | P141: ABS iGc
A142: MMV019662 | D142: COc1ccc(cc1)N2CCN(CC2)C(CNC(=O)C3CCCCC3)c4ccc5OCOc5c4 | F142: 2.361 | G142: 3.45 | H142: 4.206 | I142: 465.6 | J142: 1 | K142: 7 | L142: 63.27 | M142: 0.2105 | N142: 8 | P142: ABS iGc
A143: MMV665929 | D143: CCCCNCC(O)(c1ccc(Cl)cc1)c2ccc(Cl)cc2 | F143: 1.841 | G143: 2.712 | H143: 4.015 | I143: 338.3 | J143: 2 | K143: 2 | L143: 32.26 | M143: 0.3043 | N143: 7 | P143: ABS iGc
A144: MMV000634 | D144: CC1CCCCN1CCCNC(=O)c2ccc3c(c2)sc4nc(cn34)c5ccc(F)cc5 | F144: 0.9441 | G144: 3.582 | H144: 4.994 | I144: 450.6 | J144: 1 | K144: 5 | L144: 49.64 | M144: 0.1944 | N144: 7 | P144: ABS iGc
A145: MMV000788 | D145: CC(C)OCc1cc(CN2CCN(CC2)c3cccc(Cl)c3)c(O)c4ncccc14 | F145: 1.106 | G145: 3.669 | H145: 4.295 | I145: 426 | J145: 1 | K145: 5 | L145: 48.83 | M145: 0.1818 | N145: 6 | P145: ABS iGc
A146: MMV000061 | B146: Methylene Blue | D146: CN(C)c1ccc2c(c1)[s+]c3cc(ccc3n2)N(C)C | F146: 2.78 | G146: 2.347 | H146: 4.105 | I146: 284.4 | J146: 0 | K146: 3 | L146: 19.37 | M146: 0.09091 | N146: 2 | P146: ABS iGc
A147: B-II.4 | B147: B-II.4 | D147: CCN(CC1=CC=C(Cl)C=C1O)CCNC2=NC3=CC=CC=C3N2 | F147: 2.976 | G147: 1.73 | H147: 3.517 | I147: 344.8 | J147: 3 | K147: 5 | L147: 64.18 | M147: 0.2692 | N147: 7 | P147: ABS iGc
A148: MMV019918 | D148: Clc1cc(Br)ccc1c2oc(CNCC3CCNCC3)cc2 | F148: 2.594 | G148: 2.124 | H148: 3.901 | I148: 383.7 | J148: 2 | K148: 3 | L148: 37.2 | M148: 0.2083 | N148: 5 | P148: ABS iGc
A149: ACT-451840 | B149: ACT-451840 | D149: CC(C)(C)c1ccc(cc1)/C=C/C(=O)N(Cc1ccc(cc1)N1CCN(CC1)C(C)=O)[C@@H](Cc1ccccc1)C(=O)N1CCN(Cc2ccc(C#N)cc2)CC1 | F149: 2.264 | G149: 3.564 | H149: 4.533 | I149: 751 | J149: 0 | K149: 9 | L149: 91.2 | M149: 0.2623 | N149: 16 | P149: ABS iGc
A150: MMV665941 | D150: CN(C)c1ccc(cc1)C(O)(c2ccc(cc2)N(C)C)c3ccc(cc3)N(C)C | F150: 2.73 | G150: 2.501 | H150: 2.836 | I150: 389.5 | J150: 1 | K150: 4 | L150: 29.95 | M150: 0.1935 | N150: 6 | P150: ABS iGc
A151: MMV000848 | D151: OC(CNC1CCCC1)Cn2c3ccccc3c4ccccc24 | F151: 1.836 | G151: 1.673 | H151: 4.072 | I151: 308.4 | J151: 2 | K151: 3 | L151: 37.19 | M151: 0.1923 | N151: 5 | P151: ABS iGc
A152: MMV674143 | B152: Cladosporin | D152: C[C@H]1CCC[C@H](CC2Cc3cc(O)cc(O)c3C(=O)O2)O1 | F152: 1.579 | G152: 3.58 | H152: 3.58 | I152: 292.3 | J152: 2 | K152: 5 | L152: 75.99 | M152: 0.08696 | N152: 2 | P152: ABS iGc
A153: MMV009015 | D153: OC(COc1ccccc1C(=O)CCc2ccccc2)CN3CCCCC3 | F153: 2.208 | G153: 2.153 | H153: 3.364 | I153: 367.5 | J153: 1 | K153: 4 | L153: 49.77 | M153: 0.3103 | N153: 9 | P153: ABS iGc
A154: MMV000056 | B154: Ferroquine (SSR97193) | D154: CN(CC1=C(CNc2ccnc3c2ccc(c3)Cl)C=C(C1)[Fe]C1=CC=CC1)C | F154: 1.641 | G154: 2.548 | H154: 4.386 | I154: 433.8 | J154: 1 | K154: 3 | L154: 28.16 | M154: 0.2258 | N154: 7 | P154: ABS iGc
A155: MMV000443 | D155: CCOc1ccc2OCN(Cc3ccc(Cl)cc3)Cc2c1 | F155: 1.765 | G155: 3.384 | H155: 3.859 | I155: 303.8 | J155: 0 | K155: 3 | L155: 21.7 | M155: 0.1739 | N155: 4 | P155: ABS iGc
A156: MMV034136 | P156: ABS iGc
A157: KS47 | D157: N#CC1=C(C2=CC=C(C(OC)=O)C=C2)C=C(NCCNCC)N3C1=NC4=C3C=CC=C4 | F157: 1.23 | G157: 2.037 | H157: 3.537 | I157: 413.5 | J157: 2 | K157: 7 | L157: 91.45 | M157: 0.2647 | N157: 9 | P157: ABS iGc
A158: WEHI-842 | B158: WEHI-842 | D158: CC(C)CC(NC(=O)C(NC(=O)C(CCONC(=N)N)NC(=O)OCc1ccccc1)C(C)C)C(O)CC(=O)NCCc1ccccc1 | F158: 1.898 | G158: 2.734 | H158: 1.647 | I158: 669.8 | J158: 8 | K158: 14 | L158: 217 | M158: 0.5306 | N158: 26 | P158: ABS iGc
A159: MMV665786 | D159: Clc1ccc2OC(=O)C=C(NC3CCN(CCCc4ccccc4)CC3)c2c1 | F159: 1.341 | G159: 4.034 | H159: 4.985 | I159: 396.9 | J159: 1 | K159: 4 | L159: 45.48 | M159: 0.1935 | N159: 6 | P159: ABS iGc
A160: MMV000015 | B160: Mefloquine | D160: O[C@H]([C@H]1CCCCN1)c2cc(nc3c(cccc23)C(F)(F)F)C(F)(F)F | F160: 1.793 | G160: 2.03 | H160: 3.555 | I160: 378.3 | J160: 2 | K160: 3 | L160: 45.15 | M160: 0.1429 | N160: 4 | P160: ABS iGc
A161: MMV670325 | D161: CCOc1ccc(Cl)c2[C@@H](CN)OB(O)c12 | F161: 3.856 | G161: 0.08585 | H161: 1.367 | I161: 241.5 | J161: 2 | K161: 4 | L161: 64.71 | M161: 0.1765 | N161: 3 | P161: ABS iGc
A162: MMV000014 | B162: Lumefantrine | D162: CCCCN(CCCC)CC(O)c1cc(Cl)cc2\C(=C/c3ccc(Cl)cc3)\c4cc(Cl)ccc4c12 | F162: -0.2291 | G162: 5.837 | H162: 8.018 | I162: 528.9 | J162: 1 | K162: 2 | L162: 23.47 | M162: 0.2632 | N162: 10 | P162: ABS iGc
A163: MMV390482 | B163: SJ733 | D163: N#Cc1cc(ccc1F)NC(=O)C1c2ccccc2C(=O)N(C1c1cccnc1)CC(F)(F)F | F163: -0.6137 | G163: 3.945 | H163: 3.945 | I163: 468.4 | J163: 1 | K163: 6 | L163: 86.09 | M163: 0.1892 | N163: 7 | P163: ABS iGc
A164: KS41 | D164: ClC(C=C1)=CC=C1C2=C(C#N)C(N3C(NCCNCC)=C2)=NC4=C3C=CC=C4 | F164: 1.017 | G164: 3.055 | H164: 4.065 | I164: 389.9 | J164: 2 | K164: 5 | L164: 65.15 | M164: 0.2258 | N164: 7 | P164: ABS iGc
A165: GD42 | D165: CC(C)(C)NCc1cc(cc(c1O)Nc1nc2cc(c(cc2n1Cc1ccc(cc1)C(F)(F)F)F)F)Cl | F165: -0.2845 | G165: 3.555 | H165: 5.72 | I165: 538.9 | J165: 3 | K165: 5 | L165: 62.11 | M165: 0.2 | N165: 8 | P165: ABS iGc
A166: MMV643121 | B166: M5717 (DDD107498) | D166: O=C(NCCN1CCCC1)c1cc(nc2ccc(F)cc12)c1ccc(cc1)CN1CCOCC1 | F166: 2.337 | G166: 3.101 | H166: 3.318 | I166: 462.6 | J166: 1 | K166: 6 | L166: 57.7 | M166: 0.2105 | N166: 8 | P166: ABS iGc
A167: DDD107498 | B167: M5717 | D167: O=C(NCCN1CCCC1)c1cc(nc2ccc(F)cc12)c1ccc(cc1)CN1CCOCC1 | F167: 2.337 | G167: 3.101 | H167: 3.318 | I167: 462.6 | J167: 1 | K167: 6 | L167: 57.7 | M167: 0.2105 | N167: 8 | P167: ABS iGc
A168: MMV000005 | B168: Artesunate | D168: C[C@@H]1CC[C@H]2[C@@H](C)[C@H](OC(=O)CCC(=O)O)O[C@@H]3O[C@@]4(C)CC[C@@H]1[C@@]23OO4 | F168: 1.626 | G168: 0.3958 | H168: 2.532 | I168: 384.4 | J168: 1 | K168: 8 | L168: 100.5 | M168: 0.1667 | N168: 5 | P168: ABS iGc
A169: MMV000001 | B169: Amodiaquine | D169: CCN(CC)Cc1cc(Nc2ccnc3cc(Cl)ccc23)ccc1O | F169: 1.557 | G169: 2.599 | H169: 4.248 | I169: 355.9 | J169: 2 | K169: 4 | L169: 48.39 | M169: 0.2222 | N169: 6 | P169: ABS iGc
A170: MMV665841 | D170: CCCc1cc(O)c2C3=C(CN(C)CC3)C(=O)Oc2c1 | F170: 3.707 | G170: 1.723 | H170: 2.364 | I170: 273.3 | J170: 1 | K170: 4 | L170: 53.68 | M170: 0.09091 | N170: 2 | P170: ABS iGc
A171: coumarin-SAHA | B171: coumarin-SAHA | D171: O=C(CCCCCCC(NO)=O)NC1=CC2=C(C(C)=CC(O2)=O)C=C1 | F171: 2.327 | G171: 1.228 | H171: 2.595 | I171: 346.4 | J171: 3 | K171: 7 | L171: 108.6 | M171: 0.3846 | N171: 10 | P171: ABS iGc
A172: CUDC-101 | B172: CUDC-101 | D172: COC1=CC2=C(C(NC3=CC=CC(C#C)=C3)=NC=N2)C=C1OCCCCCCC(NO)=O | F172: 0.5287 | G172: 1.993 | H172: 3.825 | I172: 434.5 | J172: 3 | K172: 8 | L172: 105.6 | M172: 0.3824 | N172: 13 | P172: ABS iGc
A173: MMV000004 | B173: DHA | D173: C[C@@H]1CC[C@H]2[C@@H](C)[C@@H](O)O[C@@H]3O[C@@]4(C)CC[C@@H]1[C@@]23OO4 | F173: 2.363 | G173: 2.19 | H173: 2.19 | I173: 284.3 | J173: 1 | K173: 5 | L173: 57.15 | M173: 0 | N173: 0 | P173: ABS iGc
A174: MMV396703 | D174: c12c(ncnc1NCCN(CC)CC)c3c(ccc(Cl)c3)[nH]2 | F174: 2.799 | G174: 1.767 | H174: 3.974 | I174: 317.8 | J174: 2 | K174: 5 | L174: 56.84 | M174: 0.25 | N174: 6 | P174: ABS iGc
A175: MMV666061 | D175: COc1cccc(O)c1CN2CCC3(CCCN(Cc4ccc(F)cc4)C3)C2 | F175: 3.042 | G175: 2.504 | H175: 2.671 | I175: 384.5 | J175: 1 | K175: 4 | L175: 35.94 | M175: 0.1613 | N175: 5 | P175: ABS iGc
A176: KS66 | D176: CC1=C(NCCNCC)N2C(C(C#N)=C1C3=CC=C(C(F)(F)F)C=C3)=NC4=C2C=CC=C4 | F176: 0.5813 | G176: 3.18 | H176: 4.809 | I176: 437.5 | J176: 2 | K176: 5 | L176: 65.15 | M176: 0.2286 | N176: 8 | P176: ABS iGc
A177: PBI.58 | D177: N#CC1=C(C(F)(F)F)C=C(NC2=CC(OC(F)(F)F)=CC=C2)N3C1=NC4=CC=CC=C43 | F177: 0.3337 | G177: 5.295 | H177: 5.295 | I177: 436.3 | J177: 1 | K177: 5 | L177: 62.35 | M177: 0.1765 | N177: 6 | P177: ABS iGc
A178: MMV085583 | D178: CCCCCC(=O)N1C(C2=C(O)CC(CC2=Nc3ccccc13)c4ccc(OC)c(OC)c4)c5ccc(cc5)C(F)(F)F | F178: -0.7672 | G178: 6.706 | H178: 6.706 | I178: 592.6 | J178: 1 | K178: 6 | L178: 71.36 | M178: 0.2128 | N178: 10 | P178: ABS iGc
A179: MMV665831 | D179: CCOC(=O)c1c(NC(=O)c2ccccc2)sc3c(O)c(CN(CC)CC)ccc13 | F179: 1.533 | G179: 2.725 | H179: 4.456 | I179: 426.5 | J179: 2 | K179: 6 | L179: 78.87 | M179: 0.3125 | N179: 10 | P179: ABS iGc
A180: MMV020438 | D180: COc1cc(Nc2ccc3cc(ccc3n2)S(=O)(=O)N4CCCCC4C)cc(OC)c1OC | F180: 0.6983 | G180: 2.894 | H180: 2.894 | I180: 471.6 | J180: 1 | K180: 8 | L180: 89.99 | M180: 0.1944 | N180: 7 | P180: ABS iGc
A181: MMV000011 | B181: Doxycycline hydrochloride | D181: C[C@@H]1[C@H]2[C@H](O)[C@H]3[C@H](N(C)C)C(=C(C(=O)N)C(=O)[C@@]3(O)C(=C2C(=O)c4c(O)cccc14)O)O | F181: 2.667 | G181: -0.01463 | H181: -0.2456 | I181: 444.4 | J181: 6 | K181: 10 | L181: 181.6 | M181: 0.05714 | N181: 2 | P181: ABS iGc
A182: MMV000028 | B182: Trimethoprim | D182: COc1cc(Cc2cnc(N)nc2N)cc(OC)c1OC | F182: 3.14 | G182: 0.5 | H182: 1.52 | I182: 290.3 | J182: 2 | K182: 7 | L182: 105.5 | M182: 0.2273 | N182: 5 | P182: ABS iGc
A183: MMV000043 | B183: Tafenoquine | D183: COc1cc(C)c2c(Oc3cccc(c3)C(F)(F)F)c(OC)cc(NC(C)CCCN)c2n1 | F183: 0.9993 | G183: 2.717 | H183: 4.045 | I183: 463.5 | J183: 2 | K183: 6 | L183: 78.63 | M183: 0.2857 | N183: 10 | P183: ABS iGc
A184: MMV019721 | B184: MMV019721 | D184: CCN(CC)S(=O)(=O)c1ccc(Cl)c(c1)C(=O)Nc2ccc3nc(C)sc3c2 | F184: 0.7575 | G184: 3.794 | H184: 3.794 | I184: 438 | J184: 1 | K184: 6 | L184: 79.37 | M184: 0.2333 | N184: 7 | P184: ABS iGc
A185: MMV666054 | D185: COc1ccc(cc1)C(=O)NC(c2ccc(Cl)cc2Cl)c3cc(Cl)c4cccnc4c3O | F185: -0.7263 | G185: 5.439 | H185: 5.439 | I185: 487.8 | J185: 2 | K185: 5 | L185: 71.45 | M185: 0.1714 | N185: 6 | P185: ABS iGc
A186: MMV020500 | D186: CNCCCNc1ccnc2cc(Cl)ccc12 | F186: 3.247 | G186: 0.8647 | H186: 2.154 | I186: 249.7 | J186: 2 | K186: 3 | L186: 36.95 | M186: 0.2778 | N186: 5 | P186: ABS iGc
A187: MMV007092 | D187: CCOc1ccc(CN2CCN(CC(O)COc3ccc(OCC(O)CN4CCN(Cc5ccc(OCC)cc5)CC4)cc3)CC2)cc1 | F187: 3.21 | G187: 2.926 | H187: 3.38 | I187: 662.9 | J187: 2 | K187: 10 | L187: 90.34 | M187: 0.3462 | N187: 18 | P187: ABS iGc
A188: MMV665875 | D188: CN1C(=O)N(C)c2cc(CNCCNc3ccnc4cc(Cl)ccc34)ccc12 | F188: 1.611 | G188: 1.765 | H188: 2.521 | I188: 395.9 | J188: 2 | K188: 6 | L188: 63.88 | M188: 0.1935 | N188: 6 | P188: ABS iGc
A189: SC81458 | B189: SC81458 | D189: NS(=O)(=O)c1ccc(cc1)CNS(=O)(=O)c1ccc(cc1)NC(=O)Nc1cccc(c1)C(=N)N1CCN(CCCC)CC1 | F189: 2.168 | G189: 2.255 | H189: 2.416 | I189: 627.8 | J189: 5 | K189: 12 | L189: 177.8 | M189: 0.3043 | N189: 14 | P189: ABS iGc
A190: MMV666108 | D190: Clc1ccc(cc1)C2(CN3CCC(CC3)NC(=O)CCc4occc4)CCC2 | F190: 1.962 | G190: 2.682 | H190: 4.28 | I190: 400.9 | J190: 1 | K190: 4 | L190: 45.48 | M190: 0.2581 | N190: 8 | P190: ABS iGc
A191: MMV669810 | D191: CS(=O)(=O)c1ccc(cc1)c2cnn3ccc(nc23)c4cccc(c4)S(=O)(=O)C5CC5 | F191: 0.9392 | G191: 3.055 | H191: 3.055 | I191: 453.5 | J191: 0 | K191: 7 | L191: 98.47 | M191: 0.1429 | N191: 5 | P191: ABS iGc
A192: Apicidin | B192: Apicidin | D192: O=C1C([C@@H](C)CC)NC([C@H](CC2=CN(OC)C3=C2C=CC=C3)NC([C@H](CCCCCC(CC)=O)NC([C@@]4([H])CCCCN41)=O)=O)=O | F192: 2.104 | G192: 3.276 | H192: 3.276 | I192: 623.8 | J192: 3 | K192: 11 | L192: 138.8 | M192: 0.25 | N192: 12 | P192: ABS iGc
A193: MMV000031 | B193: Cycloheximide | D193: C[C@H]1C[C@H](C)C(=O)[C@@H](C1)[C@H](O)CC2CC(=O)NC(=O)C2 | F193: 3.416 | G193: 0.5502 | H193: 0.5502 | I193: 281.3 | J193: 2 | K193: 5 | L193: 83.47 | M193: 0.1429 | N193: 3 | P193: ABS iGc
A194: GNF179 | B194: GNF179 | D194: CC1(C2=NC(=C(N2CCN1C(=O)CN)NC3=CC=C(C=C3)Cl)C4=CC=C(C=C4)F)C | F194: 1.864 | G194: 2.326 | H194: 3.001 | I194: 427.9 | J194: 2 | K194: 6 | L194: 76.18 | M194: 0.1515 | N194: 5 | P194: ABS iGc
A195: MMV669286 | D195: CS(=O)(=O)c1ccc(cc1)c2cnc3ccc(nn23)c4cccc(c4)S(=O)(=O)C5CC5 | F195: 0.9392 | G195: 3.055 | H195: 3.055 | I195: 453.5 | J195: 0 | K195: 7 | L195: 98.47 | M195: 0.1429 | N195: 5 | P195: ABS iGc
A196: MMV006656 | D196: CCOC(=O)C1=CN(C)C=C(C1c2cc(Br)c(OCC)c(OC)c2)C(=O)OCC | F196: 1.683 | G196: 4.115 | H196: 4.115 | I196: 468.3 | J196: 0 | K196: 7 | L196: 74.3 | M196: 0.3333 | N196: 10 | P196: ABS iGc
A197: MMV665934 | D197: Brc1ccc(cc1)c2cc3C(=O)c4ccccc4c3nn2 | F197: -0.1008 | G197: 4.097 | H197: 4.097 | I197: 337.2 | J197: 0 | K197: 3 | L197: 42.85 | M197: 0.04167 | N197: 1 | P197: ABS iGc
A198: PM3b | B198: Jozibrevine C | D198: CC1Cc2ccc(c(O)c2C(C)N1)c1c(C)c(c(O)c2c1cccc2OC)c1c(O)c2c(cccc2OC)c(c2ccc3CC(C)NC(C)c3c2O)c1C | F198: -0.03896 | G198: 4.004 | H198: 5.972 | I198: 724.9 | J198: 6 | K198: 8 | L198: 123.4 | M198: 0.08197 | N198: 5 | P198: ABS iGc
A199: KS52 | D199: N#CC1=C(C2CCCCC2)C=C(NCCNCC)N3C1=NC4=C3C=CC=C4 | F199: 1.505 | G199: 2.109 | H199: 4.101 | I199: 361.5 | J199: 2 | K199: 5 | L199: 65.15 | M199: 0.2333 | N199: 7 | P199: ABS iGc
A200: SB939 | D200: CCN(CC)CCN1C2=C(N=C1CCCC)C=C(/C=C/C(NO)=O)C=C2 | F200: 3.028 | G200: 0.6107 | H200: 2.867 | I200: 358.5 | J200: 2 | K200: 6 | L200: 70.39 | M200: 0.4074 | N200: 11 | P200: ABS iGc
A201: MMV006455 | D201: CCCN(CCC)CC(O)COc1ccccc1C(=O)Nc2ccccc2 | F201: 2.411 | G201: 2.178 | H201: 3.815 | I201: 370.5 | J201: 2 | K201: 5 | L201: 61.8 | M201: 0.4286 | N201: 12 | P201: ABS iGc
... 2151 more rows

Sheet Figure S7a
A1: Source Data for Supplementary Figure S7a
B2: Parasite proliferation (%) | I2: Parasite proliferation (%)
B3: - Furosemide | E3: + Furosemide | I3: - Furosemide | L3: + Furosemide
B4: n1 | C4: n2 | D4: n3 | E4: n1 | F4: n2 | G4: n3 | I4: Average | J4: SEM | K4: n | L4: Average | M4: SEM | N4: n
A5: 10xBlast | B5: 12.11 | C5: 11.66 | D5: 10.21 | E5: 55.35 | F5: 50.13 | G5: 48.84 | I5: 11.33 | J5: 0.57 | K5: 3 | L5: 51.44 | M5: 1.97 | N5: 3
A6: 100xBlast | B6: 1.41 | C6: 1.16 | D6: 1.00 | E6: 5.30 | F6: 4.28 | G6: 5.35 | I6: 1.19 | J6: 0.12 | K6: 3 | L6: 4.99 | M6: 0.35 | N6: 3
A7: 10xBlast | B7: 89.14 | C7: 83.89 | D7: 79.14 | E7: 105.06 | F7: 99.86 | G7: 91.35 | I7: 84.06 | J7: 2.89 | K7: 3 | L7: 98.76 | M7: 3.99 | N7: 3
A8: 100xBlast | B8: 40.14 | C8: 37.35 | D8: 33.35 | E8: 48.23 | F8: 39.36 | G8: 50.35 | I8: 36.95 | J8: 1.97 | K8: 3 | L8: 45.98 | M8: 3.37 | N8: 3
A9: 10xBlast | B9: 103.75 | C9: 101.75 | D9: 75.35 | E9: 110.64 | F9: 85.36 | G9: 105.35 | I9: 93.62 | J9: 9.15 | K9: 3 | L9: 100.45 | M9: 7.64 | N9: 3
A10: 100xBlast | B10: 92.26 | C10: 75.35 | D10: 56.31 | E10: 93.63 | F10: 79.94 | G10: 84.35 | I10: 74.78 | J10: 10.48 | K10: 3 | L10: 85.97 | M10: 4.03 | N10: 3

Sheet Figure S7b
A1: Source Data for Supplementary Figure S7b
B2: ABS Parasite proliferation (%) | I2: ABS Parasite proliferation (%)
B3: Without Furosemide | E3: With Furosemide | I3: Without Furosemide | L3: With Furosemide
B4: n1 | C4: n2 | D4: n3 | E4: n1 | F4: n2 | G4: n3 | I4: Average | J4: SEM | K4: n | L4: Average | M4: SEM | N4: n
A5: Blast | B5: 1.29 | C5: 1.00 | D5: 0.93 | E5: 5.69 | F5: 5.66 | G5: 3.34 | I5: 1.13 | J5: 0.13 | K5: 3 | L5: 4.90 | M5: 0.78 | N5: 3
A6: MMV048 | B6: 2.71 | C6: 2.48 | D6: 2.61 | E6: 4.15 | F6: 3.10 | G6: 3.29 | I6: 2.60 | J6: 0.07 | K6: 3 | L6: 3.51 | M6: 0.32 | N6: 3
A7: UCT943 | B7: 3.89 | C7: 2.63 | D7: 3.60 | E7: 4.63 | F7: 3.14 | G7: 3.57 | I7: 3.37 | J7: 0.38 | K7: 3 | L7: 3.78 | M7: 0.44 | N7: 3
A8: UCT594 | B8: 3.04 | C8: 1.68 | D8: 1.53 | E8: 2.99 | F8: 1.75 | G8: 1.48 | I8: 2.08 | J8: 0.49 | K8: 3 | L8: 2.08 | M8: 0.46 | N8: 3
A9: DHA | B9: 1.90 | C9: 1.80 | D9: 1.65 | E9: 4.52 | F9: 3.46 | G9: 3.10 | I9: 1.79 | J9: 0.08 | K9: 3 | L9: 3.69 | M9: 0.43 | N9: 3
B11: iGc Parasite viability (%) | I11: iGc Parasite viability (%)
B12: Without Furosemide | E12: With Furosemide | I12: Without Furosemide | L12: With Furosemide
B13: n1 | C13: n2 | D13: n3 | E13: n1 | F13: n2 | G13: n3 | I13: Average | J13: SEM | K13: n | L13: Average | M13: SEM | N13: n
A14: Blast | B14: 40.35 | C14: 34.35 | D14: 33.62 | E14: 53.47 | F14: 40.31 | G14: 44.16 | I14: 36.35 | J14: 2.13 | K14: 3 | L14: 45.98 | M14: 3.91 | N14: 3
A15: MMV048 | B15: 11.66 | C15: 6.03 | D15: 7.62 | E15: 13.02 | F15: 6.63 | G15: 11.67 | I15: 8.35 | J15: 1.68 | K15: 3 | L15: 10.44 | M15: 1.94 | N15: 3
A16: UCT943 | B16: 11.71 | C16: 5.05 | D16: 8.62 | E16: 16.06 | F16: 6.60 | G16: 7.22 | I16: 8.46 | J16: 1.92 | K16: 3 | L16: 9.96 | M16: 3.05 | N16: 3
A17: UCT594 | B17: 12.65 | C17: 6.63 | D17: 9.91 | E17: 13.82 | F17: 7.00 | G17: 9.33 | I17: 9.73 | J17: 1.74 | K17: 3 | L17: 10.05 | M17: 2.00 | N17: 3
A18: DHA | B18: 17.68 | C18: 13.69 | D18: 12.91 | E18: 22.02 | F18: 13.99 | G18: 15.15 | I18: 14.76 | J18: 1.48 | K18: 3 | L18: 17.05 | M18: 2.50 | N18: 3
B20: LGc Parasite viability (%) | I20: LGc Parasite viability (%)
B21: Without Furosemide | E21: With Furosemide | I21: Without Furosemide | L21: With Furosemide
B22: n1 | C22: n2 | D22: n3 | E22: n1 | F22: n2 | G22: n3 | I22: Average | J22: SEM | K22: n | L22: Average | M22: SEM | N22: n
A23: Blast | B23: 93.26 | C23: 57.31 | D23: 72.91 | E23: 96.40 | F23: 65.82 | G23: 93.57 | I23: 74.49 | J23: 10.48 | K23: 3 | L23: 85.26 | M23: 7.79 | N23: 3
A24: MMV048 | B24: 10.04 | C24: 8.73 | D24: 7.01 | E24: 8.75 | F24: 8.89 | G24: 6.00 | I24: 8.59 | J24: 0.88 | K24: 3 | L24: 7.88 | M24: 0.94 | N24: 3
A25: UCT943 | B25: 7.78 | C25: 7.40 | D25: 7.50 | E25: 8.67 | F25: 7.89 | G25: 6.29 | I25: 7.53 | J25: 0.12 | K25: 3 | L25: 7.62 | M25: 0.70 | N25: 3
A26: UCT594 | B26: 20.90 | C26: 8.17 | D26: 9.42 | E26: 29.15 | F26: 7.71 | G26: 8.85 | I26: 12.83 | J26: 4.05 | K26: 3 | L26: 15.24 | M26: 5.65 | N26: 3
A27: DHA | B27: 15.31 | C27: 29.13 | D27: 21.42 | E27: 24.70 | F27: 31.45 | G27: 20.76 | I27: 21.96 | J27: 4.00 | K27: 3 | L27: 25.63 | M27: 3.12 | N27: 3

Sheet Figure S7c
A1: Source Data for Supplementary Figure S7c
A2: ABS | B2: Parasite proliferation (%)
A3: Concentration (nM) | B3: n1 | C3: n2 | D3: n3
A4: 10000 | B4: 13.55 | C4: 3.29 | D4: 2.85
A5: 5000 | B5: 21.38 | C5: 4.96 | D5: 11.81
A6: 2500 | B6: 43.88 | C6: 25.40 | D6: 30.21
A7: 1250 | B7: 68.29 | C7: 41.87 | D7: 45.29
A8: 625 | B8: 95.20 | C8: 97.15 | D8: 85.67
A9: 312.5 | B9: 100.00 | C9: 100.00 | D9: 91.84
A10: 156.25 | B10: 100.00 | C10: 100.00 | D10: 99.13
A11: 78.125 | B11: 100.00 | C11: 100.00 | D11: 93.21
A12: 39.0625 | B12: 100.00 | C12: 100.00 | D12: 97.46
A15: iGc | B15: Parasite viability (%)
A16: Concentration (nM) | B16: n1 | C16: n2 | D16: n3
A17: 100000 | B17: 0.00 | C17: 0.00 | D17: 0.00
A18: 50000 | B18: 0.00 | C18: 0.08 | D18: 1.20
A19: 25000 | B19: 5.72 | C19: 6.62 | D19: 6.18
A20: 12500 | B20: 21.67 | C20: 24.24 | D20: 22.03
A21: 6250 | B21: 31.00 | C21: 36.35 | D21: 35.14
A22: 3120.5 | B22: 43.17 | C22: 53.73 | D22: 49.37
A23: 1560.25 | B23: 61.84 | C23: 65.36 | D23: 62.00
A24: 780.125 | B24: 73.37 | C24: 87.90 | D24: 88.36
A25: 390.0625 | B25: 88.18 | C25: 95.43 | D25: 100.00
A28: LGc | B28: Parasite viability (%)
A29: Concentration (nM) | B29: n1 | C29: n2 | D29: n3
A30: 10000 | B30: 0.00 | C30: 0.00 | D30: 0.00
A31: 5000 | B31: 0.00 | C31: 0.00 | D31: 0.00
A32: 2500 | B32: 44.22 | C32: 41.82 | D32: 46.16
A33: 1250 | B33: 100.00 | C33: 100.00 | D33: 100.00
A34: 625 | B34: 100.00 | C34: 100.00 | D34: 98.35
A35: 312.5 | B35: 99.76 | C35: 100.00 | D35: 100.00
A36: 156.25 | B36: 100.00 | C36: 100.00 | D36: 100.00
A37: 78.125 | B37: 100.00 | C37: 100.00 | D37: 99.25
A38: 39.0625 | B38: 100.00 | C38: 100.00 | D38: 100.00

Sheet Figure S7d
A1: Source Data for Supplementary Figure S7d
B2: Parasite viability (%) | I2: Parasite viability (%)
B3: Without Auphen | E3: With Auphen | I3: Without Auphen | L3: With Auphen
B4: n1 | C4: n2 | D4: n3 | E4: n1 | F4: n2 | G4: n3 | I4: average | J4: SEM | K4: n | L4: average | M4: SEM | N4: n
A5: MMV048 ABS | B5: 46.37 | C5: 43.50 | D5: 51.91 | E5: 63.37 | F5: 49.29 | G5: 63.23 | I5: 47.94 | J5: 2.43 | K5: 3 | L5: 58.63 | M5: 4.67 | N5: 3
A6: MMV048 iGc | B6: 68.50 | C6: 73.42 | D6: 70.94 | E6: 78.73 | F6: 79.18 | G6: 78.94 | I6: 70.94 | J6: 1.42 | K6: 3 | L6: 78.95 | M6: 0.13 | N6: 3
A7: MMV048 LGc | B7: 68.15 | C7: 81.12 | D7: 72.79 | E7: 74.00 | F7: 68.60 | G7: 74.81 | I7: 74.64 | J7: 3.79 | K7: 3 | L7: 72.47 | M7: 1.95 | N7: 3
A9: UCT943 ABS | B9: 12.78 | C9: 9.04 | D9: 8.26 | E9: 14.10 | F9: 14.80 | G9: 11.60 | I9: 10.25 | J9: 1.27 | K9: 3 | L9: 13.17 | M9: 0.70 | N9: 3
A10: UCT943 iGc | B10: 82.21 | C10: 68.70 | D10: 74.76 | E10: 73.93 | F10: 89.43 | G10: 80.83 | I10: 75.27 | J10: 3.90 | K10: 3 | L10: 81.19 | M10: 3.03 | N10: 3
A11: UCT943 LGc | B11: 74.39 | C11: 86.89 | D11: 78.00 | E11: 75.92 | F11: 73.64 | G11: 71.18 | I11: 80.64 | J11: 3.65 | K11: 3 | L11: 73.58 | M11: 1.37 | N11: 3
A13: UCT594 ABS | B13: 11.81 | C13: 11.47 | D13: 11.11 | E13: 18.38 | F13: 16.82 | G13: 15.56 | I13: 11.46 | J13: 0.20 | K13: 3 | L13: 16.92 | M13: 0.82 | N13: 3
A14: UCT594 iGc | B14: 58.98 | C14: 71.95 | D14: 61.11 | E14: 78.06 | F14: 88.80 | G14: 83.60 | I14: 64.01 | J14: 4.02 | K14: 3 | L14: 83.49 | M14: 3.10 | N14: 3
A15: UCT594 LGc | B15: 69.17 | C15: 76.18 | D15: 71.11 | E15: 90.61 | F15: 77.51 | G15: 82.80 | I15: 72.15 | J15: 2.09 | K15: 3 | L15: 83.64 | M15: 3.81 | N15: 3

Sheet Figure S7e
A1: Source Data for Supplementary Figure S7e
B2: Proportion of parasites (%) | I2: Proportion of parasites (%)
B3: Stained | E3: Unstained | I3: Stained | L3: Unstained
B4: n1 | C4: n2 | D4: n3 | E4: n1 | F4: n2 | G4: n3 | I4: Average | J4: SEM | K4: n | L4: Average | M4: SEM | N4: n
A5: Untreated | B5: 0.00 | C5: 0.00 | D5: 0.00 | E5: 100.00 | F5: 100.00 | G5: 100.00 | I5: 0.00 | J5: 0.00 | K5: 3 | L5: 100.00 | M5: 0.00 | N5: 3
A6: ABS | B6: 32.09 | C6: 21.71 | D6: 26.82 | E6: 67.91 | F6: 78.29 | G6: 73.18 | I6: 26.90 | J6: 3.19 | K6: 3 | L6: 73.10 | M6: 3.00 | N6: 3
A7: II/III | B7: 41.08 | C7: 34.09 | D7: 38.07 | E7: 58.92 | F7: 65.91 | G7: 61.93 | I7: 38.00 | J7: 2.06 | K7: 3 | L7: 62.00 | M7: 2.06 | N7: 3
A8: III/IV | B8: 48.06 | C8: 38.64 | D8: 42.99 | E8: 51.94 | F8: 61.36 | G8: 57.01 | I8: 43.23 | J8: 2.72 | K8: 3 | L8: 56.65 | M8: 2.71 | N8: 3
A9: IV/V | B9: 66.87 | C9: 58.15 | D9: 62.48 | E9: 33.13 | F9: 41.85 | G9: 37.52 | I9: 62.50 | J9: 2.52 | K9: 3 | L9: 37.49 | M9: 2.52 | N9: 3
A10: V | B10: 91.11 | C10: 81.23 | D10: 92.11 | E10: 8.89 | F10: 18.77 | G10: 7.89 | I10: 88.28 | J10: 3.54 | K10: 3 | L10: 11.72 | M10: 3.54 | N10: 3
